Workbook

Sheet HIDDEN - Backend (hidden)
N1: Previous Segment | Q1: 1
C3: CONVERSION TO USER VERSION | N3: Segment | Q3: 1 | R3: =VLOOKUP(Q3,Q4:R13,2,0) -> All cotton growers
Q4: 1 | R4: All cotton growers
C5: Click button below to create a Client Version of the dashboard, | Q5: 2 | R5: Region - Central Queensland
C6: then remove comments in Workbook. Open VBA, then password protect the VBA. | Q6: 3 | R6: Region - Darling Downs
C7: USER VERSION ACTIVE | Q7: 4 | R7: Region - Macintyre - Balonne
Q8: 5 | R8: Region - Northern NSW
Q9: 6 | R9: Region - Macquarie
Q10: 7 | R10: Region - Southern NSW
Q11: 8 | R11: Size of Cotton Farm Area - Small farms (< 1,000 ha)
Q12: 9 | R12: Size of Cotton Farm Area - Medium farms (1,000 - 5,000 ha)
Q13: 10 | R13: Size of Cotton Farm Area - Large farms (> 5,000 ha)
E16: Zoom Level: | G16: Previous Zoom Level
D17: 11 | E17: =VLOOKUP($D$17,$D$18:$E$38,2,0)*100 -> 100 | G17: 100 | N17: Show Source on Graphs? | Q17: 0
D18: 1 | E18: 0.5 | Q18: 0 | R18: No
D19: 2 | E19: 0.55 | Q19: 1 | R19: Yes
D20: 3 | E20: 0.6
D21: 4 | E21: 0.65
D22: 5 | E22: 0.7
D23: 6 | E23: 0.75
D24: 7 | E24: 0.8
D25: 8 | E25: 0.85
D26: 9 | E26: 0.9
D27: 10 | E27: 0.95
D28: 11 | E28: 1
D29: 12 | E29: 1.05
D30: 13 | E30: 1.1
D31: 14 | E31: 1.15
D32: 15 | E32: 1.2
D33: 16 | E33: 1.25
D34: 17 | E34: 1.3
D35: 18 | E35: 1.35
D36: 19 | E36: 1.4
D37: 20 | E37: 1.45
D38: 21 | E38: 1.5

Sheet HIDDEN - Question List (hidden)
A1: Question | B1: Report Page | C1: Done? | G1: List of Sheets | H1: Need VBA Code to Lock/Zoom? | I1: Need Macro Button? (Count) | J1: Need to Hide? (Count) | K1: VBA Code to hide | S1: VBA Code for Zoom Function | AC1: VBA Code for Locking Sheets | AQ1: VBA Code for Macro Buttons
A2: 1 | B2: n/a | C2: n/a | G2: HIDDEN - Backend | J2: 1 | K2: ="Sheets("""&G2&""").Visible = xlVeryHidden" -> Sheets("HIDDEN - Backend").Visible = xlVeryHidden | R2: 1 | S2: ="Sheets("""&INDEX($G$2:$H$67,MATCH(R2,$H$2:$H$67,0),1)&""").Select" -> Sheets("Landing Page").Select | AB2: 1 | AC2: ="Sheets("""&INDEX($G$2:$H$67,MATCH(AB2,$H$2:$H$67,0),1)&""").Protect Password:=""Intuitive_1"", DrawingObjects:=True, Contents:=True, Scenarios:=True" -> Sheets("Landing Page").Protect Password:="Intuitive_1", DrawingObjects:=True, Contents:=True, Scenarios:=True | AP2: 1 | AQ2: ="Sub "&SUBSTITUTE(SUBSTITUTE(INDEX($G$2:$I$67,MATCH(AP2,$I$2:$I$67,0),1)," ",""),"-","")&"Button()" -> Sub ApplicationstoCropButton()
A3: 2 | B3: 13 | C3: Area of Farm | G3: HIDDEN - Question List | J3: 2 | K3: ="Sheets("""&G3&""").Visible = xlVeryHidden" -> Sheets("HIDDEN - Question List").Visible = xlVeryHidden | R3: 1 | S3: ActiveWindow.Zoom = Sheets("HIDDEN - Backend").Range("E17").Value | AB3: 1 | AC3: ="Sheets("""&INDEX($G$2:$H$67,MATCH(AB3,$H$2:$H$67,0),1)&""").EnableSelection = xlNoSelection" -> Sheets("Landing Page").EnableSelection = xlNoSelection | AP3: 1
A4: 3 | B4: 28 | C4: Riparian Area of Farm | G4: Landing Page | H4: 1 | R4: 1 | AB4: 1 | AP4: 1 | AQ4: ="Sheets("""&INDEX($G$2:$I$67,MATCH(AP2,$I$2:$I$67,0),1)&""").Activate" -> Sheets("Applications to Crop").Activate
A5: 4 | B5: n/a | C5: n/a | G5: Menu | H5: 2 | R5: =R2+1 -> 2 | S5: ="Sheets("""&INDEX($G$2:$H$67,MATCH(R5,$H$2:$H$67,0),1)&""").Select" -> Sheets("Menu").Select | AB5: =AB2+1 -> 2 | AC5: ="Sheets("""&INDEX($G$2:$H$67,MATCH(AB5,$H$2:$H$67,0),1)&""").Protect Password:=""Intuitive_1"", DrawingObjects:=True, Contents:=True, Scenarios:=True" -> Sheets("Menu").Protect Password:="Intuitive_1", DrawingObjects:=True, Contents:=True, Scenarios:=True | AP5: 1
A6: 5 | B6: n/a | C6: n/a | G6: Applications to Crop | H6: 3 | I6: 1 | R6: =R3+1 -> 2 | S6: ActiveWindow.Zoom = Sheets("HIDDEN - Backend").Range("E17").Value | AB6: =AB3+1 -> 2 | AC6: ="Sheets("""&INDEX($G$2:$H$67,MATCH(AB6,$H$2:$H$67,0),1)&""").EnableSelection = xlNoSelection" -> Sheets("Menu").EnableSelection = xlNoSelection | AP6: 1 | AQ6: End Sub
A7: 6 | B7: n/a | C7: n/a | G7: Data - Applications to Crop | J7: 3 | K7: ="Sheets("""&G7&""").Visible = xlVeryHidden" -> Sheets("Data - Applications to Crop").Visible = xlVeryHidden | R7: =R4+1 -> 2 | AB7: =AB4+1 -> 2 | AP7: =AP2+1 -> 2 | AQ7: ="Sub "&SUBSTITUTE(SUBSTITUTE(INDEX($G$2:$I$67,MATCH(AP7,$I$2:$I$67,0),1)," ",""),"-","")&"Button()" -> Sub QualityDiscountsButton()
A8: 7 | B8: 14 | C8: Planted Area | G8: Quality Discounts | H8: =H6+1 -> 4 | I8: 2 | R8: =R5+1 -> 3 | S8: ="Sheets("""&INDEX($G$2:$H$67,MATCH(R8,$H$2:$H$67,0),1)&""").Select" -> Sheets("Applications to Crop").Select | AB8: =AB5+1 -> 3 | AC8: ="Sheets("""&INDEX($G$2:$H$67,MATCH(AB8,$H$2:$H$67,0),1)&""").Protect Password:=""Intuitive_1"", DrawingObjects:=True, Contents:=True, Scenarios:=True" -> Sheets("Applications to Crop").Protect Password:="Intuitive_1", DrawingObjects:=True, Contents:=True, Scenarios:=True | AP8: =AP3+1 -> 2
A9: 8 | B9: 15 | C9: Cotton Yields | G9: Data - Quality Discounts | J9: 4 | K9: ="Sheets("""&G9&""").Visible = xlVeryHidden" -> Sheets("Data - Quality Discounts").Visible = xlVeryHidden | R9: 3 | S9: ActiveWindow.Zoom = Sheets("HIDDEN - Backend").Range("E17").Value | AB9: 3 | AC9: ="Sheets("""&INDEX($G$2:$H$67,MATCH(AB9,$H$2:$H$67,0),1)&""").EnableSelection = xlNoSelection" -> Sheets("Applications to Crop").EnableSelection = xlNoSelection | AP9: 2 | AQ9: ="Sheets("""&INDEX($G$2:$I$67,MATCH(AP7,$I$2:$I$67,0),1)&""").Activate" -> Sheets("Quality Discounts").Activate
A10: 9 | B10: 16 | C10: Applications to Crop | G10: Largest Discount | H10: =H8+1 -> 5 | I10: 3 | R10: 3 | AB10: 3 | AP10: 2
A11: 10 | B11: 18 | C11: Quality Discounts and Largest Discount | G11: Data - Largest Discount | J11: 5 | K11: ="Sheets("""&G11&""").Visible = xlVeryHidden" -> Sheets("Data - Largest Discount").Visible = xlVeryHidden | R11: 4 | S11: ="Sheets("""&INDEX($G$2:$H$67,MATCH(R11,$H$2:$H$67,0),1)&""").Select" -> Sheets("Quality Discounts").Select | AB11: 4 | AC11: ="Sheets("""&INDEX($G$2:$H$67,MATCH(AB11,$H$2:$H$67,0),1)&""").Protect Password:=""Intuitive_1"", DrawingObjects:=True, Contents:=True, Scenarios:=True" -> Sheets("Quality Discounts").Protect Password:="Intuitive_1", DrawingObjects:=True, Contents:=True, Scenarios:=True | AP11: 2 | AQ11: End Sub
A12: 11 | B12: 20 | C12: Weed Control Over Crop | G12: Area of Farm | H12: =H10+1 -> 6 | I12: 4 | R12: 4 | S12: ActiveWindow.Zoom = Sheets("HIDDEN - Backend").Range("E17").Value | AB12: 4 | AC12: ="Sheets("""&INDEX($G$2:$H$67,MATCH(AB12,$H$2:$H$67,0),1)&""").EnableSelection = xlNoSelection" -> Sheets("Quality Discounts").EnableSelection = xlNoSelection | AP12: 3 | AQ12: ="Sub "&SUBSTITUTE(SUBSTITUTE(INDEX($G$2:$I$67,MATCH(AP12,$I$2:$I$67,0),1)," ",""),"-","")&"Button()" -> Sub LargestDiscountButton()
A13: 12 | B13: 21 | C13: Weed Control Over Fallows | G13: Data - Area of Farm | J13: 6 | K13: ="Sheets("""&G13&""").Visible = xlVeryHidden" -> Sheets("Data - Area of Farm").Visible = xlVeryHidden | R13: 4 | AB13: 4 | AP13: 3
A14: 13 | B14: 19 | C14: Widely Used Practices | G14: Future of Industry | H14: =H12+1 -> 7 | I14: 5 | R14: 5 | S14: ="Sheets("""&INDEX($G$2:$H$67,MATCH(R14,$H$2:$H$67,0),1)&""").Select" -> Sheets("Largest Discount").Select | AB14: 5 | AC14: ="Sheets("""&INDEX($G$2:$H$67,MATCH(AB14,$H$2:$H$67,0),1)&""").Protect Password:=""Intuitive_1"", DrawingObjects:=True, Contents:=True, Scenarios:=True" -> Sheets("Largest Discount").Protect Password:="Intuitive_1", DrawingObjects:=True, Contents:=True, Scenarios:=True | AP14: 3 | AQ14: ="Sheets("""&INDEX($G$2:$I$67,MATCH(AP12,$I$2:$I$67,0),1)&""").Activate" -> Sheets("Largest Discount").Activate
A15: 14 | B15: 22 | C15: Spray Decision Thresholds | G15: Data - Future of Industry | J15: 7 | K15: ="Sheets("""&G15&""").Visible = xlVeryHidden" -> Sheets("Data - Future of Industry").Visible = xlVeryHidden | R15: 5 | S15: ActiveWindow.Zoom = Sheets("HIDDEN - Backend").Range("E17").Value | AB15: 5 | AC15: ="Sheets("""&INDEX($G$2:$H$67,MATCH(AB15,$H$2:$H$67,0),1)&""").EnableSelection = xlNoSelection" -> Sheets("Largest Discount").EnableSelection = xlNoSelection | AP15: 3
A16: 15 | B16: 23 | C16: Reasons for Decisions | G16: Spray Decision Thresholds | H16: =H14+1 -> 8 | I16: 6 | R16: 5 | AB16: 5 | AP16: 3 | AQ16: End Sub
A17: 16 | B17: 24 | C17: Glyphosate and Insecticide | G17: Data - Spray Decision Threshold | J17: 8 | K17: ="Sheets("""&G17&""").Visible = xlVeryHidden" -> Sheets("Data - Spray Decision Threshold").Visible = xlVeryHidden | R17: 6 | S17: ="Sheets("""&INDEX($G$2:$H$67,MATCH(R17,$H$2:$H$67,0),1)&""").Select" -> Sheets("Area of Farm").Select | AB17: 6 | AC17: ="Sheets("""&INDEX($G$2:$H$67,MATCH(AB17,$H$2:$H$67,0),1)&""").Protect Password:=""Intuitive_1"", DrawingObjects:=True, Contents:=True, Scenarios:=True" -> Sheets("Area of Farm").Protect Password:="Intuitive_1", DrawingObjects:=True, Contents:=True, Scenarios:=True | AP17: 4 | AQ17: ="Sub "&SUBSTITUTE(SUBSTITUTE(INDEX($G$2:$I$67,MATCH(AP17,$I$2:$I$67,0),1)," ",""),"-","")&"Button()" -> Sub AreaofFarmButton()
A18: 17 | B18: 25 | C18: Irrigation System | G18: Reasons for Decisions | H18: =H16+1 -> 9 | I18: 7 | R18: 6 | S18: ActiveWindow.Zoom = Sheets("HIDDEN - Backend").Range("E17").Value | AB18: 6 | AC18: ="Sheets("""&INDEX($G$2:$H$67,MATCH(AB18,$H$2:$H$67,0),1)&""").EnableSelection = xlNoSelection" -> Sheets("Area of Farm").EnableSelection = xlNoSelection | AP18: 4
A19: 18 | B19: 26 | C19: Level of Automation | G19: Data - Reasons for Decisions | J19: 9 | K19: ="Sheets("""&G19&""").Visible = xlVeryHidden" -> Sheets("Data - Reasons for Decisions").Visible = xlVeryHidden | R19: 6 | AB19: 6 | AP19: 4 | AQ19: ="Sheets("""&INDEX($G$2:$I$67,MATCH(AP17,$I$2:$I$67,0),1)&""").Activate" -> Sheets("Area of Farm").Activate
A20: 19 | B20: 27 | C20: Minimise Losses | G20: Glyphosate and Insecticide | H20: =H18+1 -> 10 | I20: 8 | R20: 7 | S20: ="Sheets("""&INDEX($G$2:$H$67,MATCH(R20,$H$2:$H$67,0),1)&""").Select" -> Sheets("Future of Industry").Select | AB20: 7 | AC20: ="Sheets("""&INDEX($G$2:$H$67,MATCH(AB20,$H$2:$H$67,0),1)&""").Protect Password:=""Intuitive_1"", DrawingObjects:=True, Contents:=True, Scenarios:=True" -> Sheets("Future of Industry").Protect Password:="Intuitive_1", DrawingObjects:=True, Contents:=True, Scenarios:=True | AP20: 4
A21: 20 | B21: 29 | C21: Ecosystem Services | G21: Data - Glyphosate Insecticide | J21: 10 | K21: ="Sheets("""&G21&""").Visible = xlVeryHidden" -> Sheets("Data - Glyphosate Insecticide").Visible = xlVeryHidden | R21: 7 | S21: ActiveWindow.Zoom = Sheets("HIDDEN - Backend").Range("E17").Value | AB21: 7 | AC21: ="Sheets("""&INDEX($G$2:$H$67,MATCH(AB21,$H$2:$H$67,0),1)&""").EnableSelection = xlNoSelection" -> Sheets("Future of Industry").EnableSelection = xlNoSelection | AP21: 4 | AQ21: End Sub
A22: 21 | B22: 30 | C22: Riparian Problems & Practices | G22: Irrigation System | H22: =H20+1 -> 11 | I22: 9 | R22: 7 | AB22: 7 | AP22: 5 | AQ22: ="Sub "&SUBSTITUTE(SUBSTITUTE(INDEX($G$2:$I$67,MATCH(AP22,$I$2:$I$67,0),1)," ",""),"-","")&"Button()" -> Sub FutureofIndustryButton()
A23: 22 | B23: 30 | C23: Riparian Problems & Practices | G23: Data - Irrigation System | J23: 11 | K23: ="Sheets("""&G23&""").Visible = xlVeryHidden" -> Sheets("Data - Irrigation System").Visible = xlVeryHidden | R23: 8 | S23: ="Sheets("""&INDEX($G$2:$H$67,MATCH(R23,$H$2:$H$67,0),1)&""").Select" -> Sheets("Spray Decision Thresholds").Select | AB23: 8 | AC23: ="Sheets("""&INDEX($G$2:$H$67,MATCH(AB23,$H$2:$H$67,0),1)&""").Protect Password:=""Intuitive_1"", DrawingObjects:=True, Contents:=True, Scenarios:=True" -> Sheets("Spray Decision Thresholds").Protect Password:="Intuitive_1", DrawingObjects:=True, Contents:=True, Scenarios:=True | AP23: 5
A24: 23 | B24: 31 | C24: Significant Changes | G24: Level of Automation | H24: =H22+1 -> 12 | I24: 10 | R24: 8 | S24: ActiveWindow.Zoom = Sheets("HIDDEN - Backend").Range("E17").Value | AB24: 8 | AC24: ="Sheets("""&INDEX($G$2:$H$67,MATCH(AB24,$H$2:$H$67,0),1)&""").EnableSelection = xlNoSelection" -> Sheets("Spray Decision Thresholds").EnableSelection = xlNoSelection | AP24: 5 | AQ24: ="Sheets("""&INDEX($G$2:$I$67,MATCH(AP22,$I$2:$I$67,0),1)&""").Activate" -> Sheets("Future of Industry").Activate
A25: 24 | B25: 32 | C25: Accredited Education | G25: Data - Level of Automation | J25: 12 | K25: ="Sheets("""&G25&""").Visible = xlVeryHidden" -> Sheets("Data - Level of Automation").Visible = xlVeryHidden | R25: 8 | AB25: 8 | AP25: 5
A26: 25 | B26: 33 | C26: Accredited Education | G26: Minimise Losses | H26: =H24+1 -> 13 | I26: 11 | R26: 9 | S26: ="Sheets("""&INDEX($G$2:$H$67,MATCH(R26,$H$2:$H$67,0),1)&""").Select" -> Sheets("Reasons for Decisions").Select | AB26: 9 | AC26: ="Sheets("""&INDEX($G$2:$H$67,MATCH(AB26,$H$2:$H$67,0),1)&""").Protect Password:=""Intuitive_1"", DrawingObjects:=True, Contents:=True, Scenarios:=True" -> Sheets("Reasons for Decisions").Protect Password:="Intuitive_1", DrawingObjects:=True, Contents:=True, Scenarios:=True | AP26: 5 | AQ26: End Sub
A27: 26 | B27: 34 | C27: Off-Farm Training | G27: Data - Minimise Losses | J27: 13 | K27: ="Sheets("""&G27&""").Visible = xlVeryHidden" -> Sheets("Data - Minimise Losses").Visible = xlVeryHidden | R27: 9 | S27: ActiveWindow.Zoom = Sheets("HIDDEN - Backend").Range("E17").Value | AB27: 9 | AC27: ="Sheets("""&INDEX($G$2:$H$67,MATCH(AB27,$H$2:$H$67,0),1)&""").EnableSelection = xlNoSelection" -> Sheets("Reasons for Decisions").EnableSelection = xlNoSelection | AP27: 6 | AQ27: ="Sub "&SUBSTITUTE(SUBSTITUTE(INDEX($G$2:$I$67,MATCH(AP27,$I$2:$I$67,0),1)," ",""),"-","")&"Button()" -> Sub SprayDecisionThresholdsButton()
A28: 27 | B28: 35 | C28: Labour Hire Companies | G28: Riparian Area of Farm | H28: =H26+1 -> 14 | I28: 12 | R28: 9 | AB28: 9 | AP28: 6
A29: 28 | B29: 35 | C29: Labour Hire Companies | G29: Data - Riparian Area of Farm | J29: 14 | K29: ="Sheets("""&G29&""").Visible = xlVeryHidden" -> Sheets("Data - Riparian Area of Farm").Visible = xlVeryHidden | R29: 10 | S29: ="Sheets("""&INDEX($G$2:$H$67,MATCH(R29,$H$2:$H$67,0),1)&""").Select" -> Sheets("Glyphosate and Insecticide").Select | AB29: 10 | AC29: ="Sheets("""&INDEX($G$2:$H$67,MATCH(AB29,$H$2:$H$67,0),1)&""").Protect Password:=""Intuitive_1"", DrawingObjects:=True, Contents:=True, Scenarios:=True" -> Sheets("Glyphosate and Insecticide").Protect Password:="Intuitive_1", DrawingObjects:=True, Contents:=True, Scenarios:=True | AP29: 6 | AQ29: ="Sheets("""&INDEX($G$2:$I$67,MATCH(AP27,$I$2:$I$67,0),1)&""").Activate" -> Sheets("Spray Decision Thresholds").Activate
A30: 29 | B30: 36 | C30: Community Contribution | G30: Optimism Factors | H30: =H28+1 -> 15 | I30: 13 | R30: 10 | S30: ActiveWindow.Zoom = Sheets("HIDDEN - Backend").Range("E17").Value | AB30: 10 | AC30: ="Sheets("""&INDEX($G$2:$H$67,MATCH(AB30,$H$2:$H$67,0),1)&""").EnableSelection = xlNoSelection" -> Sheets("Glyphosate and Insecticide").EnableSelection = xlNoSelection | AP30: 6
A31: 30 | B31: 36 | C31: Community Contribution | G31: Data - Optimism Factors | J31: 15 | K31: ="Sheets("""&G31&""").Visible = xlVeryHidden" -> Sheets("Data - Optimism Factors").Visible = xlVeryHidden | R31: 10 | AB31: 10 | AP31: 6 | AQ31: End Sub
A32: 31 | B32: 37 | C32: Membership of Local CGA | G32: Main Challenges | H32: =H30+1 -> 16 | I32: 14 | R32: 11 | S32: ="Sheets("""&INDEX($G$2:$H$67,MATCH(R32,$H$2:$H$67,0),1)&""").Select" -> Sheets("Irrigation System").Select | AB32: 11 | AC32: ="Sheets("""&INDEX($G$2:$H$67,MATCH(AB32,$H$2:$H$67,0),1)&""").Protect Password:=""Intuitive_1"", DrawingObjects:=True, Contents:=True, Scenarios:=True" -> Sheets("Irrigation System").Protect Password:="Intuitive_1", DrawingObjects:=True, Contents:=True, Scenarios:=True | AP32: 7 | AQ32: ="Sub "&SUBSTITUTE(SUBSTITUTE(INDEX($G$2:$I$67,MATCH(AP32,$I$2:$I$67,0),1)," ",""),"-","")&"Button()" -> Sub ReasonsforDecisionsButton()
A33: 32 | B33: 38 | C33: Benefits and Value | G33: Data - Main Challenges | J33: 16 | K33: ="Sheets("""&G33&""").Visible = xlVeryHidden" -> Sheets("Data - Main Challenges").Visible = xlVeryHidden | R33: 11 | S33: ActiveWindow.Zoom = Sheets("HIDDEN - Backend").Range("E17").Value | AB33: 11 | AC33: ="Sheets("""&INDEX($G$2:$H$67,MATCH(AB33,$H$2:$H$67,0),1)&""").EnableSelection = xlNoSelection" -> Sheets("Irrigation System").EnableSelection = xlNoSelection | AP33: 7
A34: 33 | B34: 39 | C34: Reasons for Non-Member | G34: Planted Area | H34: =H32+1 -> 17 | I34: 15 | R34: 11 | AB34: 11 | AP34: 7 | AQ34: ="Sheets("""&INDEX($G$2:$I$67,MATCH(AP32,$I$2:$I$67,0),1)&""").Activate" -> Sheets("Reasons for Decisions").Activate
A35: 34 | B35: 40 | C35: Information Sharing | G35: Data - Planted Area | J35: 17 | K35: ="Sheets("""&G35&""").Visible = xlVeryHidden" -> Sheets("Data - Planted Area").Visible = xlVeryHidden | R35: 12 | S35: ="Sheets("""&INDEX($G$2:$H$67,MATCH(R35,$H$2:$H$67,0),1)&""").Select" -> Sheets("Level of Automation").Select | AB35: 12 | AC35: ="Sheets("""&INDEX($G$2:$H$67,MATCH(AB35,$H$2:$H$67,0),1)&""").Protect Password:=""Intuitive_1"", DrawingObjects:=True, Contents:=True, Scenarios:=True" -> Sheets("Level of Automation").Protect Password:="Intuitive_1", DrawingObjects:=True, Contents:=True, Scenarios:=True | AP35: 7
A36: 35 | B36: 40 | C36: Information Sharing | G36: Cotton Yields | H36: =H34+1 -> 18 | I36: 16 | R36: 12 | S36: ActiveWindow.Zoom = Sheets("HIDDEN - Backend").Range("E17").Value | AB36: 12 | AC36: ="Sheets("""&INDEX($G$2:$H$67,MATCH(AB36,$H$2:$H$67,0),1)&""").EnableSelection = xlNoSelection" -> Sheets("Level of Automation").EnableSelection = xlNoSelection | AP36: 7 | AQ36: End Sub
A37: 36 | B37: 41 | C37: Aboriginal Heritage | G37: Data - Cotton Yields | J37: 18 | K37: ="Sheets("""&G37&""").Visible = xlVeryHidden" -> Sheets("Data - Cotton Yields").Visible = xlVeryHidden | R37: 12 | AB37: 12 | AP37: 8 | AQ37: ="Sub "&SUBSTITUTE(SUBSTITUTE(INDEX($G$2:$I$67,MATCH(AP37,$I$2:$I$67,0),1)," ",""),"-","")&"Button()" -> Sub GlyphosateandInsecticideButton()
A38: 37 | B38: 41 | C38: Aboriginal Heritage | G38: Widely Used Practices | H38: =H36+1 -> 19 | I38: 17 | R38: 13 | S38: ="Sheets("""&INDEX($G$2:$H$67,MATCH(R38,$H$2:$H$67,0),1)&""").Select" -> Sheets("Minimise Losses").Select | AB38: 13 | AC38: ="Sheets("""&INDEX($G$2:$H$67,MATCH(AB38,$H$2:$H$67,0),1)&""").Protect Password:=""Intuitive_1"", DrawingObjects:=True, Contents:=True, Scenarios:=True" -> Sheets("Minimise Losses").Protect Password:="Intuitive_1", DrawingObjects:=True, Contents:=True, Scenarios:=True | AP38: 8
A39: 38 | B39: 10 | C39: Future of Industry | G39: Data - Widely Used Practices | J39: 19 | K39: ="Sheets("""&G39&""").Visible = xlVeryHidden" -> Sheets("Data - Widely Used Practices").Visible = xlVeryHidden | R39: 13 | S39: ActiveWindow.Zoom = Sheets("HIDDEN - Backend").Range("E17").Value | AB39: 13 | AC39: ="Sheets("""&INDEX($G$2:$H$67,MATCH(AB39,$H$2:$H$67,0),1)&""").EnableSelection = xlNoSelection" -> Sheets("Minimise Losses").EnableSelection = xlNoSelection | AP39: 8 | AQ39: ="Sheets("""&INDEX($G$2:$I$67,MATCH(AP37,$I$2:$I$67,0),1)&""").Activate" -> Sheets("Glyphosate and Insecticide").Activate
A40: 39 | B40: 11 | C40: Optimism Factors | G40: Weed Control Over Crop | H40: =H38+1 -> 20 | I40: 18 | R40: 13 | AB40: 13 | AP40: 8
A41: 40 | B41: 12 | C41: Main Challenges | G41: Data - Weed Control Over Crop | J41: 20 | K41: ="Sheets("""&G41&""").Visible = xlVeryHidden" -> Sheets("Data - Weed Control Over Crop").Visible = xlVeryHidden | R41: 14 | S41: ="Sheets("""&INDEX($G$2:$H$67,MATCH(R41,$H$2:$H$67,0),1)&""").Select" -> Sheets("Riparian Area of Farm").Select | AB41: 14 | AC41: ="Sheets("""&INDEX($G$2:$H$67,MATCH(AB41,$H$2:$H$67,0),1)&""").Protect Password:=""Intuitive_1"", DrawingObjects:=True, Contents:=True, Scenarios:=True" -> Sheets("Riparian Area of Farm").Protect Password:="Intuitive_1", DrawingObjects:=True, Contents:=True, Scenarios:=True | AP41: 8 | AQ41: End Sub
A42: 41 | B42: n/a | C42: n/a | G42: Weed Control Over Fallows | H42: =H40+1 -> 21 | I42: 19 | R42: 14 | S42: ActiveWindow.Zoom = Sheets("HIDDEN - Backend").Range("E17").Value | AB42: 14 | AC42: ="Sheets("""&INDEX($G$2:$H$67,MATCH(AB42,$H$2:$H$67,0),1)&""").EnableSelection = xlNoSelection" -> Sheets("Riparian Area of Farm").EnableSelection = xlNoSelection | AP42: 9 | AQ42: ="Sub "&SUBSTITUTE(SUBSTITUTE(INDEX($G$2:$I$67,MATCH(AP42,$I$2:$I$67,0),1)," ",""),"-","")&"Button()" -> Sub IrrigationSystemButton()
G43: Data - Weed Control Over Fallow | J43: 21 | K43: ="Sheets("""&G43&""").Visible = xlVeryHidden" -> Sheets("Data - Weed Control Over Fallow").Visible = xlVeryHidden | R43: 14 | AB43: 14 | AP43: 9
G44: Ecosystem Services | H44: =H42+1 -> 22 | I44: 20 | R44: 15 | S44: ="Sheets("""&INDEX($G$2:$H$67,MATCH(R44,$H$2:$H$67,0),1)&""").Select" -> Sheets("Optimism Factors").Select | AB44: 15 | AC44: ="Sheets("""&INDEX($G$2:$H$67,MATCH(AB44,$H$2:$H$67,0),1)&""").Protect Password:=""Intuitive_1"", DrawingObjects:=True, Contents:=True, Scenarios:=True" -> Sheets("Optimism Factors").Protect Password:="Intuitive_1", DrawingObjects:=True, Contents:=True, Scenarios:=True | AP44: 9 | AQ44: ="Sheets("""&INDEX($G$2:$I$67,MATCH(AP42,$I$2:$I$67,0),1)&""").Activate" -> Sheets("Irrigation System").Activate
G45: Data - Ecosystem Services | J45: 22 | K45: ="Sheets("""&G45&""").Visible = xlVeryHidden" -> Sheets("Data - Ecosystem Services").Visible = xlVeryHidden | R45: 15 | S45: ActiveWindow.Zoom = Sheets("HIDDEN - Backend").Range("E17").Value | AB45: 15 | AC45: ="Sheets("""&INDEX($G$2:$H$67,MATCH(AB45,$H$2:$H$67,0),1)&""").EnableSelection = xlNoSelection" -> Sheets("Optimism Factors").EnableSelection = xlNoSelection | AP45: 9
G46: Significant Changes | H46: =H44+1 -> 23 | I46: 21 | R46: 15 | AB46: 15 | AP46: 9 | AQ46: End Sub
G47: Data - Significant Changes | J47: 23 | K47: ="Sheets("""&G47&""").Visible = xlVeryHidden" -> Sheets("Data - Significant Changes").Visible = xlVeryHidden | R47: 16 | S47: ="Sheets("""&INDEX($G$2:$H$67,MATCH(R47,$H$2:$H$67,0),1)&""").Select" -> Sheets("Main Challenges").Select | AB47: 16 | AC47: ="Sheets("""&INDEX($G$2:$H$67,MATCH(AB47,$H$2:$H$67,0),1)&""").Protect Password:=""Intuitive_1"", DrawingObjects:=True, Contents:=True, Scenarios:=True" -> Sheets("Main Challenges").Protect Password:="Intuitive_1", DrawingObjects:=True, Contents:=True, Scenarios:=True | AP47: 10 | AQ47: ="Sub "&SUBSTITUTE(SUBSTITUTE(INDEX($G$2:$I$67,MATCH(AP47,$I$2:$I$67,0),1)," ",""),"-","")&"Button()" -> Sub LevelofAutomationButton()
G48: Riparian Problems | H48: =H46+1 -> 24 | I48: 22 | R48: 16 | S48: ActiveWindow.Zoom = Sheets("HIDDEN - Backend").Range("E17").Value | AB48: 16 | AC48: ="Sheets("""&INDEX($G$2:$H$67,MATCH(AB48,$H$2:$H$67,0),1)&""").EnableSelection = xlNoSelection" -> Sheets("Main Challenges").EnableSelection = xlNoSelection | AP48: 10
G49: Data - Riparian Problems | J49: 24 | K49: ="Sheets("""&G49&""").Visible = xlVeryHidden" -> Sheets("Data - Riparian Problems").Visible = xlVeryHidden | R49: 16 | AB49: 16 | AP49: 10 | AQ49: ="Sheets("""&INDEX($G$2:$I$67,MATCH(AP47,$I$2:$I$67,0),1)&""").Activate" -> Sheets("Level of Automation").Activate
G50: Accredited Education | H50: =H48+1 -> 25 | I50: 23 | R50: 17 | S50: ="Sheets("""&INDEX($G$2:$H$67,MATCH(R50,$H$2:$H$67,0),1)&""").Select" -> Sheets("Planted Area").Select | AB50: 17 | AC50: ="Sheets("""&INDEX($G$2:$H$67,MATCH(AB50,$H$2:$H$67,0),1)&""").Protect Password:=""Intuitive_1"", DrawingObjects:=True, Contents:=True, Scenarios:=True" -> Sheets("Planted Area").Protect Password:="Intuitive_1", DrawingObjects:=True, Contents:=True, Scenarios:=True | AP50: 10
G51: Data - Accredited Education | J51: 25 | K51: ="Sheets("""&G51&""").Visible = xlVeryHidden" -> Sheets("Data - Accredited Education").Visible = xlVeryHidden | R51: 17 | S51: ActiveWindow.Zoom = Sheets("HIDDEN - Backend").Range("E17").Value | AB51: 17 | AC51: ="Sheets("""&INDEX($G$2:$H$67,MATCH(AB51,$H$2:$H$67,0),1)&""").EnableSelection = xlNoSelection" -> Sheets("Planted Area").EnableSelection = xlNoSelection | AP51: 10 | AQ51: End Sub
G52: Off-Farm Training | H52: =H50+1 -> 26 | I52: 24 | R52: 17 | AB52: 17 | AP52: 11 | AQ52: ="Sub "&SUBSTITUTE(SUBSTITUTE(INDEX($G$2:$I$67,MATCH(AP52,$I$2:$I$67,0),1)," ",""),"-","")&"Button()" -> Sub MinimiseLossesButton()
G53: Data - Off-Farm Training | J53: 26 | K53: ="Sheets("""&G53&""").Visible = xlVeryHidden" -> Sheets("Data - Off-Farm Training").Visible = xlVeryHidden | R53: 18 | S53: ="Sheets("""&INDEX($G$2:$H$67,MATCH(R53,$H$2:$H$67,0),1)&""").Select" -> Sheets("Cotton Yields").Select | AB53: 18 | AC53: ="Sheets("""&INDEX($G$2:$H$67,MATCH(AB53,$H$2:$H$67,0),1)&""").Protect Password:=""Intuitive_1"", DrawingObjects:=True, Contents:=True, Scenarios:=True" -> Sheets("Cotton Yields").Protect Password:="Intuitive_1", DrawingObjects:=True, Contents:=True, Scenarios:=True | AP53: 11
G54: Labour Hire Companies | H54: =H52+1 -> 27 | I54: 25 | R54: 18 | S54: ActiveWindow.Zoom = Sheets("HIDDEN - Backend").Range("E17").Value | AB54: 18 | AC54: ="Sheets("""&INDEX($G$2:$H$67,MATCH(AB54,$H$2:$H$67,0),1)&""").EnableSelection = xlNoSelection" -> Sheets("Cotton Yields").EnableSelection = xlNoSelection | AP54: 11 | AQ54: ="Sheets("""&INDEX($G$2:$I$67,MATCH(AP52,$I$2:$I$67,0),1)&""").Activate" -> Sheets("Minimise Losses").Activate
G55: Data - Labour Hire Companies | J55: 27 | K55: ="Sheets("""&G55&""").Visible = xlVeryHidden" -> Sheets("Data - Labour Hire Companies").Visible = xlVeryHidden | R55: 18 | AB55: 18 | AP55: 11
G56: Membership of Local CGA | H56: =H54+1 -> 28 | I56: 26 | R56: 19 | S56: ="Sheets("""&INDEX($G$2:$H$67,MATCH(R56,$H$2:$H$67,0),1)&""").Select" -> Sheets("Widely Used Practices").Select | AB56: 19 | AC56: ="Sheets("""&INDEX($G$2:$H$67,MATCH(AB56,$H$2:$H$67,0),1)&""").Protect Password:=""Intuitive_1"", DrawingObjects:=True, Contents:=True, Scenarios:=True" -> Sheets("Widely Used Practices").Protect Password:="Intuitive_1", DrawingObjects:=True, Contents:=True, Scenarios:=True | AP56: 11 | AQ56: End Sub
G57: Data - Membership of Local CGA | J57: 28 | K57: ="Sheets("""&G57&""").Visible = xlVeryHidden" -> Sheets("Data - Membership of Local CGA").Visible = xlVeryHidden | R57: 19 | S57: ActiveWindow.Zoom = Sheets("HIDDEN - Backend").Range("E17").Value | AB57: 19 | AC57: ="Sheets("""&INDEX($G$2:$H$67,MATCH(AB57,$H$2:$H$67,0),1)&""").EnableSelection = xlNoSelection" -> Sheets("Widely Used Practices").EnableSelection = xlNoSelection | AP57: 12 | AQ57: ="Sub "&SUBSTITUTE(SUBSTITUTE(INDEX($G$2:$I$67,MATCH(AP57,$I$2:$I$67,0),1)," ",""),"-","")&"Button()" -> Sub RiparianAreaofFarmButton()
G58: Community Contribution | H58: =H56+1 -> 29 | I58: 27 | R58: 19 | AB58: 19 | AP58: 12
G59: Data - Community Contribution | J59: 29 | K59: ="Sheets("""&G59&""").Visible = xlVeryHidden" -> Sheets("Data - Community Contribution").Visible = xlVeryHidden | R59: 20 | S59: ="Sheets("""&INDEX($G$2:$H$67,MATCH(R59,$H$2:$H$67,0),1)&""").Select" -> Sheets("Weed Control Over Crop").Select | AB59: 20 | AC59: ="Sheets("""&INDEX($G$2:$H$67,MATCH(AB59,$H$2:$H$67,0),1)&""").Protect Password:=""Intuitive_1"", DrawingObjects:=True, Contents:=True, Scenarios:=True" -> Sheets("Weed Control Over Crop").Protect Password:="Intuitive_1", DrawingObjects:=True, Contents:=True, Scenarios:=True | AP59: 12 | AQ59: ="Sheets("""&INDEX($G$2:$I$67,MATCH(AP57,$I$2:$I$67,0),1)&""").Activate" -> Sheets("Riparian Area of Farm").Activate
G60: Benefits and Value | H60: =H58+1 -> 30 | I60: 28 | R60: 20 | S60: ActiveWindow.Zoom = Sheets("HIDDEN - Backend").Range("E17").Value | AB60: 20 | AC60: ="Sheets("""&INDEX($G$2:$H$67,MATCH(AB60,$H$2:$H$67,0),1)&""").EnableSelection = xlNoSelection" -> Sheets("Weed Control Over Crop").EnableSelection = xlNoSelection | AP60: 12
G61: Data - Benefits and Value | J61: 30 | K61: ="Sheets("""&G61&""").Visible = xlVeryHidden" -> Sheets("Data - Benefits and Value").Visible = xlVeryHidden | R61: 20 | AB61: 20 | AP61: 12 | AQ61: End Sub
G62: Reasons for Non-Member | H62: =H60+1 -> 31 | I62: 29 | R62: 21 | S62: ="Sheets("""&INDEX($G$2:$H$67,MATCH(R62,$H$2:$H$67,0),1)&""").Select" -> Sheets("Weed Control Over Fallows").Select | AB62: 21 | AC62: ="Sheets("""&INDEX($G$2:$H$67,MATCH(AB62,$H$2:$H$67,0),1)&""").Protect Password:=""Intuitive_1"", DrawingObjects:=True, Contents:=True, Scenarios:=True" -> Sheets("Weed Control Over Fallows").Protect Password:="Intuitive_1", DrawingObjects:=True, Contents:=True, Scenarios:=True | AP62: 13 | AQ62: ="Sub "&SUBSTITUTE(SUBSTITUTE(INDEX($G$2:$I$67,MATCH(AP62,$I$2:$I$67,0),1)," ",""),"-","")&"Button()" -> Sub OptimismFactorsButton()
G63: Data - Reasons for Non-Member | J63: 31 | K63: ="Sheets("""&G63&""").Visible = xlVeryHidden" -> Sheets("Data - Reasons for Non-Member").Visible = xlVeryHidden | R63: 21 | S63: ActiveWindow.Zoom = Sheets("HIDDEN - Backend").Range("E17").Value | AB63: 21 | AC63: ="Sheets("""&INDEX($G$2:$H$67,MATCH(AB63,$H$2:$H$67,0),1)&""").EnableSelection = xlNoSelection" -> Sheets("Weed Control Over Fallows").EnableSelection = xlNoSelection | AP63: 13
G64: Aboriginal Heritage | H64: =H62+1 -> 32 | I64: 30 | R64: 21 | AB64: 21 | AP64: 13 | AQ64: ="Sheets("""&INDEX($G$2:$I$67,MATCH(AP62,$I$2:$I$67,0),1)&""").Activate" -> Sheets("Optimism Factors").Activate
G65: Data - Aboriginal Heritage | J65: 32 | K65: ="Sheets("""&G65&""").Visible = xlVeryHidden" -> Sheets("Data - Aboriginal Heritage").Visible = xlVeryHidden | R65: 22 | S65: ="Sheets("""&INDEX($G$2:$H$67,MATCH(R65,$H$2:$H$67,0),1)&""").Select" -> Sheets("Ecosystem Services").Select | AB65: 22 | AC65: ="Sheets("""&INDEX($G$2:$H$67,MATCH(AB65,$H$2:$H$67,0),1)&""").Protect Password:=""Intuitive_1"", DrawingObjects:=True, Contents:=True, Scenarios:=True" -> Sheets("Ecosystem Services").Protect Password:="Intuitive_1", DrawingObjects:=True, Contents:=True, Scenarios:=True | AP65: 13
G66: Information Sharing | H66: =H64+1 -> 33 | I66: 31 | R66: 22 | S66: ActiveWindow.Zoom = Sheets("HIDDEN - Backend").Range("E17").Value | AB66: 22 | AC66: ="Sheets("""&INDEX($G$2:$H$67,MATCH(AB66,$H$2:$H$67,0),1)&""").EnableSelection = xlNoSelection" -> Sheets("Ecosystem Services").EnableSelection = xlNoSelection | AP66: 13 | AQ66: End Sub
G67: Data - Information Sharing | J67: 33 | K67: ="Sheets("""&G67&""").Visible = xlVeryHidden" -> Sheets("Data - Information Sharing").Visible = xlVeryHidden | R67: 22 | AB67: 22 | AP67: 14 | AQ67: ="Sub "&SUBSTITUTE(SUBSTITUTE(INDEX($G$2:$I$67,MATCH(AP67,$I$2:$I$67,0),1)," ",""),"-","")&"Button()" -> Sub MainChallengesButton()
R68: 23 | S68: ="Sheets("""&INDEX($G$2:$H$67,MATCH(R68,$H$2:$H$67,0),1)&""").Select" -> Sheets("Significant Changes").Select | AB68: 23 | AC68: ="Sheets("""&INDEX($G$2:$H$67,MATCH(AB68,$H$2:$H$67,0),1)&""").Protect Password:=""Intuitive_1"", DrawingObjects:=True, Contents:=True, Scenarios:=True" -> Sheets("Significant Changes").Protect Password:="Intuitive_1", DrawingObjects:=True, Contents:=True, Scenarios:=True | AP68: 14
R69: 23 | S69: ActiveWindow.Zoom = Sheets("HIDDEN - Backend").Range("E17").Value | AB69: 23 | AC69: ="Sheets("""&INDEX($G$2:$H$67,MATCH(AB69,$H$2:$H$67,0),1)&""").EnableSelection = xlNoSelection" -> Sheets("Significant Changes").EnableSelection = xlNoSelection | AP69: 14 | AQ69: ="Sheets("""&INDEX($G$2:$I$67,MATCH(AP67,$I$2:$I$67,0),1)&""").Activate" -> Sheets("Main Challenges").Activate
R70: 23 | AB70: 23 | AP70: 14
R71: 24 | S71: ="Sheets("""&INDEX($G$2:$H$67,MATCH(R71,$H$2:$H$67,0),1)&""").Select" -> Sheets("Riparian Problems").Select | AB71: 24 | AC71: ="Sheets("""&INDEX($G$2:$H$67,MATCH(AB71,$H$2:$H$67,0),1)&""").Protect Password:=""Intuitive_1"", DrawingObjects:=True, Contents:=True, Scenarios:=True" -> Sheets("Riparian Problems").Protect Password:="Intuitive_1", DrawingObjects:=True, Contents:=True, Scenarios:=True | AP71: 14 | AQ71: End Sub
R72: =R69+1 -> 24 | S72: ActiveWindow.Zoom = Sheets("HIDDEN - Backend").Range("E17").Value | AB72: =AB69+1 -> 24 | AC72: ="Sheets("""&INDEX($G$2:$H$67,MATCH(AB72,$H$2:$H$67,0),1)&""").EnableSelection = xlNoSelection" -> Sheets("Riparian Problems").EnableSelection = xlNoSelection | AP72: =AP67+1 -> 15 | AQ72: ="Sub "&SUBSTITUTE(SUBSTITUTE(INDEX($G$2:$I$67,MATCH(AP72,$I$2:$I$67,0),1)," ",""),"-","")&"Button()" -> Sub PlantedAreaButton()
R73: 24 | AB73: 24 | AP73: 15
R74: 25 | S74: ="Sheets("""&INDEX($G$2:$H$67,MATCH(R74,$H$2:$H$67,0),1)&""").Select" -> Sheets("Accredited Education").Select | AB74: 25 | AC74: ="Sheets("""&INDEX($G$2:$H$67,MATCH(AB74,$H$2:$H$67,0),1)&""").Protect Password:=""Intuitive_1"", DrawingObjects:=True, Contents:=True, Scenarios:=True" -> Sheets("Accredited Education").Protect Password:="Intuitive_1", DrawingObjects:=True, Contents:=True, Scenarios:=True | AP74: 15 | AQ74: ="Sheets("""&INDEX($G$2:$I$67,MATCH(AP72,$I$2:$I$67,0),1)&""").Activate" -> Sheets("Planted Area").Activate
R75: 25 | S75: ActiveWindow.Zoom = Sheets("HIDDEN - Backend").Range("E17").Value | AB75: 25 | AC75: ="Sheets("""&INDEX($G$2:$H$67,MATCH(AB75,$H$2:$H$67,0),1)&""").EnableSelection = xlNoSelection" -> Sheets("Accredited Education").EnableSelection = xlNoSelection | AP75: 15
R76: 25 | AB76: 25 | AP76: 15 | AQ76: End Sub
R77: 26 | S77: ="Sheets("""&INDEX($G$2:$H$67,MATCH(R77,$H$2:$H$67,0),1)&""").Select" -> Sheets("Off-Farm Training").Select | AB77: 26 | AC77: ="Sheets("""&INDEX($G$2:$H$67,MATCH(AB77,$H$2:$H$67,0),1)&""").Protect Password:=""Intuitive_1"", DrawingObjects:=True, Contents:=True, Scenarios:=True" -> Sheets("Off-Farm Training").Protect Password:="Intuitive_1", DrawingObjects:=True, Contents:=True, Scenarios:=True | AP77: 16 | AQ77: ="Sub "&SUBSTITUTE(SUBSTITUTE(INDEX($G$2:$I$67,MATCH(AP77,$I$2:$I$67,0),1)," ",""),"-","")&"Button()" -> Sub CottonYieldsButton()
R78: 26 | S78: ActiveWindow.Zoom = Sheets("HIDDEN - Backend").Range("E17").Value | AB78: 26 | AC78: ="Sheets("""&INDEX($G$2:$H$67,MATCH(AB78,$H$2:$H$67,0),1)&""").EnableSelection = xlNoSelection" -> Sheets("Off-Farm Training").EnableSelection = xlNoSelection | AP78: 16
R79: 26 | AB79: 26 | AP79: 16 | AQ79: ="Sheets("""&INDEX($G$2:$I$67,MATCH(AP77,$I$2:$I$67,0),1)&""").Activate" -> Sheets("Cotton Yields").Activate
R80: 27 | S80: ="Sheets("""&INDEX($G$2:$H$67,MATCH(R80,$H$2:$H$67,0),1)&""").Select" -> Sheets("Labour Hire Companies").Select | AB80: 27 | AC80: ="Sheets("""&INDEX($G$2:$H$67,MATCH(AB80,$H$2:$H$67,0),1)&""").Protect Password:=""Intuitive_1"", DrawingObjects:=True, Contents:=True, Scenarios:=True" -> Sheets("Labour Hire Companies").Protect Password:="Intuitive_1", DrawingObjects:=True, Contents:=True, Scenarios:=True | AP80: 16
R81: 27 | S81: ActiveWindow.Zoom = Sheets("HIDDEN - Backend").Range("E17").Value | AB81: 27 | AC81: ="Sheets("""&INDEX($G$2:$H$67,MATCH(AB81,$H$2:$H$67,0),1)&""").EnableSelection = xlNoSelection" -> Sheets("Labour Hire Companies").EnableSelection = xlNoSelection | AP81: 16 | AQ81: End Sub
R82: 27 | AB82: 27 | AP82: 17 | AQ82: ="Sub "&SUBSTITUTE(SUBSTITUTE(INDEX($G$2:$I$67,MATCH(AP82,$I$2:$I$67,0),1)," ",""),"-","")&"Button()" -> Sub WidelyUsedPracticesButton()
R83: 28 | S83: ="Sheets("""&INDEX($G$2:$H$67,MATCH(R83,$H$2:$H$67,0),1)&""").Select" -> Sheets("Membership of Local CGA").Select | AB83: 28 | AC83: ="Sheets("""&INDEX($G$2:$H$67,MATCH(AB83,$H$2:$H$67,0),1)&""").Protect Password:=""Intuitive_1"", DrawingObjects:=True, Contents:=True, Scenarios:=True" -> Sheets("Membership of Local CGA").Protect Password:="Intuitive_1", DrawingObjects:=True, Contents:=True, Scenarios:=True | AP83: 17
R84: 28 | S84: ActiveWindow.Zoom = Sheets("HIDDEN - Backend").Range("E17").Value | AB84: 28 | AC84: ="Sheets("""&INDEX($G$2:$H$67,MATCH(AB84,$H$2:$H$67,0),1)&""").EnableSelection = xlNoSelection" -> Sheets("Membership of Local CGA").EnableSelection = xlNoSelection | AP84: 17 | AQ84: ="Sheets("""&INDEX($G$2:$I$67,MATCH(AP82,$I$2:$I$67,0),1)&""").Activate" -> Sheets("Widely Used Practices").Activate
R85: 28 | AB85: 28 | AP85: 17
R86: 29 | S86: ="Sheets("""&INDEX($G$2:$H$67,MATCH(R86,$H$2:$H$67,0),1)&""").Select" -> Sheets("Community Contribution").Select | AB86: 29 | AC86: ="Sheets("""&INDEX($G$2:$H$67,MATCH(AB86,$H$2:$H$67,0),1)&""").Protect Password:=""Intuitive_1"", DrawingObjects:=True, Contents:=True, Scenarios:=True" -> Sheets("Community Contribution").Protect Password:="Intuitive_1", DrawingObjects:=True, Contents:=True, Scenarios:=True | AP86: 17 | AQ86: End Sub
R87: 29 | S87: ActiveWindow.Zoom = Sheets("HIDDEN - Backend").Range("E17").Value | AB87: 29 | AC87: ="Sheets("""&INDEX($G$2:$H$67,MATCH(AB87,$H$2:$H$67,0),1)&""").EnableSelection = xlNoSelection" -> Sheets("Community Contribution").EnableSelection = xlNoSelection | AP87: 18 | AQ87: ="Sub "&SUBSTITUTE(SUBSTITUTE(INDEX($G$2:$I$67,MATCH(AP87,$I$2:$I$67,0),1)," ",""),"-","")&"Button()" -> Sub WeedControlOverCropButton()
R88: 29 | AB88: 29 | AP88: 18
R89: 30 | S89: ="Sheets("""&INDEX($G$2:$H$67,MATCH(R89,$H$2:$H$67,0),1)&""").Select" -> Sheets("Benefits and Value").Select | AB89: 30 | AC89: ="Sheets("""&INDEX($G$2:$H$67,MATCH(AB89,$H$2:$H$67,0),1)&""").Protect Password:=""Intuitive_1"", DrawingObjects:=True, Contents:=True, Scenarios:=True" -> Sheets("Benefits and Value").Protect Password:="Intuitive_1", DrawingObjects:=True, Contents:=True, Scenarios:=True | AP89: 18 | AQ89: ="Sheets("""&INDEX($G$2:$I$67,MATCH(AP87,$I$2:$I$67,0),1)&""").Activate" -> Sheets("Weed Control Over Crop").Activate
R90: 30 | S90: ActiveWindow.Zoom = Sheets("HIDDEN - Backend").Range("E17").Value | AB90: 30 | AC90: ="Sheets("""&INDEX($G$2:$H$67,MATCH(AB90,$H$2:$H$67,0),1)&""").EnableSelection = xlNoSelection" -> Sheets("Benefits and Value").EnableSelection = xlNoSelection | AP90: 18
R91: 30 | AB91: 30 | AP91: 18 | AQ91: End Sub
R92: 31 | S92: ="Sheets("""&INDEX($G$2:$H$67,MATCH(R92,$H$2:$H$67,0),1)&""").Select" -> Sheets("Reasons for Non-Member").Select | AB92: 31 | AC92: ="Sheets("""&INDEX($G$2:$H$67,MATCH(AB92,$H$2:$H$67,0),1)&""").Protect Password:=""Intuitive_1"", DrawingObjects:=True, Contents:=True, Scenarios:=True" -> Sheets("Reasons for Non-Member").Protect Password:="Intuitive_1", DrawingObjects:=True, Contents:=True, Scenarios:=True | AP92: 19 | AQ92: ="Sub "&SUBSTITUTE(SUBSTITUTE(INDEX($G$2:$I$67,MATCH(AP92,$I$2:$I$67,0),1)," ",""),"-","")&"Button()" -> Sub WeedControlOverFallowsButton()
R93: 31 | S93: ActiveWindow.Zoom = Sheets("HIDDEN - Backend").Range("E17").Value | AB93: 31 | AC93: ="Sheets("""&INDEX($G$2:$H$67,MATCH(AB93,$H$2:$H$67,0),1)&""").EnableSelection = xlNoSelection" -> Sheets("Reasons for Non-Member").EnableSelection = xlNoSelection | AP93: 19
R94: 31 | AB94: 31 | AP94: 19 | AQ94: ="Sheets("""&INDEX($G$2:$I$67,MATCH(AP92,$I$2:$I$67,0),1)&""").Activate" -> Sheets("Weed Control Over Fallows").Activate
R95: 32 | S95: ="Sheets("""&INDEX($G$2:$H$67,MATCH(R95,$H$2:$H$67,0),1)&""").Select" -> Sheets("Aboriginal Heritage").Select | AB95: 32 | AC95: ="Sheets("""&INDEX($G$2:$H$67,MATCH(AB95,$H$2:$H$67,0),1)&""").Protect Password:=""Intuitive_1"", DrawingObjects:=True, Contents:=True, Scenarios:=True" -> Sheets("Aboriginal Heritage").Protect Password:="Intuitive_1", DrawingObjects:=True, Contents:=True, Scenarios:=True | AP95: 19
R96: 32 | S96: ActiveWindow.Zoom = Sheets("HIDDEN - Backend").Range("E17").Value | AB96: 32 | AC96: ="Sheets("""&INDEX($G$2:$H$67,MATCH(AB96,$H$2:$H$67,0),1)&""").EnableSelection = xlNoSelection" -> Sheets("Aboriginal Heritage").EnableSelection = xlNoSelection | AP96: 19 | AQ96: End Sub
R97: 32 | AB97: 32 | AP97: 20 | AQ97: ="Sub "&SUBSTITUTE(SUBSTITUTE(INDEX($G$2:$I$67,MATCH(AP97,$I$2:$I$67,0),1)," ",""),"-","")&"Button()" -> Sub EcosystemServicesButton()
R98: 33 | S98: ="Sheets("""&INDEX($G$2:$H$67,MATCH(R98,$H$2:$H$67,0),1)&""").Select" -> Sheets("Information Sharing").Select | AB98: 33 | AC98: ="Sheets("""&INDEX($G$2:$H$67,MATCH(AB98,$H$2:$H$67,0),1)&""").Protect Password:=""Intuitive_1"", DrawingObjects:=True, Contents:=True, Scenarios:=True" -> Sheets("Information Sharing").Protect Password:="Intuitive_1", DrawingObjects:=True, Contents:=True, Scenarios:=True | AP98: 20
R99: 33 | S99: ActiveWindow.Zoom = Sheets("HIDDEN - Backend").Range("E17").Value | AB99: 33 | AC99: ="Sheets("""&INDEX($G$2:$H$67,MATCH(AB99,$H$2:$H$67,0),1)&""").EnableSelection = xlNoSelection" -> Sheets("Information Sharing").EnableSelection = xlNoSelection | AP99: 20 | AQ99: ="Sheets("""&INDEX($G$2:$I$67,MATCH(AP97,$I$2:$I$67,0),1)&""").Activate" -> Sheets("Ecosystem Services").Activate
R100: 33 | AB100: 33 | AP100: 20
AP101: 20 | AQ101: End Sub
AP102: 21 | AQ102: ="Sub "&SUBSTITUTE(SUBSTITUTE(INDEX($G$2:$I$67,MATCH(AP102,$I$2:$I$67,0),1)," ",""),"-","")&"Button()" -> Sub SignificantChangesButton()
AP103: 21
AP104: 21 | AQ104: ="Sheets("""&INDEX($G$2:$I$67,MATCH(AP102,$I$2:$I$67,0),1)&""").Activate" -> Sheets("Significant Changes").Activate
AP105: 21
AP106: 21 | AQ106: End Sub
AP107: 22 | AQ107: ="Sub "&SUBSTITUTE(SUBSTITUTE(INDEX($G$2:$I$67,MATCH(AP107,$I$2:$I$67,0),1)," ",""),"-","")&"Button()" -> Sub RiparianProblemsButton()
AP108: 22
AP109: 22 | AQ109: ="Sheets("""&INDEX($G$2:$I$67,MATCH(AP107,$I$2:$I$67,0),1)&""").Activate" -> Sheets("Riparian Problems").Activate
AP110: 22
AP111: 22 | AQ111: End Sub
AP112: 23 | AQ112: ="Sub "&SUBSTITUTE(SUBSTITUTE(INDEX($G$2:$I$67,MATCH(AP112,$I$2:$I$67,0),1)," ",""),"-","")&"Button()" -> Sub AccreditedEducationButton()
AP113: 23
AP114: 23 | AQ114: ="Sheets("""&INDEX($G$2:$I$67,MATCH(AP112,$I$2:$I$67,0),1)&""").Activate" -> Sheets("Accredited Education").Activate
AP115: 23
AP116: 23 | AQ116: End Sub
AP117: 24 | AQ117: ="Sub "&SUBSTITUTE(SUBSTITUTE(INDEX($G$2:$I$67,MATCH(AP117,$I$2:$I$67,0),1)," ",""),"-","")&"Button()" -> Sub OffFarmTrainingButton()
AP118: 24
AP119: 24 | AQ119: ="Sheets("""&INDEX($G$2:$I$67,MATCH(AP117,$I$2:$I$67,0),1)&""").Activate" -> Sheets("Off-Farm Training").Activate
AP120: 24
AP121: 24 | AQ121: End Sub
AP122: 25 | AQ122: ="Sub "&SUBSTITUTE(SUBSTITUTE(INDEX($G$2:$I$67,MATCH(AP122,$I$2:$I$67,0),1)," ",""),"-","")&"Button()" -> Sub LabourHireCompaniesButton()
AP123: 25
AP124: 25 | AQ124: ="Sheets("""&INDEX($G$2:$I$67,MATCH(AP122,$I$2:$I$67,0),1)&""").Activate" -> Sheets("Labour Hire Companies").Activate
AP125: 25
AP126: 25 | AQ126: End Sub
AP127: 26 | AQ127: ="Sub "&SUBSTITUTE(SUBSTITUTE(INDEX($G$2:$I$67,MATCH(AP127,$I$2:$I$67,0),1)," ",""),"-","")&"Button()" -> Sub MembershipofLocalCGAButton()
AP128: 26
AP129: 26 | AQ129: ="Sheets("""&INDEX($G$2:$I$67,MATCH(AP127,$I$2:$I$67,0),1)&""").Activate" -> Sheets("Membership of Local CGA").Activate
AP130: 26
AP131: 26 | AQ131: End Sub
AP132: 27 | AQ132: ="Sub "&SUBSTITUTE(SUBSTITUTE(INDEX($G$2:$I$67,MATCH(AP132,$I$2:$I$67,0),1)," ",""),"-","")&"Button()" -> Sub CommunityContributionButton()
AP133: 27
AP134: 27 | AQ134: ="Sheets("""&INDEX($G$2:$I$67,MATCH(AP132,$I$2:$I$67,0),1)&""").Activate" -> Sheets("Community Contribution").Activate
AP135: 27
AP136: =AP131+1 -> 27 | AQ136: End Sub
AP137: 28 | AQ137: ="Sub "&SUBSTITUTE(SUBSTITUTE(INDEX($G$2:$I$67,MATCH(AP137,$I$2:$I$67,0),1)," ",""),"-","")&"Button()" -> Sub BenefitsandValueButton()
AP138: 28
AP139: 28 | AQ139: ="Sheets("""&INDEX($G$2:$I$67,MATCH(AP137,$I$2:$I$67,0),1)&""").Activate" -> Sheets("Benefits and Value").Activate
AP140: 28
AP141: 28 | AQ141: End Sub
AP142: 29 | AQ142: ="Sub "&SUBSTITUTE(SUBSTITUTE(INDEX($G$2:$I$67,MATCH(AP142,$I$2:$I$67,0),1)," ",""),"-","")&"Button()" -> Sub ReasonsforNonMemberButton()
AP143: 29
AP144: 29 | AQ144: ="Sheets("""&INDEX($G$2:$I$67,MATCH(AP142,$I$2:$I$67,0),1)&""").Activate" -> Sheets("Reasons for Non-Member").Activate
AP145: 29
AP146: 29 | AQ146: End Sub
AP147: 30 | AQ147: ="Sub "&SUBSTITUTE(SUBSTITUTE(INDEX($G$2:$I$67,MATCH(AP147,$I$2:$I$67,0),1)," ",""),"-","")&"Button()" -> Sub AboriginalHeritageButton()
AP148: 30
AP149: 30 | AQ149: ="Sheets("""&INDEX($G$2:$I$67,MATCH(AP147,$I$2:$I$67,0),1)&""").Activate" -> Sheets("Aboriginal Heritage").Activate
AP150: 30
AP151: 30 | AQ151: End Sub
AP152: 31 | AQ152: ="Sub "&SUBSTITUTE(SUBSTITUTE(INDEX($G$2:$I$67,MATCH(AP152,$I$2:$I$67,0),1)," ",""),"-","")&"Button()" -> Sub InformationSharingButton()
AP153: 31
AP154: 31 | AQ154: ="Sheets("""&INDEX($G$2:$I$67,MATCH(AP152,$I$2:$I$67,0),1)&""").Activate" -> Sheets("Information Sharing").Activate
AP155: 31
AP156: 31 | AQ156: End Sub

Sheet Landing Page
E1: 2017 Grower Survey
L14: It is important to note that the responses contained within the CRDC Grower Survey provide a snapshot in time of grower data, but do not tell the full story. The Grower Survey is one of many research projects commissioned by CRDC to gather industry information. The results are not intended to be used in isolation, but rather in consideration of these other projects, such as the CRDC and Cotton Australia Australian Grown Cotton Sustainability Report, and the industry’s best practice program, myBMP, and extension program, CottonInfo. In conjunction with these programs, the Grower Survey helps the industry measure practices and inform continuous improvement. The results are as provided by growers, and have not been independently verified. For any queries regarding the Grower Survey, please contact CRDC.

Sheet Menu
E1: 2017 Grower Survey
J5: Adjust Zoom Level:
C7: Cotton Crop & On-Farm Practices | L7: Grower Attitudes and Behaviours
E9: Industry Sentiment | F9: Future of Industry | N9: On-Farm Training and Labour Needs | O9: Accredited Education & Impact
F10: Optimism Factors | O10: Suitable Off-Farm Training
F11: Main Challenges | O11: Use of Labour Hire Companies
E12: Cotton Crop Details | F12: Area of Farm | N12: Community Contribution | O12: Community Contribution
F13: Planted Area | N13: Cotton Grower Association | O13: Membership of Local CGA
F14: Cotton Yields | N14: Information Sharing | O14: Information Sharing
F15: Applications to Crop | N15: Aboriginal Heritage Site | O15: Aboriginal Heritage Site
F16: Quality Discounts
F17: Largest Discount
E18: Weeds, Pests and Disease Control | F18: Widely Used Practices
F19: Weed Control Over Crop
F20: Weed Control Over Fallows
E21: Pesticide Management | F21: Spray Decision Thresholds
F22: Reasons for Decisions
F23: Glyphosate and Insecticide
E24: Irrigation Technologies | F24: Irrigation System
F25: Level of Automation
F26: Practices to Minimise Losses
E27: Natural Resource Management | F27: Riparian Area of Farm
F28: Ecosystem Services
F29: Riparian Problems & Practices
F30: Significant Changes

Sheet Future of Industry
E1: 2017 Grower Survey | R1: Data in Focus:
E5: Industry Sentiment - Future of Industry
C7: How growers feel about the future of the cotton industry | L7: ="Results - "&'Data - Future of Industry'!F1&" growers" -> Results - All cotton growers
C27: ="Base: all cotton growers; n = "&'Data - Future of Industry'!F5&"." -> Base: all cotton growers; n = 203. | J27: =IF('HIDDEN - Backend'!Q17=1,"Source: 2017 Grower Survey, CRDC","") ->  | L27: =IF('Data - Future of Industry'!A1=1,"","Base: "&'Data - Future of Industry'!F1&" growers; n = "&'Data - Future of Industry'!F16&".") ->  | S27: =IF(AND('HIDDEN - Backend'!Q17=1,'HIDDEN - Backend'!Q3>1),"Source: 2017 Grower Survey, CRDC","") -> 
C29: Question: Overall, how do you feel about the future of the cotton industry. Would you say you feel…?

Sheet Data - Future of Industry (hidden)
A1: ='HIDDEN - Backend'!Q3 -> 1 | E1: Segment | F1: =INDEX($S1:$AB1,1,$A$1) -> All cotton | S1: All cotton | T1: Central Queensland | U1: Darling Downs | V1: Macintyre - Balonne | W1: Northern NSW | X1: Macquarie | Y1: Southern NSW | Z1: Small farm | AA1: Medium farm | AB1: Large farm
C2: CHARTS | Q2: DATA
C4: Focus - Overall | G4: Label | S4: Overall | T4: Central Queensland | U4: Darling Downs | V4: Macintyre - Balonne | W4: Northern NSW | X4: Macquarie | Y4: Southern NSW | Z4: Small (< 1,000 ha) | AA4: Medium (1,000 - 5,000 ha) | AB4: Large (> 5,000 ha)
E5: Base | F5: =INDEX($S5:$AB5,1,1) -> 203 | R5: Base | S5: 203 | T5: 25 | U5: 47 | V5: 28 | W5: 49 | X5: 23 | Y5: 31 | Z5: 79 | AA5: 96 | AB5: 24
E6: Very positive | F6: =INDEX($S6:$AB6,1,1) -> 0.4088669951 | G6: =IF(AND(F6>0,F6<0.005),"<1%",TEXT(F6,"0%")) -> 41% | I6: =TEXT(ROUND(F6,2)+ROUND(F7,2),"0%") -> 92% | R6: Very positive | S6: 0.4088669951 | T6: 0.32 | U6: 0.3617021277 | V6: 0.4285714286 | W6: 0.3673469388 | X6: 0.4347826087 | Y6: 0.5806451613 | Z6: 0.3670886076 | AA6: 0.40625 | AB6: 0.5833333333
E7: Fairly positive | F7: 0.5123152709 | G7: 51% | R7: Fairly positive | S7: 0.5123152709 | T7: 0.4 | U7: 0.5531914894 | V7: 0.5357142857 | W7: 0.5918367347 | X7: 0.4782608696 | Y7: 0.4193548387 | Z7: 0.5443037975 | AA7: 0.5208333333 | AB7: 0.375
E8: =REPT(" ",INDEX($S13:$AB13,1,1))&"Neutral" -> Neutral | F8: 0.05911330049 | G8: 6% | R8: Neutral (neither positive or negative) | S8: 0.05911330049 | T8: 0.2 | U8: 0.08510638298 | V8: 0.03571428571 | W8: 0.02040816327 | X8: 0.04347826087 | Y8: 0 | Z8: 0.06329113924 | AA8: 0.0625 | AB8: 0.04166666667
E9: =REPT(" ",INDEX($S14:$AB14,1,1))&"Fairly negative" -> Fairly negative | F9: 0.01477832512 | G9: 1% | R9: Fairly negative | S9: 0.01477832512 | T9: 0.04 | U9: 0 | V9: 0 | W9: 0.02040816327 | X9: 0.04347826087 | Y9: 0 | Z9: 0.01265822785 | AA9: 0.01041666667 | AB9: 0
E10: =REPT(" ",INDEX($S15:$AB15,1,1))&"Very negative" -> Very negative | F10: 0.004926108374 | G10: <1% | R10: Very negative | S10: 0.004926108374 | T10: 0.04 | U10: 0 | V10: 0 | W10: 0 | X10: 0 | Y10: 0 | Z10: 0.01265822785 | AA10: 0 | AB10: 0
R12: Spaces for accurate labels
R13: Neutral (neither positive or negative) | S13: 11 | T13: 39 | U13: 15 | V13: 7 | W13: 5 | X13: 8 | Y13: 0 | Z13: 11 | AA13: 11 | AB13: 7
R14: Fairly negative | S14: 4 | T14: 9 | U14: 0 | V14: 0 | W14: 5 | X14: 8 | Y14: 0 | Z14: 3 | AA14: 3 | AB14: 0
C15: Focus - Segment | G15: Label | R15: Very negative | S15: 2 | T15: 9 | U15: 0 | V15: 0 | W15: 0 | X15: 0 | Y15: 0 | Z15: 3 | AA15: 0 | AB15: 0
E16: Base | F16: =INDEX($S5:$AB5,1,$A$1) -> 203
E17: Very positive | F17: =INDEX($S6:$AB6,1,$A$1) -> 0.4088669951 | G17: =IF(AND(F17>0,F17<0.005),"<1%",TEXT(F17,"0%")) -> 41% | I17: =TEXT(ROUND(F17,2)+ROUND(F18,2),"0%") -> 92%
E18: Fairly positive | F18: 0.5123152709 | G18: 51%
E19: =REPT(" ",INDEX($S13:$AB13,1,$A$1))&"Neutral" -> Neutral | F19: =INDEX($S8:$AB8,1,$A$1) -> 0.05911330049 | G19: 6%
E20: =REPT(" ",INDEX($S14:$AB14,1,$A$1))&"Fairly negative" -> Fairly negative | F20: =INDEX($S9:$AB9,1,$A$1) -> 0.01477832512 | G20: 1%
E21: =REPT(" ",INDEX($S15:$AB15,1,$A$1))&"Very negative" -> Very negative | F21: 0.004926108374 | G21: <1%

Sheet Optimism Factors
E1: 2017 Grower Survey
E5: Industry Sentiment - Optimism Factors
C7: What are the factors that make you optimistic about being involved in the cotton industry in Australia?
C27: ="Base: all cotton growers who are positive about the future of the industry and provided a response; n = "&'Data - Optimism Factors'!F5&"." -> Base: all cotton growers who are positive about the future of the industry and provided a response; n = 181. | S27: =IF('HIDDEN - Backend'!Q17=1,"Source: 2017 Grower Survey, CRDC","") -> 
C29: Question: What are the factors that make you optimistic about being involved in the cotton industry in Australia?

Sheet Data - Optimism Factors (hidden)
A1: ='HIDDEN - Backend'!Q3 -> 1 | E1: Segment | F1: =INDEX($S1:$AB1,1,$A$1) -> All cotton | S1: All cotton | T1: Central Queensland | U1: Darling Downs | V1: Macintyre - Balonne | W1: Northern NSW | X1: Macquarie | Y1: Southern NSW | Z1: Small farm | AA1: Medium farm | AB1: Large farm
C2: CHARTS | Q2: DATA
C4: Focus - Overall | S4: Overall | T4: Central Queensland | U4: Darling Downs | V4: Macintyre - Balonne | W4: Northern NSW | X4: Macquarie | Y4: Southern NSW | Z4: Small (< 1,000 ha) | AA4: Medium (1,000 - 5,000 ha) | AB4: Large (> 5,000 ha)
E5: Base | F5: =INDEX($S5:$AB5,1,1) -> 181 | R5: Base: | S5: 181
E6: It is an innovative business/there is always new R&D for improving crop yields, pest control, water use etc. | F6: =INDEX($S6:$AB6,1,1) -> 0.591160221 | G6: =IF(AND(F6>0,F6<0.005),"<1%",TEXT(F6,"0%")) -> 59% | R6: It is an innovative business/there is always new R&D for improving crop yields, pest control, water use etc. | S6: 0.591160221
E7: It is a profitable business/there is market demand for cotton | F7: 0.3149171271 | G7: =IF(AND(F7>0,F7<0.005),"<1%",TEXT(F7,"0%")) -> 31% | R7: It is a profitable business/there is market demand for cotton | S7: 0.3149171271
E8: Industry bodies and cotton farmers support each other/exchange of information (to learn from each other)/the cotton industry is like a community | F8: 0.2320441989 | G8: 23% | R8: Industry bodies and cotton farmers support each other/exchange of information (to learn from each other)/the cotton industry is like a community | S8: 0.2320441989
E9: The cotton growing leadership/community is cohesive and effective at representing grower interests (i.e. quick to react to changes and new developments/has good government representation) | F9: 0.1546961326 | G9: 15% | R9: The cotton growing leadership/community is cohesive and effective at representing grower interests (i.e. quick to react to changes and new developments/has good government representation) | S9: 0.1546961326
E10: We have great cotton yields | F10: 0.09944751381 | G10: 10% | R10: We have great cotton yields | S10: 0.09944751381

Sheet Main Challenges
E1: 2017 Grower Survey
E5: Industry Sentiment - Main Challenges
C7: What are the main challenges facing your business and the cotton industry in Australia right now?
C27: ="Base: all cotton growers who provided a response; n = "&'Data - Main Challenges'!F5&"." -> Base: all cotton growers who provided a response; n = 196. | S27: =IF('HIDDEN - Backend'!Q17=1,"Source: 2017 Grower Survey, CRDC","") -> 
C29: Question: What are the main challenges facing your business and the cotton industry in Australia right now?

Sheet Data - Main Challenges (hidden)
A1: ='HIDDEN - Backend'!Q3 -> 1 | E1: Segment | F1: =INDEX($S1:$AB1,1,$A$1) -> All cotton | S1: All cotton | T1: Central Queensland | U1: Darling Downs | V1: Macintyre - Balonne | W1: Northern NSW | X1: Macquarie | Y1: Southern NSW | Z1: Small farm | AA1: Medium farm | AB1: Large farm
C2: CHARTS | Q2: DATA
C4: Focus - Overall | S4: Overall | T4: Central Queensland | U4: Darling Downs | V4: Macintyre - Balonne | W4: Northern NSW | X4: Macquarie | Y4: Southern NSW | Z4: Small (< 1,000 ha) | AA4: Medium (1,000 - 5,000 ha) | AB4: Large (> 5,000 ha)
E5: Base | F5: =INDEX($S5:$AB5,1,1) -> 196 | R5: Base: | S5: 196
E6: Lack of water (due to environmental conditions) | F6: =INDEX($S6:$AB6,1,1) -> 0.443877551 | G6: =IF(AND(F6>0,F6<0.005),"<1%",TEXT(F6,"0%")) -> 44% | R6: Lack of water (due to environmental conditions) | S6: 0.443877551
E7: Increasing overheads (i.e. electricity, water, machinery, trait provider fees) | F7: 0.25 | G7: =IF(AND(F7>0,F7<0.005),"<1%",TEXT(F7,"0%")) -> 25% | R7: Increasing overheads (i.e. electricity, water, machinery, trait provider fees) | S7: 0.25
E8: Lack of water (due to government interference)/other loss of productivity due to government interference | F8: 0.2193877551 | G8: 22% | R8: Lack of water (due to government interference)/other loss of productivity due to government interference | S8: 0.2193877551
E9: Cotton plant diseases/pests and diseases growing resistant to current control measures | F9: 0.1428571429 | G9: 14% | R9: Cotton plant diseases/pests and diseases growing resistant to current control measures | S9: 0.1428571429
E10: Climate change/severe seasonal changes | F10: 0.1428571429 | G10: 14% | R10: Climate change/severe seasonal changes | S10: 0.1428571429
E11: Maintainging enough staff/keeping hardworking dedicated staff in my employment | F11: 0.137755102 | G11: 14% | R11: Maintainging enough staff/keeping hardworking dedicated staff in my employment | S11: 0.137755102

Sheet Area of Farm
E1: 2017 Grower Survey | R1: Data in Focus:
E5: Cotton Crop Details - Area of Farm
C7: Average distribution of land on their farm | L7: ="Results - "&'Data - Area of Farm'!F1&" growers" -> Results - All cotton growers
C27: ="Base: all cotton growers; n = "&'Data - Area of Farm'!F5&"." -> Base: all cotton growers; n = 248. | J27: =IF('HIDDEN - Backend'!Q17=1,"Source: 2017 Grower Survey, CRDC","") ->  | L27: =IF('Data - Area of Farm'!A1=1,"","Base: "&'Data - Area of Farm'!F1&" growers; n = "&'Data - Area of Farm'!F18&".") ->  | S27: =IF(AND('HIDDEN - Backend'!Q17=1,'HIDDEN - Backend'!Q3>1),"Source: 2017 Grower Survey, CRDC","") -> 
C29: Question: On your farm, what was the total area (in hectares) for the following?

Sheet Data - Area of Farm (hidden)
A1: ='HIDDEN - Backend'!Q3 -> 1 | E1: Segment | F1: =INDEX($S1:$AB1,1,$A$1) -> All cotton | S1: All cotton | T1: Central Queensland | U1: Darling Downs | V1: Macintyre - Balonne | W1: Northern NSW | X1: Macquarie | Y1: Southern NSW | Z1: Small farm | AA1: Medium farm | AB1: Large farm
C2: CHARTS | Q2: DATA
C4: Focus - Overall | G4: Label | S4: Overall | T4: Central Queensland | U4: Darling Downs | V4: Macintyre - Balonne | W4: Northern NSW | X4: Macquarie | Y4: Southern NSW | Z4: Small (< 1,000 ha) | AA4: Medium (1,000 - 5,000 ha) | AB4: Large (> 5,000 ha)
E5: Base | F5: =INDEX($S5:$AB5,1,1) -> 248 | R5: Base: | S5: 248 | T5: 29 | U5: 54 | V5: 36 | W5: 64 | X5: 29 | Y5: 34 | Z5: 90 | AA5: 109 | AB5: 33
E6: What is the total area of your farm (in hectares)? | F6: =INDEX($S6:$AB6,1,1) -> 8020.28629 | G6: =TEXT(F6,"###,##0")&"ha" -> 8,020ha | R6: What is the total area of your farm (in hectares)? | S6: 8020.28629 | T6: 1702.172414 | U6: 1728.222222 | V6: 30082.75 | W6: 6505.421875 | X6: 3728.724138 | Y6: 5817.205882 | Z6: 1184.722222 | AA6: 4424.981651 | AB6: 41000.0303
E8: Area developed that received full irrigation | F8: 0.386709 | G8: =IF(AND(F8>0,F8<0.005),"<1%",TEXT(F8,"0%")) -> 39% | R8: Area developed that received full irrigation | S8: 0.386709 | T8: 0.595379 | U8: 0.281893 | V8: 0.2952362952 | W8: 0.3335766664 | X8: 0.3058523059 | Y8: 0.6260836261 | Z8: 0.5172475172 | AA8: 0.322766 | AB8: 0.241902
E9: Area developed that received partial irrigation | F9: 0.025452 | G9: 3% | R9: Area developed that received partial irrigation | S9: 0.025452 | T9: 0.009844 | U9: 0.071068 | V9: 0.01329101329 | W9: 0.0119029881 | X9: 0.02042702043 | Y9: 0.01241801242 | Z9: 0.03900703901 | AA9: 0.017308 | AB9: 0.015381
E10: Area developed for raingrown | dryland cropping | F10: 0.334705 | G10: 33% | R10: Area developed for raingrown | dryland cropping | S10: 0.334705 | T10: 0.164379 | U10: 0.52482 | V10: 0.2873252873 | W10: 0.3966456034 | X10: 0.3788483788 | Y10: 0.09092509093 | Z10: 0.1972991973 | AA10: 0.398016 | AB10: 0.500327
E11: Area of native vegetation used for grazing | F11: 0.190081 | G11: 19% | R11: Area of native vegetation used for grazing | S11: 0.190081 | T11: 0.177725 | U11: 0.057622 | V11: 0.3406303406 | W11: 0.1781828218 | X11: 0.2426792427 | Y11: 0.2207162207 | Z11: 0.1742331742 | AA11: 0.205065 | AB11: 0.183811
E12: Area of native vegetation not usually grazed | F12: 0.063053 | G12: 6% | R12: Area of native vegetation not usually grazed | S12: 0.063053 | T12: 0.052673 | U12: 0.064597 | V12: 0.06351706352 | W12: 0.07969192031 | X12: 0.05219305219 | Y12: 0.04985704986 | Z12: 0.07221307221 | AA12: 0.056845 | AB12: 0.058579
C17: Focus - Segment | G17: Label
E18: Base | F18: =INDEX($S5:$AB5,1,$A$1) -> 248
E19: What is the total area of your farm (in hectares)? | F19: =INDEX($S6:$AB6,1,$A$1) -> 8020.28629 | G19: =TEXT(F19,"###,##0")&"ha" -> 8,020ha
E21: Area developed that received full irrigation | F21: =INDEX($S8:$AB8,1,$A$1) -> 0.386709 | G21: =IF(AND(F21>0,F21<0.005),"<1%",TEXT(F21,"0%")) -> 39%
E22: Area developed that received partial irrigation | F22: =INDEX($S9:$AB9,1,$A$1) -> 0.025452 | G22: 3%
E23: Area developed for raingrown | dryland cropping | F23: 0.334705 | G23: 33%
E24: Area of native vegetation used for grazing | F24: 0.190081 | G24: 19%
E25: Area of native vegetation not usually grazed | F25: 0.063053 | G25: 6%

Sheet Planted Area
E1: 2017 Grower Survey
E5: Cotton Crop Details - Planted Area
C7: Area planted for cotton within each developed area for the 2016-17 cotton growing season
C27: ="Base: all cotton growers; n varies (Full, n = "&'Data - Planted Area'!F5&", Part, n = "&'Data - Planted Area'!F11&", Rain, n = "&'Data - Planted Area'!F17&")." -> Base: all cotton growers; n varies (Full, n = 190, Part, n = 39, Rain, n = 153). | J27: =IF('HIDDEN - Backend'!Q17=1,"Source: 2017 Grower Survey, CRDC","") -> 
C29: Question: What area was planted for cotton for the 2016-17 cotton growing season?

Sheet Data - Planted Area (hidden)
A1: ='HIDDEN - Backend'!Q3 -> 1 | E1: Segment | F1: =INDEX($S1:$AB1,1,$A$1) -> All cotton | S1: All cotton | T1: Central Queensland | U1: Darling Downs | V1: Macintyre - Balonne | W1: Northern NSW | X1: Macquarie | Y1: Southern NSW | Z1: Small farm | AA1: Medium farm | AB1: Large farm
C2: CHARTS | Q2: DATA
C4: Focus - Overall | S4: Overall | T4: Central Queensland | U4: Darling Downs | V4: Macintyre - Balonne | W4: Northern NSW | X4: Macquarie | Y4: Southern NSW | Z4: Small (< 1,000 ha) | AA4: Medium (1,000 - 5,000 ha) | AB4: Large (> 5,000 ha)
E5: Base | F5: =INDEX($S5:$AB5,1,1) -> 190 | R5: Base: | S5: 190 | T5: 26 | U5: 33 | V5: 31 | W5: 45 | X5: 24 | Y5: 31 | Z5: 76 | AA5: 88 | AB5: 26
C6: Fully Irrigated | E6: Field area planted | F6: =INDEX($S6:$AB6,1,1) -> 0.531646 | G6: =IF(AND(F6>0,F6<0.005),"<1%",TEXT(F6,"0%")) -> 53% | P6: Fully Irrigated | R6: Field area planted | S6: 0.531646 | T6: 0.523677 | U6: 0.607196 | V6: 0.633728 | W6: 0.561203 | X6: 0.474173 | Y6: 0.357411 | Z6: 0.531141 | AA6: 0.507547 | AB6: 0.614685
E7: Green area planted | F7: 0.476641 | G7: =IF(AND(F7>0,F7<0.005),"<1%",TEXT(F7,"0%")) -> 48% | R7: Green area planted | S7: 0.476641 | T7: 0.616542 | U7: 0.426306 | V7: 0.535544 | W7: 0.470595 | X7: 0.490312 | Y7: 0.352177 | Z7: 0.458949 | AA7: 0.484504 | AB7: 0.501743
E8: Area planted but not harvested | F8: 0.012432 | G8: =IF(AND(F8>0,F8<0.005),"<1%",TEXT(F8,"0%")) -> 1% | R8: Area planted but not harvested | S8: 0.012432 | T8: 0.032308 | U8: 0.003916 | V8: 0.028232 | W8: 0.006398 | X8: 0.001603 | Y8: 0.00617 | Z8: 0.014194 | AA8: 0.006783 | AB8: 0.026402
S10: Overall | T10: Central Queensland | U10: Darling Downs | V10: Macintyre - Balonne | W10: Northern NSW | X10: Macquarie | Y10: Southern NSW | Z10: Small (< 1,000 ha) | AA10: Medium (1,000 - 5,000 ha) | AB10: Large (> 5,000 ha)
E11: Base: | F11: =INDEX($S11:$AB11,1,1) -> 39 | R11: Base: | S11: 39 | T11: 2 | U11: 15 | V11: 8 | W11: 8 | X11: 2 | Y11: 4 | Z11: 17 | AA11: 14 | AB11: 8
C12: Partially Irrigated | E12: Field area planted | F12: =INDEX($S12:$AB12,1,1) -> 0.394167 | G12: =IF(AND(F12>0,F12<0.005),"<1%",TEXT(F12,"0%")) -> 39% | P12: Partially Irrigated | R12: Field area planted | S12: 0.394167 | T12: 0.7 | U12: 0.54715 | V12: 0.125 | W12: 0.59566 | X12: 0 | Y12: 0 | Z12: 0.426582 | AA12: 0.426984 | AB12: 0.267857
E13: Green area planted | F13: 0.215918 | G13: =IF(AND(F13>0,F13<0.005),"<1%",TEXT(F13,"0%")) -> 22% | R13: Green area planted | S13: 0.215918 | T13: 0.425 | U13: 0.276137 | V13: 0.125 | W13: 0.303594 | X13: 0 | Y13: 0 | Z13: 0.131214 | AA13: 0.315419 | AB13: 0.221786
E14: Area planted but not harvested | F14: 0.010256 | G14: =IF(AND(F14>0,F14<0.005),"<1%",TEXT(F14,"0%")) -> 1% | R14: Area planted but not harvested | S14: 0.010256 | T14: 0 | U14: 0.013333 | V14: 0.025 | W14: 0 | X14: 0 | Y14: 0 | Z14: 0 | AA14: 0.014286 | AB14: 0.025
S16: Overall | T16: Central Queensland | U16: Darling Downs | V16: Macintyre - Balonne | W16: Northern NSW | X16: Macquarie | Y16: Southern NSW | Z16: Small (< 1,000 ha) | AA16: Medium (1,000 - 5,000 ha) | AB16: Large (> 5,000 ha)
E17: Base: | F17: =INDEX($S17:$AB17,1,1) -> 153 | R17: Base: | S17: 153 | T17: 11 | U17: 38 | V17: 27 | W17: 45 | X17: 20 | Y17: 12 | Z17: 44 | AA17: 83 | AB17: 26
C18: Raingrown | Dryland | E18: Field area planted | F18: =INDEX($S18:$AB18,1,1) -> 0.178842 | G18: =IF(AND(F18>0,F18<0.005),"<1%",TEXT(F18,"0%")) -> 18% | P18: Raingrown | Dryland | R18: Field area planted | S18: 0.178842 | T18: 0.096687 | U18: 0.370172 | V18: 0.088259 | W18: 0.16884 | X18: 0.112597 | Y18: 0 | Z18: 0.297439 | AA18: 0.134876 | AB18: 0.118492
E19: Green area planted | F19: 0.113033 | G19: =IF(AND(F19>0,F19<0.005),"<1%",TEXT(F19,"0%")) -> 11% | R19: Green area planted | S19: 0.113033 | T19: 0.082275 | U19: 0.221398 | V19: 0.058289 | W19: 0.117549 | X19: 0.055619 | Y19: 0 | Z19: 0.176195 | AA19: 0.092434 | AB19: 0.071903
E20: Area planted but not harvested | F20: 0.008434 | G20: =IF(AND(F20>0,F20<0.005),"<1%",TEXT(F20,"0%")) -> 1% | R20: Area planted but not harvested | S20: 0.008434 | T20: 0.001123 | U20: 0.022836 | V20: 0.008922 | W20: 0.003765 | X20: 0 | Y20: 0 | Z20: 0.001228 | AA20: 0.012463 | AB20: 0.00777
C25: Focus - Segment
E26: Base | F26: =INDEX($S5:$AB5,1,$A$1) -> 190
C27: Fully Irrigated | E27: Field area planted | F27: =INDEX($S6:$AB6,1,$A$1) -> 0.531646 | G27: =IF(AND(F27>0,F27<0.005),"<1%",TEXT(F27,"0%")) -> 53%
E28: Green area planted | F28: =INDEX($S7:$AB7,1,$A$1) -> 0.476641 | G28: =IF(AND(F28>0,F28<0.005),"<1%",TEXT(F28,"0%")) -> 48%
E29: Area planted but not harvested | F29: =INDEX($S8:$AB8,1,$A$1) -> 0.012432 | G29: =IF(AND(F29>0,F29<0.005),"<1%",TEXT(F29,"0%")) -> 1%
E32: Base: | F32: =INDEX($S11:$AB11,1,$A$1) -> 39
C33: Partially Irrigated | E33: Field area planted | F33: =INDEX($S12:$AB12,1,$A$1) -> 0.394167 | G33: =IF(AND(F33>0,F33<0.005),"<1%",TEXT(F33,"0%")) -> 39%
E34: Green area planted | F34: =INDEX($S13:$AB13,1,$A$1) -> 0.215918 | G34: =IF(AND(F34>0,F34<0.005),"<1%",TEXT(F34,"0%")) -> 22%
E35: Area planted but not harvested | F35: =INDEX($S14:$AB14,1,$A$1) -> 0.010256 | G35: =IF(AND(F35>0,F35<0.005),"<1%",TEXT(F35,"0%")) -> 1%
E38: Base: | F38: =INDEX($S17:$AB17,1,$A$1) -> 153
C39: Raingrown | Dryland | E39: Field area planted | F39: =INDEX($S18:$AB18,1,$A$1) -> 0.178842 | G39: =IF(AND(F39>0,F39<0.005),"<1%",TEXT(F39,"0%")) -> 18%
E40: Green area planted | F40: =INDEX($S19:$AB19,1,$A$1) -> 0.113033 | G40: =IF(AND(F40>0,F40<0.005),"<1%",TEXT(F40,"0%")) -> 11%
E41: Area planted but not harvested | F41: =INDEX($S20:$AB20,1,$A$1) -> 0.008434 | G41: =IF(AND(F41>0,F41<0.005),"<1%",TEXT(F41,"0%")) -> 1%

Sheet Cotton Yields
E1: 2017 Grower Survey | R1: Data in Focus:
E5: Cotton Crop Details - Cotton Yields
C7: Yields for the 2016-17 cotton growing season (bales per hectare) | L7: ="Results - "&'Data - Cotton Yields'!F1&" growers" -> Results - All cotton growers
D23: *These results are calculated as an average of the highest / lowest yields
D24: from one field as reported by growers in the survey.
C27: ="Base: all cotton growers; n varies (Full, n = "&'Data - Cotton Yields'!F5&", Part, n = "&'Data - Cotton Yields'!F11&", Rain, n = "&'Data - Cotton Yields'!F17&")." -> Base: all cotton growers; n varies (Full, n = 190, Part, n = 40, Rain, n = 154). | J27: =IF('HIDDEN - Backend'!Q17=1,"Source: 2017 Grower Survey, CRDC","") ->  | L27: =IF('Data - Cotton Yields'!A1=1,"","Base: "&'Data - Cotton Yields'!F1&" growers; n = "&'Data - Cotton Yields'!F26&".") ->  | S27: =IF(AND('HIDDEN - Backend'!Q17=1,'HIDDEN - Backend'!Q3>1),"Source: 2017 Grower Survey, CRDC","") -> 
C29: Question: What were your yields for the 2016-17 cotton growing season?

Sheet Data - Cotton Yields (hidden)
A1: ='HIDDEN - Backend'!Q3 -> 1 | E1: Segment | F1: =INDEX($S1:$AB1,1,$A$1) -> All cotton | S1: All cotton | T1: Central Queensland | U1: Darling Downs | V1: Macintyre - Balonne | W1: Northern NSW | X1: Macquarie | Y1: Southern NSW | Z1: Small farm | AA1: Medium farm | AB1: Large farm
C2: CHARTS | Q2: DATA
C4: Focus - Overall | S4: Overall | T4: Central Queensland | U4: Darling Downs | V4: Macintyre - Balonne | W4: Northern NSW | X4: Macquarie | Y4: Southern NSW | Z4: Small (< 1,000 ha) | AA4: Medium (1,000 - 5,000 ha) | AB4: Large (> 5,000 ha)
E5: Base | F5: =INDEX($S5:$AB5,1,1) -> 190 | R5: Base: | S5: 190 | T5: 25 | U5: 34 | V5: 31 | W5: 44 | X5: 24 | Y5: 32 | Z5: 76 | AA5: 86 | AB5: 25
C6: Fully Irrigated | E6: Average yield | F6: =INDEX($S6:$AB6,1,1) -> 9.879105 | G6: =IF(F5=0,"n/a",TEXT(F6,"0.00")) -> 9.88 | P6: Fully Irrigated | R6: Average yield | S6: 9.879105 | T6: 8.8136 | U6: 8.045588 | V6: 10.852903 | W6: 10.918182 | X6: 10.929167 | Y6: 9.5 | Z6: 9.109474 | AA6: 10.395349 | AB6: 10.4484
E7: Highest yield from one field | F7: 11.066471 | G7: =IF(F5=0,"n/a",TEXT(F7,"0.00")) -> 11.07 | R7: Highest yield from one field | S7: 11.066471 | T7: 10.2084 | U7: 9.441563 | V7: 11.423871 | W7: 11.931136 | X7: 11.96875 | Y7: 11.152581 | Z7: 10.165733 | AA7: 11.530698 | AB7: 12.1704
E8: Lowest yield from one field | F8: 8.217743 | G8: =IF(F5=0,"n/a",TEXT(F8,"0.00")) -> 8.22 | R8: Lowest yield from one field | S8: 8.217743 | T8: 6.99712 | U8: 5.921562 | V8: 8.882581 | W8: 9.872045 | X8: 9.333333 | Y8: 7.695806 | Z8: 7.37864 | AA8: 8.796977 | AB8: 8.6752
S10: Overall | T10: Central Queensland | U10: Darling Downs | V10: Macintyre - Balonne | W10: Northern NSW | X10: Macquarie | Y10: Southern NSW | Z10: Small (< 1,000 ha) | AA10: Medium (1,000 - 5,000 ha) | AB10: Large (> 5,000 ha)
E11: Base: | F11: =INDEX($S11:$AB11,1,1) -> 40 | R11: Base: | S11: 40 | T11: 1 | U11: 17 | V11: 8 | W11: 8 | X11: 2 | Y11: 4 | Z11: 18 | AA11: 13 | AB11: 8
C12: Partially Irrigated | E12: Average yield | F12: =INDEX($S12:$AB12,1,1) -> 2.97625 | G12: =IF(F11=0,"n/a",TEXT(F12,"0.00")) -> 2.98 | P12: Partially Irrigated | R12: Average yield | S12: 2.97625 | T12: 0 | U12: 4 | V12: 1 | W12: 5.38125 | X12: 0 | Y12: 0 | Z12: 3.213889 | AA12: 2.553846 | AB12: 2.875
E13: Highest yield from one field | F13: 3.103684 | G13: =IF(F11=0,"n/a",TEXT(F13,"0.00")) -> 3.10 | R13: Highest yield from one field | S13: 3.103684 | T13: 0 | U13: 4.273333 | V13: 1.1875 | W13: 5.5425 | X13: 0 | Y13: 0 | Z13: 3.314118 | AA13: 2.776923 | AB13: 3.1875
E14: Lowest yield from one field | F14: 2.503684 | G14: =IF(F11=0,"n/a",TEXT(F14,"0.00")) -> 2.50 | R14: Lowest yield from one field | S14: 2.503684 | T14: 0 | U14: 3.353333 | V14: 0.75 | W14: 4.855 | X14: 0 | Y14: 0 | Z14: 2.690588 | AA14: 2.261538 | AB14: 2.5
S16: Overall | T16: Central Queensland | U16: Darling Downs | V16: Macintyre - Balonne | W16: Northern NSW | X16: Macquarie | Y16: Southern NSW | Z16: Small (< 1,000 ha) | AA16: Medium (1,000 - 5,000 ha) | AB16: Large (> 5,000 ha)
E17: Base: | F17: =INDEX($S17:$AB17,1,1) -> 154 | R17: Base: | S17: 154 | T17: 10 | U17: 38 | V17: 27 | W17: 47 | X17: 20 | Y17: 12 | Z17: 43 | AA17: 82 | AB17: 27
C18: Raingrown | Dryland | E18: Average yield | F18: =INDEX($S18:$AB18,1,1) -> 0.953312 | G18: =IF(F17=0,"n/a",TEXT(F18,"0.00")) -> 0.95 | P18: Raingrown | Dryland | R18: Average yield | S18: 0.953312 | T18: 1.19 | U18: 1.814211 | V18: 0.535185 | W18: 0.989787 | X18: 0.25 | Y18: 0 | Z18: 1.064884 | AA18: 0.831585 | AB18: 1.138148
E19: Highest yield from one field | F19: 1.268105 | G19: =IF(F17=0,"n/a",TEXT(F19,"0.00")) -> 1.27 | R19: Highest yield from one field | S19: 1.268105 | T19: 1.26 | U19: 2.452757 | V19: 0.687037 | W19: 1.409783 | X19: 0.3 | Y19: 0 | Z19: 1.317209 | AA19: 1.151506 | AB19: 1.560741
E20: Lowest yield from one field | F20: 0.622039 | G20: =IF(F17=0,"n/a",TEXT(F20,"0.00")) -> 0.62 | R20: Lowest yield from one field | S20: 0.622039 | T20: 0.8 | U20: 1.248649 | V20: 0.392593 | W20: 0.55413 | X20: 0.213 | Y20: 0 | Z20: 0.75093 | AA20: 0.541481 | AB20: 0.666667
C25: Focus - Segment
E26: Base | F26: =INDEX($S5:$AB5,1,$A$1) -> 190
C27: Fully Irrigated | E27: Average yield | F27: =INDEX($S6:$AB6,1,$A$1) -> 9.879105 | G27: =IF(F26=0,"n/a",TEXT(F27,"0.00")) -> 9.88
E28: Highest yield from one field | F28: =INDEX($S7:$AB7,1,$A$1) -> 11.066471 | G28: =IF(F26=0,"n/a",TEXT(F28,"0.00")) -> 11.07
E29: Lowest yield from one field | F29: =INDEX($S8:$AB8,1,$A$1) -> 8.217743 | G29: =IF(F26=0,"n/a",TEXT(F29,"0.00")) -> 8.22
E32: Base: | F32: =INDEX($S11:$AB11,1,$A$1) -> 40
C33: Partially Irrigated | E33: Average yield | F33: =INDEX($S12:$AB12,1,$A$1) -> 2.97625 | G33: =IF(F32=0,"n/a",TEXT(F33,"0.00")) -> 2.98
E34: Highest yield from one field | F34: =INDEX($S13:$AB13,1,$A$1) -> 3.103684 | G34: =IF(F32=0,"n/a",TEXT(F34,"0.00")) -> 3.10
E35: Lowest yield from one field | F35: =INDEX($S14:$AB14,1,$A$1) -> 2.503684 | G35: =IF(F32=0,"n/a",TEXT(F35,"0.00")) -> 2.50
E38: Base: | F38: =INDEX($S17:$AB17,1,$A$1) -> 154
C39: Raingrown | Dryland | E39: Average yield | F39: =INDEX($S18:$AB18,1,$A$1) -> 0.953312 | G39: =IF(F38=0,"n/a",TEXT(F39,"0.00")) -> 0.95
E40: Highest yield from one field | F40: =INDEX($S19:$AB19,1,$A$1) -> 1.268105 | G40: =IF(F38=0,"n/a",TEXT(F40,"0.00")) -> 1.27
E41: Lowest yield from one field | F41: =INDEX($S20:$AB20,1,$A$1) -> 0.622039 | G41: =IF(F38=0,"n/a",TEXT(F41,"0.00")) -> 0.62

Sheet Applications to Crop
E1: 2017 Grower Survey | R1: Data in Focus:
E5: Cotton Crop Details - Applications to Crop
C7: Average water and nitrogen applied for the 2016-17 cotton growing season
L9: .
F10: PER HECTARE | M10: =IF('Data - Applications to Crop'!C4=1,"Per Hectare","Per Bale")&" - "&'Data - Applications to Crop'!J1&" growers" -> Per Hectare - All cotton growers
G11: Water | J11: Nitrogen | N11: Water | Q11: Nitrogen
G12: (mega litres) | J12: (kg) | N12: (mega litres) | Q12: (kg)
D15: Fully irrigated
D21: Partially irrigated
C26: ="Base: all cotton growers; n varies " -> Base: all cotton growers; n varies | L26: =IF('Data - Applications to Crop'!A1=1,"","Base: "&'Data - Applications to Crop'!J1&" growers; n varies ") -> 
C27: ="(Fully irrigated, n = "&'Data - Applications to Crop'!J5&", Partially Irrigated, n = "&'Data - Applications to Crop'!J9&")." -> (Fully irrigated, n = 187, Partially Irrigated, n = 41). | J27: =IF('HIDDEN - Backend'!Q17=1,"Source: 2017 Grower Survey, CRDC","") ->  | L27: =IF('Data - Applications to Crop'!A1=1,"","(Fully irrigated, n = "&'Data - Applications to Crop'!J16&", Partially Irrigated, n = "&'Data - Applications to Crop'!J20&").") ->  | S27: =IF(AND('HIDDEN - Backend'!Q17=1,'HIDDEN - Backend'!Q3>1),"Source: 2017 Grower Survey, CRDC","") -> 
C29: Question: How much water (in mega litres) and nitrogen (in kilograms) on average (per ha) was applied during the 2016-17 cotton growing season?

Sheet Data - Applications to Crop (hidden)
A1: ='HIDDEN - Backend'!Q3 -> 1 | I1: Segment | J1: =INDEX($T1:$AC1,1,$A$1) -> All cotton | T1: All cotton | U1: Central Queensland | V1: Darling Downs | W1: Macintyre - Balonne | X1: Northern NSW | Y1: Macquarie | Z1: Southern NSW | AA1: Small farm | AB1: Medium farm | AC1: Large farm
C2: MENU | G2: CHARTS | R2: DATA
C4: 1 | D4: =VLOOKUP(C4,C5:D6,2,0) -> Per Hectare - All cotton growers | G4: Focus - Overall | L4: Label | T4: Overall | U4: Central Queensland | V4: Darling Downs | W4: Macintyre - Balonne | X4: Northern NSW | Y4: Macquarie | Z4: Southern NSW | AA4: Small (< 1,000 ha) | AB4: Medium (1,000 - 5,000 ha) | AC4: Large (> 5,000 ha)
C5: 1 | D5: Per Hectare - All cotton growers | I5: Base | J5: =IF(C$4=1,INDEX($T5:$AC5,1,1),INDEX($T16:$AC16,1,1)) -> 187 | S5: Base | T5: 187 | U5: 24 | V5: 34 | W5: 31 | X5: 44 | Y5: 23 | Z5: 31 | AA5: 74 | AB5: 85 | AC5: 25
C6: 2 | D6: Per Bale - All cotton growers | G6: =D4 -> Per Hectare - All cotton growers | I6: Fully Irrigated - ML/ha | J6: =IF(C$4=1,INDEX($T6:$AC6,1,1),INDEX($T17:$AC17,1,1)) -> 7.880510753 | L6: =IF(J5=0,"n/a",TEXT(J6,"0.00")&" "&IF(C$4=1,"ML/ha","ML/ba")) -> 7.88 ML/ha | Q6: Per Hectare | S6: Fully Irrigated - ML/ha | T6: 7.880510753 | U6: 7.33125 | V6: 4.541176471 | W6: 9.416666667 | X6: 8.011022727 | Y6: 9.191304348 | Z6: 9.323870968 | AA6: 6.972162162 | AB6: 8.474823529 | AC6: 8.599375
I7: Fully Irrigated - kg/ha | J7: 298.2620321 | L7: =IF(J5=0,"n/a",TEXT(J7,"0")&" "&IF(C$4=1,"kg/ha","kg/ba")) -> 298 kg/ha | S7: Fully Irrigated - kg/ha | T7: 298.2620321 | U7: 310.25 | V7: 227.8529412 | W7: 345.8709677 | X7: 294.7954545 | Y7: 297.5217391 | Z7: 324.0645161 | AA7: 288.2432432 | AB7: 302.5058824 | AC7: 318.48
I9: Base | J9: =IF(C$4=1,INDEX($T9:$AC9,1,1),INDEX($T20:$AC20,1,1)) -> 41 | S9: Base | T9: 41 | U9: 1 | V9: 17 | W9: 8 | X9: 8 | Y9: 2 | Z9: 5 | AA9: 18 | AB9: 14 | AC9: 8
G10: =D4 -> Per Hectare - All cotton growers | I10: Partially Irrigated - ML/ha | J10: =IF(C$4=1,INDEX($T10:$AC10,1,1),INDEX($T21:$AC21,1,1)) -> 1.431707317 | L10: =IF(J9=0,"n/a",TEXT(J10,"0.00")&" "&IF(C$4=1,"ML/ha","ML/ba")) -> 1.43 ML/ha | Q10: Per Hectare | S10: Partially Irrigated - ML/ha | T10: 1.431707317 | U10: 2 | V10: 1.482352941 | W10: 0.5 | X10: 2.6125 | Y10: 0 | Z10: 1.32 | AA10: 1.125 | AB10: 1.603571429 | AC10: 1.625
I11: Partially Irrigated - kg/ha | J11: 97.34146341 | L11: =IF(J9=0,"n/a",TEXT(J11,"0")&" "&IF(C$4=1,"kg/ha","kg/ba")) -> 97 kg/ha | S11: Partially Irrigated - kg/ha | T11: 97.34146341 | U11: 140 | V11: 128.2941176 | W11: 37.5 | X11: 96.25 | Y11: 0 | Z11: 120 | AA11: 95.27777778 | AB11: 96.85714286 | AC11: 90
G15: Focus - Segment | T15: Overall | U15: Central Queensland | V15: Darling Downs | W15: Macintyre - Balonne | X15: Northern NSW | Y15: Macquarie | Z15: Southern NSW | AA15: Small (< 1,000 ha) | AB15: Medium (1,000 - 5,000 ha) | AC15: Large (> 5,000 ha)
I16: Base | J16: =IF(C$4=1,INDEX($T5:$AC5,1,$A$1),INDEX($T16:$AC16,1,$A$1)) -> 187 | T16: 185 | U16: 24 | V16: 32 | W16: 31 | X16: 44 | Y16: 23 | Z16: 31 | AA16: 73 | AB16: 84 | AC16: 25
G17: =D4 -> Per Hectare - All cotton growers | I17: Fully Irrigated - ML/ha | J17: =IF(C$4=1,INDEX($T6:$AC6,1,$A$1),INDEX($T17:$AC17,1,$A$1)) -> 7.880510753 | L17: =IF(J16=0,"n/a",TEXT(J17,"0.00")&" "&IF(C$4=1,"ML/ha","ML/ba")) -> 7.88 ML/ha | Q17: Per Bale | S17: WaterUseMLperBale_Full | T17: 0.8191 | U17: 0.9356 | V17: 0.5823 | W17: 0.8891 | X17: 0.7366 | Y17: 0.854 | Z17: 0.9968 | AA17: 0.8132 | AB17: 0.8186 | AC17: 0.8381
I18: Fully Irrigated - kg/ha | J18: 298.2620321 | L18: =IF(J16=0,"n/a",TEXT(J18,"0")&" "&IF(C$4=1,"kg/ha","kg/ba")) -> 298 kg/ha | S18: NitrogenUseKGperBale_Full | T18: 31.5742 | U18: 38.5291 | V18: 31.7478 | W18: 32.2441 | X18: 26.824 | Y18: 27.6598 | Z18: 34.9871 | AA18: 34.4357 | AB18: 29.3808 | AC18: 31.193
I20: Base | J20: =IF(C$4=1,INDEX($T9:$AC9,1,$A$1),INDEX($T20:$AC20,1,$A$1)) -> 41 | T20: 18 | U20: 0 | V20: 11 | W20: 1 | X20: 6 | Y20: 0 | Z20: 0 | AA20: 8 | AB20: 6 | AC20: 3
G21: =D4 -> Per Hectare - All cotton growers | I21: Partially Irrigated - ML/ha | J21: 1.431707317 | L21: =IF(J20=0,"n/a",TEXT(J21,"0.00")&" "&IF(C$4=1,"ML/ha","ML/ba")) -> 1.43 ML/ha | Q21: Per Bale | S21: WaterUseMLperBale_Part | T21: 0.4441 | U21: 0 | V21: 0.4136 | W21: 0.5 | X21: 0.4907 | Y21: 0 | Z21: 0 | AA21: 0.3217 | AB21: 0.52 | AC21: 0.5667
I22: Partially Irrigated - kg/ha | J22: 97.34146341 | L22: =IF(J20=0,"n/a",TEXT(J22,"0")&" "&IF(C$4=1,"kg/ha","kg/ba")) -> 97 kg/ha | S22: NitrogenUseKGperBale_Part | T22: 27.0052 | U22: 0 | V22: 31.4356 | W22: 37.5 | X22: 17.1338 | Y22: 0 | Z22: 0 | AA22: 25.6127 | AB22: 24.1155 | AC22: 32.1667

Sheet Quality Discounts
E1: 2017 Grower Survey
E5: Cotton Crop Details - Quality Discounts
H7: Which three quality discounts (if any) impacted the largest number of bales of your 2016-17 cotton crop?
C27: ="Base: all cotton growers; n = "&'Data - Quality Discounts'!F5&"." -> Base: all cotton growers; n = 214. | S27: =IF('HIDDEN - Backend'!Q17=1,"Source: 2017 Grower Survey, CRDC","") -> 
C29: Question: Which three quality discounts (if any) impacted the largest number of bales of your 2016-17 cotton crop? ^Multiple responses accepted (up to three). Results may not add to 100%.

Sheet Data - Quality Discounts (hidden)
A1: ='HIDDEN - Backend'!Q3 -> 1 | E1: Segment | F1: =INDEX($S1:$AB1,1,$A$1) -> All cotton | S1: All cotton | T1: Central Queensland | U1: Darling Downs | V1: Macintyre - Balonne | W1: Northern NSW | X1: Macquarie | Y1: Southern NSW | Z1: Small farm | AA1: Medium farm | AB1: Large farm
C2: CHARTS | Q2: DATA
C4: Focus - Overall | G4: Rank | J4: Re-order | L4: Label | S4: Overall | T4: Central Queensland | U4: Darling Downs | V4: Macintyre - Balonne | W4: Northern NSW | X4: Macquarie | Y4: Southern NSW | Z4: Small (< 1,000 ha) | AA4: Medium (1,000 - 5,000 ha) | AB4: Large (> 5,000 ha)
E5: Base | F5: =INDEX($S5:$AB5,1,1) -> 214 | R5: Base: | S5: 214 | T5: 25 | U5: 48 | V5: 34 | W5: 53 | X5: 24 | Y5: 30 | Z5: 83 | AA5: 100 | AB5: 28
E6: Colour | F6: =INDEX($S6:$AB6,1,1) -> 0.317757 | G6: =RANK(F6,$F$6:$F$12) -> 2 | I6: 1 | J6: =INDEX($E$6:$G$14,MATCH($I6,$G$6:$G$14,0),1) -> Leaf | K6: =INDEX($E$6:$G$14,MATCH($I6,$G$6:$G$14,0),2) -> 0.401869 | L6: =IF(AND(K6>0,K6<0.005),"<1%",TEXT(K6,"0%")) -> 40% | R6: Colour | S6: 0.317757 | T6: 0.36 | U6: 0.375 | V6: 0.470588 | W6: 0.245283 | X6: 0.166667 | Y6: 0.266667 | Z6: 0.253012 | AA6: 0.32 | AB6: 0.5
E7: Leaf | F7: 0.401869 | G7: =RANK(F7,$F$6:$F$12)+COUNTIF($G$6:G6,RANK(F7,$F$6:$F$12)) -> 1 | I7: 2 | J7: =INDEX($E$6:$G$14,MATCH($I7,$G$6:$G$14,0),1) -> Colour | K7: =INDEX($E$6:$G$14,MATCH($I7,$G$6:$G$14,0),2) -> 0.317757 | L7: =IF(AND(K7>0,K7<0.005),"<1%",TEXT(K7,"0%")) -> 32% | R7: Leaf | S7: 0.401869 | T7: 0.08 | U7: 0.395833 | V7: 0.558824 | W7: 0.415094 | X7: 0.666667 | Y7: 0.266667 | Z7: 0.289157 | AA7: 0.44 | AB7: 0.571429
E8: Length | F8: 0.168224 | G8: =RANK(F8,$F$6:$F$12)+COUNTIF($G$6:G7,RANK(F8,$F$6:$F$12)) -> 4 | I8: 3 | J8: High Micronaire | K8: 0.285047 | L8: 29% | R8: Length | S8: 0.168224 | T8: 0.04 | U8: 0.4375 | V8: 0.117647 | W8: 0.150943 | X8: 0.083333 | Y8: 0 | Z8: 0.13253 | AA8: 0.18 | AB8: 0.214286
E9: Strength | F9: 0.074766 | G9: =RANK(F9,$F$6:$F$12)+COUNTIF($G$6:G8,RANK(F9,$F$6:$F$12)) -> 5 | I9: 4 | J9: Length | K9: 0.168224 | L9: 17% | R9: Strength | S9: 0.074766 | T9: 0.08 | U9: 0.166667 | V9: 0.029412 | W9: 0.075472 | X9: 0 | Y9: 0.033333 | Z9: 0.084337 | AA9: 0.06 | AB9: 0.071429
E10: Honeydew | F10: 0.004673 | G10: =RANK(F10,$F$6:$F$12)+COUNTIF($G$6:G9,RANK(F10,$F$6:$F$12)) -> 7 | I10: 5 | J10: Strength | K10: 0.074766 | L10: 7% | R10: Honeydew | S10: 0.004673 | T10: 0 | U10: 0 | V10: 0.029412 | W10: 0 | X10: 0 | Y10: 0 | Z10: 0 | AA10: 0.01 | AB10: 0
E11: High Micronaire | F11: 0.285047 | G11: =RANK(F11,$F$6:$F$12)+COUNTIF($G$6:G10,RANK(F11,$F$6:$F$12)) -> 3 | I11: 6 | J11: Low Micronaire | K11: 0.070093 | L11: 7% | R11: High Micronaire | S11: 0.285047 | T11: 0.36 | U11: 0.1875 | V11: 0.470588 | W11: 0.433962 | X11: 0.125 | Y11: 0.033333 | Z11: 0.277108 | AA11: 0.25 | AB11: 0.428571
E12: Low Micronaire | F12: 0.070093 | G12: =RANK(F12,$F$6:$F$12)+COUNTIF($G$6:G11,RANK(F12,$F$6:$F$12)) -> 6 | I12: 7 | J12: Honeydew | K12: 0.004673 | L12: <1% | R12: Low Micronaire | S12: 0.070093 | T12: 0 | U12: 0.041667 | V12: 0 | W12: 0.037736 | X12: 0.083333 | Y12: 0.3 | Z12: 0.096386 | AA12: 0.07 | AB12: 0
E13: Other (please specify) | F13: 0.074766 | G13: 8 | I13: 8 | J13: Other (please specify) | K13: 0.074766 | L13: 7% | R13: Other (please specify) | S13: 0.074766 | T13: 0.04 | U13: 0.125 | V13: 0.058824 | W13: 0.018868 | X13: 0.083333 | Y13: 0.133333 | Z13: 0.072289 | AA13: 0.08 | AB13: 0.071429
E14: None of these | F14: 0.154206 | G14: 9 | I14: 9 | J14: None of these | K14: 0.154206 | L14: 15% | R14: None of these | S14: 0.154206 | T14: 0.28 | U14: 0.104167 | V14: 0.088235 | W14: 0.188679 | X14: 0.083333 | Y14: 0.2 | Z14: 0.216867 | AA14: 0.11 | AB14: 0.107143
C19: Focus - Segment | J19: Re-order to same order as above | L19: Label
E20: Base | F20: =INDEX($S5:$AB5,1,$A$1) -> 214
E21: Colour | F21: =INDEX($S6:$AB6,1,$A$1) -> 0.317757 | J21: =INDEX($E$21:$G$29,MATCH($J6,$E$21:$E$29,0),1) -> Leaf | K21: =INDEX($E$21:$G$29,MATCH($J6,$E$21:$E$29,0),2) -> 0.401869 | L21: =IF(AND(K21>0,K21<0.005),"<1%",TEXT(K21,"0%")) -> 40%
E22: Leaf | F22: 0.401869 | J22: =INDEX($E$21:$G$29,MATCH($J7,$E$21:$E$29,0),1) -> Colour | K22: =INDEX($E$21:$G$29,MATCH($J7,$E$21:$E$29,0),2) -> 0.317757 | L22: 32%
E23: Length | F23: 0.168224 | J23: High Micronaire | K23: 0.285047 | L23: 29%
E24: Strength | F24: 0.074766 | J24: Length | K24: 0.168224 | L24: 17%
E25: Honeydew | F25: 0.004673 | J25: Strength | K25: 0.074766 | L25: 7%
E26: High Micronaire | F26: 0.285047 | J26: Low Micronaire | K26: 0.070093 | L26: 7%
E27: Low Micronaire | F27: 0.070093 | J27: Honeydew | K27: 0.004673 | L27: <1%
E28: Other (please specify) | F28: 0.074766 | J28: Other (please specify) | K28: 0.074766 | L28: 7%
E29: None of these | F29: 0.154206 | J29: None of these | K29: 0.154206 | L29: 15%

Sheet Largest Discount
E1: 2017 Grower Survey
E5: Cotton Crop Details - Largest Discount
G7: Which of these resulted in the largest total discount on your 2016-17 crop?
C27: ="Base: all cotton growers who had at least one quality discount; n = "&'Data - Largest Discount'!F5&"." -> Base: all cotton growers who had at least one quality discount; n = 179. | S27: =IF('HIDDEN - Backend'!Q17=1,"Source: 2017 Grower Survey, CRDC","") -> 
C29: Question: Which of these resulted in the largest total discount on your 2016-17 crop?

Sheet Data - Largest Discount (hidden)
A1: ='HIDDEN - Backend'!Q3 -> 1 | E1: Segment | F1: =INDEX($S1:$AB1,1,$A$1) -> All cotton | S1: All cotton | T1: Central Queensland | U1: Darling Downs | V1: Macintyre - Balonne | W1: Northern NSW | X1: Macquarie | Y1: Southern NSW | Z1: Small farm | AA1: Medium farm | AB1: Large farm
C2: CHARTS | Q2: DATA
C4: Focus - Overall | G4: Rank | J4: Re-order | L4: Label | S4: Overall | T4: Central Queensland | U4: Darling Downs | V4: Macintyre - Balonne | W4: Northern NSW | X4: Macquarie | Y4: Southern NSW | Z4: Small (< 1,000 ha) | AA4: Medium (1,000 - 5,000 ha) | AB4: Large (> 5,000 ha)
E5: Base | F5: =INDEX($S5:$AB5,1,1) -> 179 | R5: Base: | S5: 179 | T5: 18 | U5: 41 | V5: 31 | W5: 43 | X5: 22 | Y5: 24 | Z5: 64 | AA5: 88 | AB5: 25
E6: Colour | F6: =INDEX($S6:$AB6,1,1) -> 0.2234636872 | G6: =RANK(F6,$F$6:$F$12) -> 2 | I6: 1 | J6: =INDEX($E$6:$G$13,MATCH($I6,$G$6:$G$13,0),1) -> Leaf | K6: =INDEX($E$6:$G$13,MATCH($I6,$G$6:$G$13,0),2) -> 0.2960893855 | L6: =IF(AND(K6>0,K6<0.005),"<1%",TEXT(K6,"0%")) -> 30% | R6: Colour | S6: 0.2234636872 | T6: 0.4444444444 | U6: 0.2195121951 | V6: 0.2580645161 | W6: 0.1162790698 | X6: 0.1363636364 | Y6: 0.2916666667 | Z6: 0.203125 | AA6: 0.2272727273 | AB6: 0.28
E7: Leaf | F7: 0.2960893855 | G7: =RANK(F7,$F$6:$F$12)+COUNTIF($G$6:G6,RANK(F7,$F$6:$F$12)) -> 1 | I7: 2 | J7: Colour | K7: 0.2234636872 | L7: =IF(AND(K7>0,K7<0.005),"<1%",TEXT(K7,"0%")) -> 22% | R7: Leaf | S7: 0.2960893855 | T7: 0.05555555556 | U7: 0.1707317073 | V7: 0.2903225806 | W7: 0.3720930233 | X7: 0.6818181818 | Y7: 0.2083333333 | Z7: 0.21875 | AA7: 0.3522727273 | AB7: 0.32
E8: Length | F8: 0.1340782123 | G8: =RANK(F8,$F$6:$F$12)+COUNTIF($G$6:G7,RANK(F8,$F$6:$F$12)) -> 4 | I8: 3 | J8: High Micronaire | K8: 0.1899441341 | L8: 19% | R8: Length | S8: 0.1340782123 | T8: 0 | U8: 0.2926829268 | V8: 0.09677419355 | W8: 0.1860465116 | X8: 0.04545454545 | Y8: 0 | Z8: 0.078125 | AA8: 0.1477272727 | AB8: 0.2
E9: Strength | F9: 0.02793296089 | G9: =RANK(F9,$F$6:$F$12)+COUNTIF($G$6:G8,RANK(F9,$F$6:$F$12)) -> 6 | I9: 4 | J9: Length | K9: 0.1340782123 | L9: 13% | R9: Strength | S9: 0.02793296089 | T9: 0.05555555556 | U9: 0.07317073171 | V9: 0 | W9: 0.02325581395 | X9: 0 | Y9: 0 | Z9: 0.046875 | AA9: 0.02272727273 | AB9: 0
E10: Honeydew | F10: 0 | G10: =RANK(F10,$F$6:$F$12)+COUNTIF($G$6:G9,RANK(F10,$F$6:$F$12)) -> 7 | I10: 5 | J10: Low Micronaire | K10: 0.06145251397 | L10: 6% | R10: Honeydew | S10: 0 | T10: 0 | U10: 0 | V10: 0 | W10: 0 | X10: 0 | Y10: 0 | Z10: 0 | AA10: 0 | AB10: 0
E11: High Micronaire | F11: 0.1899441341 | G11: =RANK(F11,$F$6:$F$12)+COUNTIF($G$6:G10,RANK(F11,$F$6:$F$12)) -> 3 | I11: 6 | J11: Strength | K11: 0.02793296089 | L11: 3% | R11: High Micronaire | S11: 0.1899441341 | T11: 0.3888888889 | U11: 0.07317073171 | V11: 0.3225806452 | W11: 0.2790697674 | X11: 0.09090909091 | Y11: 0 | Z11: 0.265625 | AA11: 0.125 | AB11: 0.2
E12: Low Micronaire | F12: 0.06145251397 | G12: =RANK(F12,$F$6:$F$12)+COUNTIF($G$6:G11,RANK(F12,$F$6:$F$12)) -> 5 | I12: 7 | J12: Honeydew | K12: 0 | L12: 0% | R12: Low Micronaire | S12: 0.06145251397 | T12: 0 | U12: 0.0243902439 | V12: 0 | W12: 0.02325581395 | X12: 0.04545454545 | Y12: 0.3333333333 | Z12: 0.109375 | AA12: 0.04545454545 | AB12: 0
E13: Other (please specify) | F13: 0.06703910615 | G13: 8 | I13: 8 | J13: Other (please specify) | K13: 0.06703910615 | L13: 7% | R13: Other ("[question("value"), id="20", option="10065"]") | S13: 0.06703910615 | T13: 0.05555555556 | U13: 0.1463414634 | V13: 0.03225806452 | W13: 0 | X13: 0 | Y13: 0.1666666667 | Z13: 0.078125 | AA13: 0.07954545455 | AB13: 0
C18: Focus - Segment | J18: Re-order to same order as above | L18: Label
E19: Base | F19: =INDEX($S5:$AB5,1,$A$1) -> 179
E20: Colour | F20: 0.2234636872 | J20: =INDEX($E$20:$G$27,MATCH($J6,$E$20:$E$27,0),1) -> Leaf | K20: =INDEX($E$20:$G$27,MATCH($J6,$E$20:$E$27,0),2) -> 0.2960893855 | L20: =IF(AND(K20>0,K20<0.005),"<1%",TEXT(K20,"0%")) -> 30%
E21: Leaf | F21: 0.2960893855 | J21: Colour | K21: 0.2234636872 | L21: 22%
E22: Length | F22: 0.1340782123 | J22: High Micronaire | K22: 0.1899441341 | L22: 19%
E23: Strength | F23: 0.02793296089 | J23: Length | K23: 0.1340782123 | L23: 13%
E24: Honeydew | F24: 0 | J24: Low Micronaire | K24: 0.06145251397 | L24: 6%
E25: High Micronaire | F25: 0.1899441341 | J25: Strength | K25: 0.02793296089 | L25: 3%
E26: Low Micronaire | F26: 0.06145251397 | J26: Honeydew | K26: 0 | L26: 0%
E27: Other (please specify) | F27: 0.06703910615 | J27: Other (please specify) | K27: 0.06703910615 | L27: 7%

Sheet Widely Used Practices
E1: 2017 Grower Survey | R1: Data in Focus:
E5: Weeds, Pests and Disease Control - Widely Used Practices
C7: Insect pests, disease and weed management practices in 2016-17 cotton fields | L7: ="Results - "&'Data - Widely Used Practices'!F1&" growers" -> Results - All cotton growers
C27: ="Base: all cotton growers; n = "&'Data - Widely Used Practices'!F16&"." -> Base: all cotton growers; n = 205. | J27: =IF('HIDDEN - Backend'!Q17=1,"Source: 2017 Grower Survey, CRDC","") ->  | L27: =IF('Data - Widely Used Practices'!A1=1,"","Base: "&'Data - Widely Used Practices'!F1&" growers; n = "&'Data - Widely Used Practices'!F41&".") ->  | S27: =IF(AND('HIDDEN - Backend'!Q17=1,'HIDDEN - Backend'!Q3>1),"Source: 2017 Grower Survey, CRDC","") -> 
C29: Question: With regards to insect pests, disease and weed management in 2016-17 cotton fields, how widely used (in terms of hectares) are the practices listed below:

Sheet Data - Widely Used Practices (hidden)
A1: ='HIDDEN - Backend'!Q3 -> 1 | E1: Segment | F1: =INDEX($S1:$AB1,1,$A$1) -> All cotton | S1: All cotton | T1: Central Queensland | U1: Darling Downs | V1: Macintyre - Balonne | W1: Northern NSW | X1: Macquarie | Y1: Southern NSW | Z1: Small farm | AA1: Medium farm | AB1: Large farm
C2: CHARTS | Q2: DATA
C4: Focus - Overall | G4: Rank | J4: Re-order | L4: Label | S4: Overall | T4: Central Queensland | U4: Darling Downs | V4: Macintyre - Balonne | W4: Northern NSW | X4: Macquarie | Y4: Southern NSW | Z4: Small (< 1,000 ha) | AA4: Medium (1,000 - 5,000 ha) | AB4: Large (> 5,000 ha)
E5: Base | F5: =INDEX($S5:$AB5,1,1) -> 187 | R5: Base: | S5: 187 | T5: 24 | U5: 46 | V5: 26 | W5: 45 | X5: 21 | Y5: 27 | Z5: 78 | AA5: 85 | AB5: 23
C6: Total Cotton Ha (where practice is used) (proportion) | E6: The industry’s recommended sampling strategies are used to monitor pest abundance and plant damage | F6: =INDEX($S6:$AB6,1,1) -> 0.3788773833 | G6: =RANK(F6,$F$6:$F$13) -> 5 | I6: 1 | J6: =INDEX($E$6:$G$13,MATCH($I6,$G$6:$G$13,0),1) -> Weed hosts are controlled to prevent pest build up | K6: =INDEX($E$6:$G$13,MATCH($I6,$G$6:$G$13,0),2) -> 0.4021793783 | L6: =IF(AND(K6>0,K6<0.005),"<1%",TEXT(K6,"0%")) -> 40% | P6: Total Cotton Ha (where practice is used) (proportion) | R6: The industry’s recommended sampling strategies are used to monitor pest abundance and plant damage | S6: 0.3788773833 | T6: 0.5200005301 | U6: 0.4489304629 | V6: 0.3799629879 | W6: 0.3606722972 | X6: 0.2276170558 | Y6: 0.2924216773 | Z6: 0.4735002654 | AA6: 0.3105603693 | AB6: 0.3001381608
E7: The industry’s recommended thresholds are used when making pest control decisions | F7: 0.3937273391 | G7: =RANK(F7,$F$6:$F$13)+COUNTIF($G$6:G6,RANK(F7,$F$6:$F$13)) -> 2 | I7: 2 | J7: The industry’s recommended thresholds are used when making pest control decisions | K7: 0.3937273391 | L7: =IF(AND(K7>0,K7<0.005),"<1%",TEXT(K7,"0%")) -> 39% | R7: The industry’s recommended thresholds are used when making pest control decisions | S7: 0.3937273391 | T7: 0.5353252054 | U7: 0.4766722302 | V7: 0.4071745653 | W7: 0.3532616749 | X7: 0.2215400532 | Y7: 0.316920754 | Z7: 0.4907913073 | AA7: 0.320792444 | AB7: 0.305213834
E8: The IRMS is followed when selecting insecticides/miticides | F8: 0.3835286567 | G8: =RANK(F8,$F$6:$F$13)+COUNTIF($G$6:G7,RANK(F8,$F$6:$F$13)) -> 4 | I8: 3 | J8: Pesticides selection aims to conserve beneficial insects whenever possible | K8: 0.3894934959 | L8: 39% | R8: The IRMS is followed when selecting insecticides/miticides | S8: 0.3835286567 | T8: 0.5133545443 | U8: 0.4498195753 | V8: 0.3745474454 | W8: 0.3585547396 | X8: 0.2350647371 | Y8: 0.3001233997 | Z8: 0.4705830307 | AA8: 0.3195736045 | AB8: 0.3001381608
E9: Pesticides selection aims to conserve beneficial insects whenever possible | F9: 0.3894934959 | G9: =RANK(F9,$F$6:$F$13)+COUNTIF($G$6:G8,RANK(F9,$F$6:$F$13)) -> 3 | I9: 4 | J9: The IRMS is followed when selecting insecticides/miticides | K9: 0.3835286567 | L9: 38% | R9: Pesticides selection aims to conserve beneficial insects whenever possible | S9: 0.3894934959 | T9: 0.5336314383 | U9: 0.4613591118 | V9: 0.3678807787 | W9: 0.3534253219 | X9: 0.2215400532 | Y9: 0.3483531602 | Z9: 0.4889699712 | AA9: 0.3170572642 | AB9: 0.3001381608
E10: Weed hosts are controlled to prevent pest build up | F10: 0.4021793783 | G10: =RANK(F10,$F$6:$F$13)+COUNTIF($G$6:G9,RANK(F10,$F$6:$F$13)) -> 1 | I10: 5 | J10: The industry’s recommended sampling strategies are used to monitor pest abundance and plant damage | K10: 0.3788773833 | L10: 38% | R10: Weed hosts are controlled to prevent pest build up | S10: 0.4021793783 | T10: 0.5213855607 | U10: 0.4985419697 | V10: 0.3751647081 | W10: 0.3701461256 | X10: 0.2306170558 | Y10: 0.3297241174 | Z10: 0.5033162795 | AA10: 0.3297919458 | AB10: 0.3001381608
E11: Rotations cropping decisions consider cotton pest risks | F11: 0.366049429 | G11: =RANK(F11,$F$6:$F$13)+COUNTIF($G$6:G10,RANK(F11,$F$6:$F$13)) -> 7 | I11: 6 | J11: Rotations are used as part of integrated weed management strategy | K11: 0.3760377868 | L11: 38% | R11: Rotations cropping decisions consider cotton pest risks | S11: 0.366049429 | T11: 0.4448207695 | U11: 0.5042815181 | V11: 0.2727410479 | W11: 0.3421448191 | X11: 0.1961813441 | Y11: 0.3406628174 | Z11: 0.4536325892 | AA11: 0.320775163 | AB11: 0.2669462357
E12: Rotations cropping decisions consider cotton disease risks | F12: 0.3593866651 | G12: =RANK(F12,$F$6:$F$13)+COUNTIF($G$6:G11,RANK(F12,$F$6:$F$13)) -> 8 | I12: 7 | J12: Rotations cropping decisions consider cotton pest risks | K12: 0.366049429 | L12: 37% | R12: Rotations cropping decisions consider cotton disease risks | S12: 0.3593866651 | T12: 0.4381791912 | U12: 0.5181024879 | V12: 0.2705762695 | W12: 0.32723967 | X12: 0.1951813441 | Y12: 0.3241700326 | Z12: 0.4467375864 | AA12: 0.3090585841 | AB12: 0.2669462357
E13: Rotations are used as part of integrated weed management strategy | F13: 0.3760377868 | G13: =RANK(F13,$F$6:$F$13)+COUNTIF($G$6:G12,RANK(F13,$F$6:$F$13)) -> 6 | I13: 8 | J13: Rotations cropping decisions consider cotton disease risks | K13: 0.3593866651 | L13: 36% | R13: Rotations are used as part of integrated weed management strategy | S13: 0.3760377868 | T13: 0.4193472823 | U13: 0.5049771643 | V13: 0.3052001351 | W13: 0.3593858413 | X13: 0.2580162436 | Y13: 0.3183753643 | Z13: 0.4567124223 | AA13: 0.3312350488 | AB13: 0.2669462357
J15: Re-order to same order as above | L15: Label | S15: Overall | T15: Central Queensland | U15: Darling Downs | V15: Macintyre - Balonne | W15: Northern NSW | X15: Macquarie | Y15: Southern NSW | Z15: Small (< 1,000 ha) | AA15: Medium (1,000 - 5,000 ha) | AB15: Large (> 5,000 ha)
E16: Base | F16: =INDEX($S16:$AB16,1,1) -> 205 | R16: Base: | S16: 205 | T16: 25 | U16: 48 | V16: 30 | W16: 48 | X16: 23 | Y16: 31 | Z16: 80 | AA16: 97 | AB16: 25
C17: Proportion of growers who have used practice in 2016-17 cotton fields | E17: The industry’s recommended sampling strategies are used to monitor pest abundance and plant damage | F17: 0.8731707317 | G17: =IF(AND(F17>0,F17<0.005),"<1%",TEXT(F17,"0%")) -> 87% | J17: =INDEX($E$17:$G$24,MATCH($J6,$E$17:$E$24,0),1) -> Weed hosts are controlled to prevent pest build up | K17: =INDEX($E$17:$G$24,MATCH($J6,$E$17:$E$24,0),2) -> 0.8682926829 | L17: =IF(AND(K17>0,K17<0.005),"<1%",TEXT(K17,"0%")) -> 87% | P17: Proportion of growers who have used practice in 2016-17 cotton fields | R17: The industry’s recommended sampling strategies are used to monitor pest abundance and plant damage | S17: 0.8731707317 | T17: 0.88 | U17: 0.875 | V17: 0.8333333333 | W17: 0.9166666667 | X17: 0.8695652174 | Y17: 0.8387096774 | Z17: 0.8875 | AA17: 0.8762886598 | AB17: 0.84
E18: The industry’s recommended thresholds are used when making pest control decisions | F18: 0.8975609756 | G18: 90% | J18: =INDEX($E$17:$G$24,MATCH($J7,$E$17:$E$24,0),1) -> The industry’s recommended thresholds are used when making pest control decisions | K18: =INDEX($E$17:$G$24,MATCH($J7,$E$17:$E$24,0),2) -> 0.8975609756 | L18: =IF(AND(K18>0,K18<0.005),"<1%",TEXT(K18,"0%")) -> 90% | R18: The industry’s recommended thresholds are used when making pest control decisions | S18: 0.8975609756 | T18: 0.88 | U18: 0.9583333333 | V18: 0.8666666667 | W18: 0.9375 | X18: 0.9130434783 | Y18: 0.7741935484 | Z18: 0.95 | AA18: 0.8556701031 | AB18: 0.92
E19: The IRMS is followed when selecting insecticides/miticides | F19: 0.8292682927 | G19: 83% | J19: Pesticides selection aims to conserve beneficial insects whenever possible | K19: 0.912195122 | L19: 91% | R19: The IRMS is followed when selecting insecticides/miticides | S19: 0.8292682927 | T19: 0.92 | U19: 0.8541666667 | V19: 0.8333333333 | W19: 0.8958333333 | X19: 0.8260869565 | Y19: 0.6129032258 | Z19: 0.8625 | AA19: 0.8041237113 | AB19: 0.84
E20: Pesticides selection aims to conserve beneficial insects whenever possible | F20: 0.912195122 | G20: 91% | J20: The IRMS is followed when selecting insecticides/miticides | K20: 0.8292682927 | L20: 83% | R20: Pesticides selection aims to conserve beneficial insects whenever possible | S20: 0.912195122 | T20: 0.96 | U20: 0.9583333333 | V20: 0.8333333333 | W20: 0.9166666667 | X20: 0.9130434783 | Y20: 0.8709677419 | Z20: 0.975 | AA20: 0.8762886598 | AB20: 0.84
E21: Weed hosts are controlled to prevent pest build up | F21: 0.8682926829 | G21: 87% | J21: The industry’s recommended sampling strategies are used to monitor pest abundance and plant damage | K21: 0.8731707317 | L21: 87% | R21: Weed hosts are controlled to prevent pest build up | S21: 0.8682926829 | T21: 0.92 | U21: 0.9375 | V21: 0.8333333333 | W21: 0.8958333333 | X21: 0.8695652174 | Y21: 0.7096774194 | Z21: 0.9125 | AA21: 0.8453608247 | AB21: 0.84
E22: Rotations cropping decisions consider cotton pest risks | F22: 0.7658536585 | G22: 77% | J22: Rotations are used as part of integrated weed management strategy | K22: 0.8390243902 | L22: 84% | R22: Rotations cropping decisions consider cotton pest risks | S22: 0.7658536585 | T22: 0.64 | U22: 0.7916666667 | V22: 0.6666666667 | W22: 0.8541666667 | X22: 0.7826086957 | Y22: 0.7741935484 | Z22: 0.775 | AA22: 0.7422680412 | AB22: 0.84
E23: Rotations cropping decisions consider cotton disease risks | F23: 0.7707317073 | G23: 77% | J23: Rotations cropping decisions consider cotton pest risks | K23: 0.7658536585 | L23: 77% | R23: Rotations cropping decisions consider cotton disease risks | S23: 0.7707317073 | T23: 0.6 | U23: 0.7708333333 | V23: 0.7 | W23: 0.8541666667 | X23: 0.7826086957 | Y23: 0.8387096774 | Z23: 0.8 | AA23: 0.7319587629 | AB23: 0.84
E24: Rotations are used as part of integrated weed management strategy | F24: 0.8390243902 | G24: 84% | J24: Rotations cropping decisions consider cotton disease risks | K24: 0.7707317073 | L24: 77% | R24: Rotations are used as part of integrated weed management strategy | S24: 0.8390243902 | T24: 0.6 | U24: 0.9166666667 | V24: 0.7666666667 | W24: 0.8958333333 | X24: 0.9130434783 | Y24: 0.8387096774 | Z24: 0.8375 | AA24: 0.8350515464 | AB24: 0.84
C29: Focus - Segment | J29: Re-order to same order as above | L29: Label
E30: Base | F30: =INDEX($S5:$AB5,1,$A$1) -> 187
C31: Total Cotton Ha (where practice is used) (proportion) | E31: The industry’s recommended sampling strategies are used to monitor pest abundance and plant damage | F31: =INDEX($S6:$AB6,1,$A$1) -> 0.3788773833 | G31: =IF(AND(F31>0,F31<0.005),"<1%",TEXT(F31,"0%")) -> 38% | J31: =INDEX($E$31:$G$38,MATCH($J6,$E$31:$E$38,0),1) -> Weed hosts are controlled to prevent pest build up | K31: =INDEX($E$31:$G$38,MATCH($J6,$E$31:$E$38,0),2) -> 0.4021793783 | L31: =IF(AND(K31>0,K31<0.005),"<1%",TEXT(K31,"0%")) -> 40%
E32: The industry’s recommended thresholds are used when making pest control decisions | F32: =INDEX($S7:$AB7,1,$A$1) -> 0.3937273391 | G32: =IF(AND(F32>0,F32<0.005),"<1%",TEXT(F32,"0%")) -> 39% | J32: =INDEX($E$31:$G$38,MATCH($J7,$E$31:$E$38,0),1) -> The industry’s recommended thresholds are used when making pest control decisions | K32: =INDEX($E$31:$G$38,MATCH($J7,$E$31:$E$38,0),2) -> 0.3937273391 | L32: =IF(AND(K32>0,K32<0.005),"<1%",TEXT(K32,"0%")) -> 39%
E33: The IRMS is followed when selecting insecticides/miticides | F33: 0.3835286567 | G33: 38% | J33: Pesticides selection aims to conserve beneficial insects whenever possible | K33: 0.3894934959 | L33: 39%
E34: Pesticides selection aims to conserve beneficial insects whenever possible | F34: 0.3894934959 | G34: 39% | J34: The IRMS is followed when selecting insecticides/miticides | K34: 0.3835286567 | L34: 38%
E35: Weed hosts are controlled to prevent pest build up | F35: 0.4021793783 | G35: 40% | J35: The industry’s recommended sampling strategies are used to monitor pest abundance and plant damage | K35: 0.3788773833 | L35: 38%
E36: Rotations cropping decisions consider cotton pest risks | F36: 0.366049429 | G36: 37% | J36: Rotations are used as part of integrated weed management strategy | K36: 0.3760377868 | L36: 38%
E37: Rotations cropping decisions consider cotton disease risks | F37: 0.3593866651 | G37: 36% | J37: Rotations cropping decisions consider cotton pest risks | K37: 0.366049429 | L37: 37%
E38: Rotations are used as part of integrated weed management strategy | F38: 0.3760377868 | G38: 38% | J38: Rotations cropping decisions consider cotton disease risks | K38: 0.3593866651 | L38: 36%
J40: Re-order to same order as above | L40: Label
E41: Base | F41: =INDEX($S16:$AB16,1,$A$1) -> 205
C42: Proportion of growers who have used practice in 2016-17 cotton fields | E42: The industry’s recommended sampling strategies are used to monitor pest abundance and plant damage | F42: =INDEX($S17:$AB17,1,$A$1) -> 0.8731707317 | G42: =IF(AND(F42>0,F42<0.005),"<1%",TEXT(F42,"0%")) -> 87% | J42: =INDEX($E$42:$G$49,MATCH($J6,$E$42:$E$49,0),1) -> Weed hosts are controlled to prevent pest build up | K42: =INDEX($E$42:$G$49,MATCH($J6,$E$42:$E$49,0),2) -> 0.8682926829 | L42: =IF(AND(K42>0,K42<0.005),"<1%",TEXT(K42,"0%")) -> 87%
E43: The industry’s recommended thresholds are used when making pest control decisions | F43: =INDEX($S18:$AB18,1,$A$1) -> 0.8975609756 | G43: =IF(AND(F43>0,F43<0.005),"<1%",TEXT(F43,"0%")) -> 90% | J43: =INDEX($E$42:$G$49,MATCH($J7,$E$42:$E$49,0),1) -> The industry’s recommended thresholds are used when making pest control decisions | K43: =INDEX($E$42:$G$49,MATCH($J7,$E$42:$E$49,0),2) -> 0.8975609756 | L43: =IF(AND(K43>0,K43<0.005),"<1%",TEXT(K43,"0%")) -> 90%
E44: The IRMS is followed when selecting insecticides/miticides | F44: =INDEX($S19:$AB19,1,$A$1) -> 0.8292682927 | G44: =IF(AND(F44>0,F44<0.005),"<1%",TEXT(F44,"0%")) -> 83% | J44: Pesticides selection aims to conserve beneficial insects whenever possible | K44: 0.912195122 | L44: 91%
E45: Pesticides selection aims to conserve beneficial insects whenever possible | F45: 0.912195122 | G45: 91% | J45: The IRMS is followed when selecting insecticides/miticides | K45: 0.8292682927 | L45: 83%
E46: Weed hosts are controlled to prevent pest build up | F46: 0.8682926829 | G46: 87% | J46: The industry’s recommended sampling strategies are used to monitor pest abundance and plant damage | K46: 0.8731707317 | L46: 87%
E47: Rotations cropping decisions consider cotton pest risks | F47: 0.7658536585 | G47: 77% | J47: Rotations are used as part of integrated weed management strategy | K47: 0.8390243902 | L47: 84%
E48: Rotations cropping decisions consider cotton disease risks | F48: 0.7707317073 | G48: 77% | J48: Rotations cropping decisions consider cotton pest risks | K48: 0.7658536585 | L48: 77%
E49: Rotations are used as part of integrated weed management strategy | F49: 0.8390243902 | G49: 84% | J49: Rotations cropping decisions consider cotton disease risks | K49: 0.7707317073 | L49: 77%

Sheet Weed Control Over Crop
E1: 2017 Grower Survey | R1: Data in Focus:
E5: Weeds, Pests and Disease Control - Weed Control Over Crop
C7: Tactics used to manage and control weeds over the area of your 2016-17 cotton crop | L7: ="Results - "&'Data - Weed Control Over Crop'!F1&" growers" -> Results - All cotton growers
C27: ="Base: all cotton growers; n varies (Full, n = "&'Data - Weed Control Over Crop'!F5&", Part, n = "&'Data - Weed Control Over Crop'!F13&", Rain, n = "&'Data - Weed Control Over Crop'!F21&")." -> Base: all cotton growers; n varies (Full, n = 176, Part, n = 16, Rain, n = 80). | J27: =IF('HIDDEN - Backend'!Q17=1,"Source: 2017 Grower Survey, CRDC","") ->  | L27: =IF('Data - Weed Control Over Crop'!A1=1,"","Base: "&'Data - Weed Control Over Crop'!F1&" growers; n = "&'Data - Weed Control Over Crop'!F30&".") ->  | S27: =IF(AND('HIDDEN - Backend'!Q17=1,'HIDDEN - Backend'!Q3>1),"Source: 2017 Grower Survey, CRDC","") -> 
C29: Question: How many tactics were used to manage and control WEEDS over the area of your 2016-17 COTTON CROP?

Sheet Data - Weed Control Over Crop (hidden)
A1: ='HIDDEN - Backend'!Q3 -> 1 | E1: Segment | F1: =INDEX($S1:$AB1,1,$A$1) -> All cotton | S1: All cotton | T1: Central Queensland | U1: Darling Downs | V1: Macintyre - Balonne | W1: Northern NSW | X1: Macquarie | Y1: Southern NSW | Z1: Small farm | AA1: Medium farm | AB1: Large farm
C2: CHARTS | Q2: DATA
C4: Focus - Overall | S4: Overall | T4: Central Queensland | U4: Darling Downs | V4: Macintyre - Balonne | W4: Northern NSW | X4: Macquarie | Y4: Southern NSW | Z4: Small (< 1,000 ha) | AA4: Medium (1,000 - 5,000 ha) | AB4: Large (> 5,000 ha)
E5: Base: | F5: =INDEX($S5:$AB5,1,1) -> 176 | R5: Base: | S5: 176 | T5: 23 | U5: 29 | V5: 29 | W5: 42 | X5: 23 | Y5: 30 | Z5: 71 | AA5: 81 | AB5: 24
C6: Fully Irrigated | E6: No Glyphosate and one or more tactics | F6: =INDEX($S6:$AB6,1,1) -> 0.007370660523 | G6: =IF(AND(F6>0,F6<0.005),"<1%",TEXT(F6,"0%")) -> 1% | P6: Fully Irrigated | R6: No Glyphosate and one or more tactics | S6: 0.007370660523 | T6: 0.002898550725 | U6: 0.02337164751 | V6: 0 | W6: 0.01195135588 | X6: 0 | Y6: 0.001694495349 | Z6: 0.01254435464 | AA6: 0 | AB6: 0.01694112804
E7: Glyphosate was the only tactic used | F7: 0.2159489766 | G7: =IF(AND(F7>0,F7<0.005),"<1%",TEXT(F7,"0%")) -> 22% | R7: Glyphosate was the only tactic used | S7: 0.2159489766 | T7: 0.2115942029 | U7: 0.2982145675 | V7: 0.1724137931 | W7: 0.2142857143 | X7: 0.2173913043 | Y7: 0.183071025 | Z7: 0.2409689777 | AA7: 0.1800411523 | AB7: 0.2631203801
E8: Glyphosate plus one non-glyphosate tactics | F8: 0.2813793868 | G8: 28% | R8: Glyphosate plus one non-glyphosate tactics | S8: 0.2813793868 | T8: 0.3275362319 | U8: 0.2569578463 | V8: 0.1206896552 | W8: 0.2854580188 | X8: 0.347826087 | Y8: 0.3682808134 | Z8: 0.2737210197 | AA8: 0.269259949 | AB8: 0.3449384918
E9: Glyphosate plus two non-glyphosate tactics | F9: 0.3024446237 | G9: 30% | R9: Glyphosate plus two non-glyphosate tactics | S9: 0.3024446237 | T9: 0.3188405797 | U9: 0.1896551724 | V9: 0.3275862069 | W9: 0.3341382443 | X9: 0.2968227425 | Y9: 0.3345397036 | Z9: 0.2987800925 | AA9: 0.3582329285 | AB9: 0.125
E10: Glyphosate plus three or more non-glyphosate tactics | F10: 0.1928563524 | G10: 19% | R10: Glyphosate plus three or more non-glyphosate tactics | S10: 0.1928563524 | T10: 0.1391304348 | U10: 0.2318007663 | V10: 0.3793103448 | W10: 0.1541666667 | X10: 0.1379598662 | Y10: 0.1124139626 | Z10: 0.1739855554 | AA10: 0.1924659702 | AB10: 0.25
S12: Overall | T12: Central Queensland | U12: Darling Downs | V12: Macintyre - Balonne | W12: Northern NSW | X12: Macquarie | Y12: Southern NSW | Z12: Small (< 1,000 ha) | AA12: Medium (1,000 - 5,000 ha) | AB12: Large (> 5,000 ha)
E13: Base: | F13: =INDEX($S13:$AB13,1,1) -> 16 | R13: Base: | S13: 16
C14: Partially Irrigated | E14: No Glyphosate and one or more tactics | F14: =INDEX($S14:$AB14,1,1) -> 0.02083333333 | G14: =IF(AND(F14>0,F14<0.005),"<1%",TEXT(F14,"0%")) -> 2% | P14: Partially Irrigated | R14: No Glyphosate and one or more tactics | S14: 0.02083333333
E15: Glyphosate was the only tactic used | F15: 0.2916666667 | G15: =IF(AND(F15>0,F15<0.005),"<1%",TEXT(F15,"0%")) -> 29% | R15: Glyphosate was the only tactic used | S15: 0.2916666667
E16: Glyphosate plus one non-glyphosate tactics | F16: 0.3125 | G16: 31% | R16: Glyphosate plus one non-glyphosate tactics | S16: 0.3125
E17: Glyphosate plus two non-glyphosate tactics | F17: 0.25 | G17: 25% | R17: Glyphosate plus two non-glyphosate tactics | S17: 0.25
E18: Glyphosate plus three or more non-glyphosate tactics | F18: 0.125 | G18: 13% | R18: Glyphosate plus three or more non-glyphosate tactics | S18: 0.125
S20: Overall | T20: Central Queensland | U20: Darling Downs | V20: Macintyre - Balonne | W20: Northern NSW | X20: Macquarie | Y20: Southern NSW | Z20: Small (< 1,000 ha) | AA20: Medium (1,000 - 5,000 ha) | AB20: Large (> 5,000 ha)
E21: Base: | F21: =INDEX($S21:$AB21,1,1) -> 80 | R21: Base: | S21: 80
C22: Raingrown | Dryland | E22: No Glyphosate and one or more tactics | F22: =INDEX($S22:$AB22,1,1) -> 0.00625 | G22: =IF(AND(F22>0,F22<0.005),"<1%",TEXT(F22,"0%")) -> 1% | P22: Raingrown | Dryland | R22: No Glyphosate and one or more tactics | S22: 0.00625
E23: Glyphosate was the only tactic used | F23: 0.3307291667 | G23: =IF(AND(F23>0,F23<0.005),"<1%",TEXT(F23,"0%")) -> 33% | R23: Glyphosate was the only tactic used | S23: 0.3307291667
E24: Glyphosate plus one non-glyphosate tactics | F24: 0.2859375 | G24: 29% | R24: Glyphosate plus one non-glyphosate tactics | S24: 0.2859375
E25: Glyphosate plus two non-glyphosate tactics | F25: 0.2354166667 | G25: 24% | R25: Glyphosate plus two non-glyphosate tactics | S25: 0.2354166667
E26: Glyphosate plus three or more non-glyphosate tactics | F26: 0.1416666667 | G26: 14% | R26: Glyphosate plus three or more non-glyphosate tactics | S26: 0.1416666667
C29: Focus - Segment
E30: Base: | F30: =INDEX($S5:$AB5,1,$A$1) -> 176
C31: Fully Irrigated | E31: No Glyphosate and one or more tactics | F31: 0.007370660523 | G31: =IF(AND(F31>0,F31<0.005),"<1%",TEXT(F31,"0%")) -> 1%
E32: Glyphosate was the only tactic used | F32: 0.2159489766 | G32: =IF(AND(F32>0,F32<0.005),"<1%",TEXT(F32,"0%")) -> 22%
E33: Glyphosate plus one non-glyphosate tactics | F33: 0.2813793868 | G33: =IF(AND(F33>0,F33<0.005),"<1%",TEXT(F33,"0%")) -> 28%
E34: Glyphosate plus two non-glyphosate tactics | F34: 0.3024446237 | G34: =IF(AND(F34>0,F34<0.005),"<1%",TEXT(F34,"0%")) -> 30%
E35: Glyphosate plus three or more non-glyphosate tactics | F35: 0.1928563524 | G35: =IF(AND(F35>0,F35<0.005),"<1%",TEXT(F35,"0%")) -> 19%

Sheet Weed Control Over Fallows
E1: 2017 Grower Survey | R1: Data in Focus:
E5: Weeds, Pests and Disease Control - Weed Control Over Fallows
C7: Tactics used to manage and control weeds over the area of the Fallows in 2016-17 | L7: ="Results - "&'Data - Weed Control Over Fallow'!F1&" growers" -> Results - All cotton growers
C27: ="Base: all cotton growers; n varies (Full, n = "&'Data - Weed Control Over Fallow'!F5&", Part, n = "&'Data - Weed Control Over Fallow'!F13&", Rain, n = "&'Data - Weed Control Over Fallow'!F21&")." -> Base: all cotton growers; n varies (Full, n = 142, Part, n = 15, Rain, n = 76). | J27: =IF('HIDDEN - Backend'!Q17=1,"Source: 2017 Grower Survey, CRDC","") ->  | L27: =IF('Data - Weed Control Over Fallow'!A1=1,"","Base: "&'Data - Weed Control Over Fallow'!F1&" growers; n = "&'Data - Weed Control Over Fallow'!F30&".") ->  | S27: =IF(AND('HIDDEN - Backend'!Q17=1,'HIDDEN - Backend'!Q3>1),"Source: 2017 Grower Survey, CRDC","") -> 
C29: Question: How many tactics were used for WEED control over the area of the FALLOWS you managed in 2016-17?

Sheet Data - Weed Control Over Fallow (hidden)
A1: ='HIDDEN - Backend'!Q3 -> 1 | E1: Segment | F1: =INDEX($S1:$AB1,1,$A$1) -> All cotton | S1: All cotton | T1: Central Queensland | U1: Darling Downs | V1: Macintyre - Balonne | W1: Northern NSW | X1: Macquarie | Y1: Southern NSW | Z1: Small farm | AA1: Medium farm | AB1: Large farm
C2: CHARTS | Q2: DATA
C4: Focus - Overall | S4: Overall | T4: Central Queensland | U4: Darling Downs | V4: Macintyre - Balonne | W4: Northern NSW | X4: Macquarie | Y4: Southern NSW | Z4: Small (< 1,000 ha) | AA4: Medium (1,000 - 5,000 ha) | AB4: Large (> 5,000 ha)
E5: Base: | F5: =INDEX($S5:$AB5,1,1) -> 142 | R5: Base: | S5: 142 | T5: 15 | U5: 24 | V5: 22 | W5: 35 | X5: 20 | Y5: 26 | Z5: 53 | AA5: 69 | AB5: 20
C6: Fully Irrigated | E6: No Glyphosate and one or more tactics | F6: =INDEX($S6:$AB6,1,1) -> 0.07030516432 | G6: =IF(AND(F6>0,F6<0.005),"<1%",TEXT(F6,"0%")) -> 7% | P6: Fully Irrigated | R6: No Glyphosate and one or more tactics | S6: 0.07030516432 | T6: 0.2933333333 | U6: 0.01041666667 | V6: 0.1363636364 | W6: 0 | X6: 0.05 | Y6: 0.05128205128 | Z6: 0.120754717 | AA6: 0.04830917874 | AB6: 0.0125
E7: Glyphosate was the only tactic used | F7: 0.07581658039 | G7: =IF(AND(F7>0,F7<0.005),"<1%",TEXT(F7,"0%")) -> 8% | R7: Glyphosate was the only tactic used | S7: 0.07581658039 | T7: 0.07456790123 | U7: 0.1241987179 | V7: 0.1818181818 | W7: 0.02857142857 | X7: 0.05 | Y7: 0.02564102564 | Z7: 0.06319410848 | AA7: 0.06038647343 | AB7: 0.1625
E8: Glyphosate plus one non-glyphosate tactics | F8: 0.2253571285 | G8: 23% | R8: Glyphosate plus one non-glyphosate tactics | S8: 0.2253571285 | T8: 0.1654320988 | U8: 0.1466346154 | V8: 0.1363636364 | W8: 0.2857142857 | X8: 0.2 | Y8: 0.3461538462 | Z8: 0.2500134387 | AA8: 0.2101449275 | AB8: 0.2125
E9: Glyphosate plus two non-glyphosate tactics | F9: 0.3397887324 | G9: 34% | R9: Glyphosate plus two non-glyphosate tactics | S9: 0.3397887324 | T9: 0.2 | U9: 0.34375 | V9: 0.2272727273 | W9: 0.3428571429 | X9: 0.55 | Y9: 0.3461538462 | Z9: 0.2641509434 | AA9: 0.4202898551 | AB9: 0.2625
E10: Glyphosate plus three or more non-glyphosate tactics | F10: 0.2887323944 | G10: 29% | R10: Glyphosate plus three or more non-glyphosate tactics | S10: 0.2887323944 | T10: 0.2666666667 | U10: 0.375 | V10: 0.3181818182 | W10: 0.3428571429 | X10: 0.15 | Y10: 0.2307692308 | Z10: 0.3018867925 | AA10: 0.2608695652 | AB10: 0.35
S12: Overall | T12: Central Queensland | U12: Darling Downs | V12: Macintyre - Balonne | W12: Northern NSW | X12: Macquarie | Y12: Southern NSW | Z12: Small (< 1,000 ha) | AA12: Medium (1,000 - 5,000 ha) | AB12: Large (> 5,000 ha)
E13: Base: | F13: =INDEX($S13:$AB13,1,1) -> 15 | R13: Base: | S13: 15
C14: Partially Irrigated | E14: No Glyphosate and one or more tactics | F14: =INDEX($S14:$AB14,1,1) -> 0.01666666667 | G14: =IF(AND(F14>0,F14<0.005),"<1%",TEXT(F14,"0%")) -> 2% | P14: Partially Irrigated | R14: No Glyphosate and one or more tactics | S14: 0.01666666667
E15: Glyphosate was the only tactic used | F15: 0.08333333333 | G15: =IF(AND(F15>0,F15<0.005),"<1%",TEXT(F15,"0%")) -> 8% | R15: Glyphosate was the only tactic used | S15: 0.08333333333
E16: Glyphosate plus one non-glyphosate tactics | F16: 0.2166666667 | G16: 22% | R16: Glyphosate plus one non-glyphosate tactics | S16: 0.2166666667
E17: Glyphosate plus two non-glyphosate tactics | F17: 0.2166666667 | G17: 22% | R17: Glyphosate plus two non-glyphosate tactics | S17: 0.2166666667
E18: Glyphosate plus three or more non-glyphosate tactics | F18: 0.4666666667 | G18: 47% | R18: Glyphosate plus three or more non-glyphosate tactics | S18: 0.4666666667
S20: Overall | T20: Central Queensland | U20: Darling Downs | V20: Macintyre - Balonne | W20: Northern NSW | X20: Macquarie | Y20: Southern NSW | Z20: Small (< 1,000 ha) | AA20: Medium (1,000 - 5,000 ha) | AB20: Large (> 5,000 ha)
E21: Base: | F21: =INDEX($S21:$AB21,1,1) -> 76 | R21: Base: | S21: 76
C22: Raingrown | Dryland | E22: No Glyphosate and one or more tactics | F22: =INDEX($S22:$AB22,1,1) -> 0.01644736842 | G22: =IF(AND(F22>0,F22<0.005),"<1%",TEXT(F22,"0%")) -> 2% | P22: Raingrown | Dryland | R22: No Glyphosate and one or more tactics | S22: 0.01644736842
E23: Glyphosate was the only tactic used | F23: 0.07267782699 | G23: =IF(AND(F23>0,F23<0.005),"<1%",TEXT(F23,"0%")) -> 7% | R23: Glyphosate was the only tactic used | S23: 0.07267782699
E24: Glyphosate plus one non-glyphosate tactics | F24: 0.2146028748 | G24: 21% | R24: Glyphosate plus one non-glyphosate tactics | S24: 0.2146028748
E25: Glyphosate plus two non-glyphosate tactics | F25: 0.3103070175 | G25: 31% | R25: Glyphosate plus two non-glyphosate tactics | S25: 0.3103070175
E26: Glyphosate plus three or more non-glyphosate tactics | F26: 0.3859649123 | G26: 39% | R26: Glyphosate plus three or more non-glyphosate tactics | S26: 0.3859649123
C29: Focus - Segment
E30: Base: | F30: =INDEX($S5:$AB5,1,$A$1) -> 142
C31: Fully Irrigated | E31: No Glyphosate and one or more tactics | F31: 0.07030516432 | G31: =IF(AND(F31>0,F31<0.005),"<1%",TEXT(F31,"0%")) -> 7%
E32: Glyphosate was the only tactic used | F32: 0.07581658039 | G32: =IF(AND(F32>0,F32<0.005),"<1%",TEXT(F32,"0%")) -> 8%
E33: Glyphosate plus one non-glyphosate tactics | F33: 0.2253571285 | G33: =IF(AND(F33>0,F33<0.005),"<1%",TEXT(F33,"0%")) -> 23%
E34: Glyphosate plus two non-glyphosate tactics | F34: 0.3397887324 | G34: =IF(AND(F34>0,F34<0.005),"<1%",TEXT(F34,"0%")) -> 34%
E35: Glyphosate plus three or more non-glyphosate tactics | F35: 0.2887323944 | G35: =IF(AND(F35>0,F35<0.005),"<1%",TEXT(F35,"0%")) -> 29%

Sheet Spray Decision Thresholds
E1: 2017 Grower Survey | R1: Data in Focus:
E5: Pesticide Management - Spray Decision Thresholds
C7: Proportion of spray decisions in line with the industry threshold during the 2016-17 season | L7: ="Results - "&'Data - Spray Decision Threshold'!F1&" growers" -> Results - All cotton growers
C27: ="Base: all cotton growers; n = "&'Data - Spray Decision Threshold'!F5&"." -> Base: all cotton growers; n = 206. | J27: =IF('HIDDEN - Backend'!Q17=1,"Source: 2017 Grower Survey, CRDC","") ->  | L27: =IF('Data - Spray Decision Threshold'!A1=1,"","Base: "&'Data - Spray Decision Threshold'!F1&" growers; n = "&'Data - Spray Decision Threshold'!F18&".") ->  | S27: =IF(AND('HIDDEN - Backend'!Q17=1,'HIDDEN - Backend'!Q3>1),"Source: 2017 Grower Survey, CRDC","") -> 
C29: Question: Thinking about the insecticide decisions made for your farm during the 2016-17 cotton season, what proportion of spray decisions were in line with the industry threshold?

Sheet Data - Spray Decision Threshold (hidden)
A1: ='HIDDEN - Backend'!Q3 -> 1 | E1: Segment | F1: =INDEX($S1:$AB1,1,$A$1) -> All cotton | S1: All cotton | T1: Central Queensland | U1: Darling Downs | V1: Macintyre - Balonne | W1: Northern NSW | X1: Macquarie | Y1: Southern NSW | Z1: Small farm | AA1: Medium farm | AB1: Large farm
C2: CHARTS | Q2: DATA
C4: Focus - Overall | S4: Overall | T4: Central Queensland | U4: Darling Downs | V4: Macintyre - Balonne | W4: Northern NSW | X4: Macquarie | Y4: Southern NSW | Z4: Small (< 1,000 ha) | AA4: Medium (1,000 - 5,000 ha) | AB4: Large (> 5,000 ha)
E5: Base | F5: =INDEX($S5:$AB5,1,1) -> 206 | R5: Base: | S5: 206 | T5: 25 | U5: 48 | V5: 30 | W5: 49 | X5: 23 | Y5: 31 | Z5: 80 | AA5: 97 | AB5: 25
E6: All the time – for every spray decision (100%) | F6: =INDEX($S6:$AB6,1,1) -> 0.567961165 | G6: =IF(AND(F6>0,F6<0.005),"<1%",TEXT(F6,"0%")) -> 57% | R6: All the time – for every spray decision (100%) | S6: 0.567961165 | T6: 0.68 | U6: 0.625 | V6: 0.5333333333 | W6: 0.5510204082 | X6: 0.5652173913 | Y6: 0.4516129032 | Z6: 0.6 | AA6: 0.5463917526 | AB6: 0.48
E7: For most but not all applications (more than 75%) | F7: 0.2184466019 | G7: =IF(AND(F7>0,F7<0.005),"<1%",TEXT(F7,"0%")) -> 22% | R7: For most but not all applications (more than 75%) | S7: 0.2184466019 | T7: 0.16 | U7: 0.1666666667 | V7: 0.3 | W7: 0.2040816327 | X7: 0.2608695652 | Y7: 0.2580645161 | Z7: 0.175 | AA7: 0.2268041237 | AB7: 0.36
E8: For some applications (50% - 75%) | F8: 0.03398058252 | G8: 3% | R8: For some applications (50% - 75%) | S8: 0.03398058252 | T8: 0 | U8: 0 | V8: 0.03333333333 | W8: 0.04081632653 | X8: 0.04347826087 | Y8: 0.09677419355 | Z8: 0.025 | AA8: 0.0412371134 | AB8: 0.04
E9: For the occasional application (less than 50%) | F9: 0 | G9: 0% | R9: For the occasional application (less than 50%) | S9: 0 | T9: 0 | U9: 0 | V9: 0 | W9: 0 | X9: 0 | Y9: 0 | Z9: 0 | AA9: 0 | AB9: 0
E10: Never use | F10: 0.004854368932 | G10: <1% | R10: Never use | S10: 0.004854368932 | T10: 0 | U10: 0 | V10: 0 | W10: 0.02040816327 | X10: 0 | Y10: 0 | Z10: 0 | AA10: 0 | AB10: 0.04
E11: Not sure | F11: 0.009708737864 | G11: 1% | R11: Not sure | S11: 0.009708737864 | T11: 0 | U11: 0.02083333333 | V11: 0 | W11: 0.02040816327 | X11: 0 | Y11: 0 | Z11: 0.0125 | AA11: 0 | AB11: 0.04
E12: My consultant makes this decision for me | F12: 0.1650485437 | G12: 17% | R12: My consultant makes this decision for me | S12: 0.1650485437 | T12: 0.16 | U12: 0.1875 | V12: 0.1333333333 | W12: 0.1632653061 | X12: 0.1304347826 | Y12: 0.1935483871 | Z12: 0.1875 | AA12: 0.1855670103 | AB12: 0.04
C17: Focus - Segment
E18: Base | F18: =INDEX($S5:$AB5,1,$A$1) -> 206
E19: All the time – for every spray decision (100%) | F19: 0.567961165 | G19: =IF(AND(F19>0,F19<0.005),"<1%",TEXT(F19,"0%")) -> 57%
E20: For most but not all applications (more than 75%) | F20: 0.2184466019 | G20: =IF(AND(F20>0,F20<0.005),"<1%",TEXT(F20,"0%")) -> 22%
E21: For some applications (50% - 75%) | F21: 0.03398058252 | G21: 3%
E22: For the occasional application (less than 50%) | F22: 0 | G22: 0%
E23: Never use | F23: 0.004854368932 | G23: <1%
E24: Not sure | F24: 0.009708737864 | G24: 1%
E25: My consultant makes this decision for me | F25: 0.1650485437 | G25: 17%

Sheet Reasons for Decisions
E1: 2017 Grower Survey | R1: Data in Focus:
E5: Pesticide Management - Reasons for Decisions
C7: Reasons for not complying with the industry threshold | L7: ="Results - "&'Data - Reasons for Decisions'!F1&" growers" -> Results - All cotton growers
J26: =IF('HIDDEN - Backend'!Q17=1,"Source: 2017 Grower Survey, CRDC","") ->  | S26: =IF(AND('HIDDEN - Backend'!Q17=1,'HIDDEN - Backend'!Q3>1),"Source: 2017 Grower Survey, CRDC","") -> 
C27: ="Base: all cotton growers with <100% spraying in line with the industry threshold; n = "&'Data - Reasons for Decisions'!F5&"." -> Base: all cotton growers with <100% spraying in line with the industry threshold; n = 51. | L27: =IF('Data - Reasons for Decisions'!A1=1,"","Base: "&'Data - Reasons for Decisions'!F1&" growers with <100% spraying in line with the industry threshold; n = "&'Data - Reasons for Decisions'!F19&".") -> 
C29: Question: What were your reasons for your spray decisions that were not in line with industry threshold? ^Multiple responses accepted. Results may not add to 100%.

Sheet Data - Reasons for Decisions (hidden)
A1: ='HIDDEN - Backend'!Q3 -> 1 | E1: Segment | F1: =INDEX($S1:$AB1,1,$A$1) -> All cotton | S1: All cotton | T1: Central Queensland | U1: Darling Downs | V1: Macintyre - Balonne | W1: Northern NSW | X1: Macquarie | Y1: Southern NSW | Z1: Small farm | AA1: Medium farm | AB1: Large farm
C2: CHARTS | Q2: DATA
C4: Focus - Overall | G4: Rank | J4: Re-order | L4: Label | S4: Overall | T4: Central Queensland | U4: Darling Downs | V4: Macintyre - Balonne | W4: Northern NSW | X4: Macquarie | Y4: Southern NSW | Z4: Small (< 1,000 ha) | AA4: Medium (1,000 - 5,000 ha) | AB4: Large (> 5,000 ha)
E5: Base | F5: =INDEX($S5:$AB5,1,1) -> 51 | R5: Base: | S5: 51 | T5: 4 | U5: 7 | V5: 9 | W5: 13 | X5: 7 | Y5: 11 | Z5: 15 | AA5: 25 | AB5: 11
E6: Timing with other operation | F6: =INDEX($S6:$AB6,1,1) -> 0.45098 | G6: =RANK(F6,$F$6:$F$12) -> 1 | I6: 1 | J6: =INDEX($E$6:$G$13,MATCH($I6,$G$6:$G$13,0),1) -> Timing with other operation | K6: =INDEX($E$6:$G$13,MATCH($I6,$G$6:$G$13,0),2) -> 0.45098 | L6: =IF(AND(K6>0,K6<0.005),"<1%",TEXT(K6,"0%")) -> 45% | R6: Timing with other operation | S6: 0.45098 | T6: 0.25 | U6: 0.571429 | V6: 0.333333 | W6: 0.615385 | X6: 0.428571 | Y6: 0.363636 | Z6: 0.6 | AA6: 0.32 | AB6: 0.545455
E7: Industry threshold is too low | F7: 0.196078 | G7: =RANK(F7,$F$6:$F$12)+COUNTIF($G$6:G6,RANK(F7,$F$6:$F$12)) -> 4 | I7: 2 | J7: Presence of other pests | K7: 0.352941 | L7: =IF(AND(K7>0,K7<0.005),"<1%",TEXT(K7,"0%")) -> 35% | R7: Industry threshold is too low | S7: 0.196078 | T7: 0 | U7: 0.285714 | V7: 0.111111 | W7: 0.230769 | X7: 0.428571 | Y7: 0.090909 | Z7: 0.2 | AA7: 0.2 | AB7: 0.181818
E8: Industry threshold is too high | F8: 0.27451 | G8: =RANK(F8,$F$6:$F$12)+COUNTIF($G$6:G7,RANK(F8,$F$6:$F$12)) -> 3 | I8: 3 | J8: Industry threshold is too high | K8: 0.27451 | L8: 27% | R8: Industry threshold is too high | S8: 0.27451 | T8: 0.25 | U8: 0.142857 | V8: 0.333333 | W8: 0.153846 | X8: 0.285714 | Y8: 0.454545 | Z8: 0.333333 | AA8: 0.24 | AB8: 0.272727
E9: Presence of other pests | F9: 0.352941 | G9: =RANK(F9,$F$6:$F$12)+COUNTIF($G$6:G8,RANK(F9,$F$6:$F$12)) -> 2 | I9: 4 | J9: Industry threshold is too low | K9: 0.196078 | L9: 20% | R9: Presence of other pests | S9: 0.352941 | T9: 0.5 | U9: 0.285714 | V9: 0.666667 | W9: 0.307692 | X9: 0.428571 | Y9: 0.090909 | Z9: 0.533333 | AA9: 0.28 | AB9: 0.272727
E10: Pesticide cost | F10: 0.098039 | G10: =RANK(F10,$F$6:$F$12)+COUNTIF($G$6:G9,RANK(F10,$F$6:$F$12)) -> 7 | I10: 5 | J10: Crop/conditions with less opportunity for compensation | K10: 0.176471 | L10: 18% | R10: Pesticide cost | S10: 0.098039 | T10: 0 | U10: 0.285714 | V10: 0.111111 | W10: 0.076923 | X10: 0.142857 | Y10: 0 | Z10: 0.2 | AA10: 0 | AB10: 0.181818
E11: Crop/conditions with less opportunity for compensation | F11: 0.176471 | G11: =RANK(F11,$F$6:$F$12)+COUNTIF($G$6:G10,RANK(F11,$F$6:$F$12)) -> 5 | I11: 6 | J11: Crop/conditions with greater opportunity for compensation | K11: 0.176471 | L11: 18% | R11: Crop/conditions with less opportunity for compensation | S11: 0.176471 | T11: 0 | U11: 0.285714 | V11: 0.111111 | W11: 0.076923 | X11: 0.428571 | Y11: 0.181818 | Z11: 0.066667 | AA11: 0.24 | AB11: 0.181818
E12: Crop/conditions with greater opportunity for compensation | F12: 0.176471 | G12: =RANK(F12,$F$6:$F$12)+COUNTIF($G$6:G11,RANK(F12,$F$6:$F$12)) -> 6 | I12: 7 | J12: Pesticide cost | K12: 0.098039 | L12: 10% | R12: Crop/conditions with greater opportunity for compensation | S12: 0.176471 | T12: 0.25 | U12: 0.285714 | V12: 0.333333 | W12: 0.076923 | X12: 0.142857 | Y12: 0.090909 | Z12: 0.2 | AA12: 0.2 | AB12: 0.090909
E13: Other reason (please specify) | F13: 0.196078 | G13: 8 | I13: 8 | J13: Other reason (please specify) | K13: 0.196078 | L13: 20% | R13: Other reason (please specify) | S13: 0.196078 | T13: 0.25 | U13: 0 | V13: 0.111111 | W13: 0.153846 | X13: 0.285714 | Y13: 0.363636 | Z13: 0.133333 | AA13: 0.28 | AB13: 0.090909
C18: Focus - Segment | J18: Re-order to same order as above | L18: Label
E19: Base | F19: =INDEX($S5:$AB5,1,$A$1) -> 51
E20: Timing with other operation | F20: 0.45098 | J20: =INDEX($E$20:$G$27,MATCH($J6,$E$20:$E$27,0),1) -> Timing with other operation | K20: =INDEX($E$20:$G$27,MATCH($J6,$E$20:$E$27,0),2) -> 0.45098 | L20: =IF(AND(K20>0,K20<0.005),"<1%",TEXT(K20,"0%")) -> 45%
E21: Industry threshold is too low | F21: 0.196078 | J21: Presence of other pests | K21: 0.352941 | L21: 35%
E22: Industry threshold is too high | F22: 0.27451 | J22: Industry threshold is too high | K22: 0.27451 | L22: 27%
E23: Presence of other pests | F23: 0.352941 | J23: Industry threshold is too low | K23: 0.196078 | L23: 20%
E24: Pesticide cost | F24: 0.098039 | J24: Crop/conditions with less opportunity for compensation | K24: 0.176471 | L24: 18%
E25: Crop/conditions with less opportunity for compensation | F25: 0.176471 | J25: Crop/conditions with greater opportunity for compensation | K25: 0.176471 | L25: 18%
E26: Crop/conditions with greater opportunity for compensation | F26: 0.176471 | J26: Pesticide cost | K26: 0.098039 | L26: 10%
E27: Other reason (please specify) | F27: 0.196078 | J27: Other reason (please specify) | K27: 0.196078 | L27: 20%

Sheet Glyphosate and Insecticide
E1: 2017 Grower Survey | R1: Data in Focus:
E5: Pesticide Management - Glyphosate and Insecticide
C7: Of all IN CROP glyphosate applications, what proportion of the applications had insecticide in the tank mix? | L7: ="Results - "&'Data - Glyphosate Insecticide'!F1&" growers" -> Results - All cotton growers
C27: ="Base: all cotton growers; n = "&'Data - Glyphosate Insecticide'!F5&"." -> Base: all cotton growers; n = 204. | J27: =IF('HIDDEN - Backend'!Q17=1,"Source: 2017 Grower Survey, CRDC","") ->  | L27: =IF('Data - Glyphosate Insecticide'!A1=1,"","Base: "&'Data - Glyphosate Insecticide'!F1&" growers; n = "&'Data - Glyphosate Insecticide'!F13&".") ->  | S27: =IF(AND('HIDDEN - Backend'!Q17=1,'HIDDEN - Backend'!Q3>1),"Source: 2017 Grower Survey, CRDC","") -> 
C29: Question: Thinking about all IN CROP glyphosate applications, what proportion of your glyphosate applications DID have insecticide in the tank mix?

Sheet Data - Glyphosate Insecticide (hidden)
A1: ='HIDDEN - Backend'!Q3 -> 1 | E1: Segment | F1: =INDEX($S1:$AB1,1,$A$1) -> All cotton | S1: All cotton | T1: Central Queensland | U1: Darling Downs | V1: Macintyre - Balonne | W1: Northern NSW | X1: Macquarie | Y1: Southern NSW | Z1: Small farm | AA1: Medium farm | AB1: Large farm
C2: CHARTS | Q2: DATA
C4: Focus - Overall | S4: Overall | T4: Central Queensland | U4: Darling Downs | V4: Macintyre - Balonne | W4: Northern NSW | X4: Macquarie | Y4: Southern NSW | Z4: Small (< 1,000 ha) | AA4: Medium (1,000 - 5,000 ha) | AB4: Large (> 5,000 ha)
E5: Base | F5: =INDEX($S5:$AB5,1,1) -> 204 | I5: Rotation: | R5: Base: | S5: 204 | T5: 25 | U5: 47 | V5: 29 | W5: 49 | X5: 23 | Y5: 31 | Z5: 79 | AA5: 96 | AB5: 25
E6: Glyphosate + Insecticide | F6: =INDEX($S6:$AB6,1,1) -> 0.20088235 | G6: =IF(AND(F6>0,F6<0.005),"<1%",TEXT(F6,"0%")) -> 20% | I6: =IF(90-(180*F6)<0,360-ABS(90-(180*F6)),90-(180*F6)) -> 53.841177 | R6: Glyphosate + Insecticide | S6: 0.20088235 | T6: 0.1324 | U6: 0.15319149 | V6: 0.18689655 | W6: 0.19591837 | X6: 0.2626087 | Y6: 0.30354839 | Z6: 0.16101266 | AA6: 0.2471875 | AB6: 0.1492
E7: Glyphosate only | F7: 0.79911765 | G7: =IF(AND(F7>0,F7<0.005),"<1%",TEXT(F7,"0%")) -> 80% | R7: Glyphosate only | S7: 0.79911765 | T7: 0.8676 | U7: 0.84680851 | V7: 0.81310345 | W7: 0.80408163 | X7: 0.7373913 | Y7: 0.69645161 | Z7: 0.83898734 | AA7: 0.7528125 | AB7: 0.8508
C12: Focus - Segment
E13: Base | F13: =INDEX($S5:$AB5,1,$A$1) -> 204 | I13: Rotation:
E14: Glyphosate + Insecticide | F14: =INDEX($S6:$AB6,1,$A$1) -> 0.20088235 | G14: =IF(AND(F14>0,F14<0.005),"<1%",TEXT(F14,"0%")) -> 20% | I14: =IF(90-(180*F14)<0,360-ABS(90-(180*F14)),90-(180*F14)) -> 53.841177
E15: Glyphosate only | F15: =INDEX($S7:$AB7,1,$A$1) -> 0.79911765 | G15: =IF(AND(F15>0,F15<0.005),"<1%",TEXT(F15,"0%")) -> 80%

Sheet Irrigation System
E1: 2017 Grower Survey | R1: Data in Focus:
E5: Irrigation Technologies - Irrigation System
C7: Type of irrigation system used | L7: ="Results - "&'Data - Irrigation System'!F1&" growers" -> Results - All cotton growers
C27: ="Base: all non-raingrown cotton growers; n = "&'Data - Irrigation System'!F5&"." -> Base: all non-raingrown cotton growers; n = 181. | J27: =IF('HIDDEN - Backend'!Q17=1,"Source: 2017 Grower Survey, CRDC","") ->  | L27: =IF('Data - Irrigation System'!A1=1,"","Base: "&'Data - Irrigation System'!F1&" non-raingrown growers; n = "&'Data - Irrigation System'!F16&".") ->  | S27: =IF(AND('HIDDEN - Backend'!Q17=1,'HIDDEN - Backend'!Q3>1),"Source: 2017 Grower Survey, CRDC","") -> 
C29: Question: What type of irrigation system do you use? ^Multiple responses accepted. Results may not add to 100%.

Sheet Data - Irrigation System (hidden)
A1: ='HIDDEN - Backend'!Q3 -> 1 | E1: Segment | F1: =INDEX($S1:$AB1,1,$A$1) -> All cotton | S1: All cotton | T1: Central Queensland | U1: Darling Downs | V1: Macintyre - Balonne | W1: Northern NSW | X1: Macquarie | Y1: Southern NSW | Z1: Small farm | AA1: Medium farm | AB1: Large farm
C2: CHARTS | Q2: DATA
C4: Focus - Overall | G4: Rank | J4: Re-order | L4: Label | S4: Overall | T4: Central Queensland | U4: Darling Downs | V4: Macintyre - Balonne | W4: Northern NSW | X4: Macquarie | Y4: Southern NSW | Z4: Small (< 1,000 ha) | AA4: Medium (1,000 - 5,000 ha) | AB4: Large (> 5,000 ha)
E5: Base | F5: =INDEX($S5:$AB5,1,1) -> 181 | R5: Base | S5: 181 | T5: 23 | U5: 38 | V5: 26 | W5: 41 | X5: 22 | Y5: 31 | Z5: 74 | AA5: 83 | AB5: 21
E6: Pressurised irrigation system (centre pivot | lateral move) | F6: =INDEX($S6:$AB6,1,1) -> 0.2154696133 | G6: =RANK(F6,$F$6:$F$9) -> 2 | I6: 1 | J6: =INDEX($E$6:$G$10,MATCH($I6,$G$6:$G$10,0),1) -> Furrow | K6: =INDEX($E$6:$G$10,MATCH($I6,$G$6:$G$10,0),2) -> 0.9116022099 | L6: =IF(AND(K6>0,K6<0.005),"<1%",TEXT(K6,"0%")) -> 91% | R6: Pressurised irrigation system (centre pivot | lateral move) | S6: 0.2154696133 | T6: 0.08695652174 | U6: 0.4210526316 | V6: 0.1923076923 | W6: 0.2195121951 | X6: 0.1363636364 | Y6: 0.1290322581 | Z6: 0.2162162162 | AA6: 0.1927710843 | AB6: 0.2857142857
E7: Bankless | F7: 0.1436464088 | G7: =RANK(F7,$F$6:$F$9)+COUNTIF($G$6:G6,RANK(F7,$F$6:$F$9)) -> 3 | I7: 2 | J7: =INDEX($E$6:$G$10,MATCH($I7,$G$6:$G$10,0),1) -> Pressurised irrigation system (centre pivot | lateral move) | K7: =INDEX($E$6:$G$10,MATCH($I7,$G$6:$G$10,0),2) -> 0.2154696133 | L7: =IF(AND(K7>0,K7<0.005),"<1%",TEXT(K7,"0%")) -> 22% | R7: Bankless | S7: 0.1436464088 | T7: 0 | U7: 0.02631578947 | V7: 0.1923076923 | W7: 0.0487804878 | X7: 0.1363636364 | Y7: 0.4838709677 | Z7: 0.05405405405 | AA7: 0.2048192771 | AB7: 0.1904761905
E8: Furrow | F8: 0.9116022099 | G8: =RANK(F8,$F$6:$F$9)+COUNTIF($G$6:G7,RANK(F8,$F$6:$F$9)) -> 1 | I8: 3 | J8: =INDEX($E$6:$G$10,MATCH($I8,$G$6:$G$10,0),1) -> Bankless | K8: =INDEX($E$6:$G$10,MATCH($I8,$G$6:$G$10,0),2) -> 0.1436464088 | L8: 14% | R8: Furrow | S8: 0.9116022099 | T8: 0.9130434783 | U8: 0.9473684211 | V8: 0.9615384615 | W8: 0.9512195122 | X8: 0.9090909091 | Y8: 0.7741935484 | Z8: 0.9054054054 | AA8: 0.9156626506 | AB8: 0.9523809524
E9: Drip | F9: 0.01657458564 | G9: =RANK(F9,$F$6:$F$9)+COUNTIF($G$6:G8,RANK(F9,$F$6:$F$9)) -> 4 | I9: 4 | J9: =INDEX($E$6:$G$10,MATCH($I9,$G$6:$G$10,0),1) -> Drip | K9: =INDEX($E$6:$G$10,MATCH($I9,$G$6:$G$10,0),2) -> 0.01657458564 | L9: 2% | R9: Drip | S9: 0.01657458564 | T9: 0 | U9: 0 | V9: 0 | W9: 0 | X9: 0.09090909091 | Y9: 0.03225806452 | Z9: 0 | AA9: 0.03614457831 | AB9: 0
E10: Don’t know | F10: 0.01104972376 | G10: 5 | I10: 5 | J10: =INDEX($E$6:$G$10,MATCH($I10,$G$6:$G$10,0),1) -> Don’t know | K10: =INDEX($E$6:$G$10,MATCH($I10,$G$6:$G$10,0),2) -> 0.01104972376 | L10: 1% | R10: Don’t know | S10: 0.01104972376 | T10: 0.04347826087 | U10: 0 | V10: 0 | W10: 0 | X10: 0 | Y10: 0.03225806452 | Z10: 0.02702702703 | AA10: 0 | AB10: 0
C15: Focus - Segment | J15: Re-order to same order as above | L15: Label
E16: Base | F16: =INDEX($S5:$AB5,1,$A$1) -> 181
E17: Pressurised irrigation system (centre pivot | lateral move) | F17: 0.2154696133 | J17: =INDEX($E$17:$G$21,MATCH($J6,$E$17:$E$21,0),1) -> Furrow | K17: =INDEX($E$17:$G$21,MATCH($J6,$E$17:$E$21,0),2) -> 0.9116022099 | L17: =IF(AND(K17>0,K17<0.005),"<1%",TEXT(K17,"0%")) -> 91%
E18: Bankless | F18: 0.1436464088 | J18: =INDEX($E$17:$G$21,MATCH($J7,$E$17:$E$21,0),1) -> Pressurised irrigation system (centre pivot | lateral move) | K18: =INDEX($E$17:$G$21,MATCH($J7,$E$17:$E$21,0),2) -> 0.2154696133 | L18: 22%
E19: Furrow | F19: 0.9116022099 | J19: =INDEX($E$17:$G$21,MATCH($J8,$E$17:$E$21,0),1) -> Bankless | K19: =INDEX($E$17:$G$21,MATCH($J8,$E$17:$E$21,0),2) -> 0.1436464088 | L19: 14%
E20: Drip | F20: 0.01657458564 | J20: =INDEX($E$17:$G$21,MATCH($J9,$E$17:$E$21,0),1) -> Drip | K20: =INDEX($E$17:$G$21,MATCH($J9,$E$17:$E$21,0),2) -> 0.01657458564 | L20: 2%
E21: Don’t know | F21: 0.01104972376 | J21: =INDEX($E$17:$G$21,MATCH($J10,$E$17:$E$21,0),1) -> Don’t know | K21: =INDEX($E$17:$G$21,MATCH($J10,$E$17:$E$21,0),2) -> 0.01104972376 | L21: 1%

Sheet Level of Automation
E1: 2017 Grower Survey | R1: Data in Focus:
E5: Irrigation Technologies - Level of Automation
C7: Level of automated irrigation management on-farm | L7: ="Results - "&'Data - Level of Automation'!F1&" growers" -> Results - All cotton growers
C27: ="Base: all non-raingrown cotton growers; n = "&'Data - Level of Automation'!F5&"." -> Base: all non-raingrown cotton growers; n = 181. | J27: =IF('HIDDEN - Backend'!Q17=1,"Source: 2017 Grower Survey, CRDC","") ->  | L27: =IF('Data - Level of Automation'!A1=1,"","Base: "&'Data - Level of Automation'!F1&" non-raingrown growers; n = "&'Data - Level of Automation'!F19&".") ->  | S27: =IF(AND('HIDDEN - Backend'!Q17=1,'HIDDEN - Backend'!Q3>1),"Source: 2017 Grower Survey, CRDC","") -> 
C29: Question: Which of the following statements best describes the level of automation for irrigation management that you have implemented on farm? ^Multiple responses accepted. Results may not add to 100%.

Sheet Data - Level of Automation (hidden)
A1: ='HIDDEN - Backend'!Q3 -> 1 | E1: Segment | F1: =INDEX($S1:$AB1,1,$A$1) -> All cotton | S1: All cotton | T1: Central Queensland | U1: Darling Downs | V1: Macintyre - Balonne | W1: Northern NSW | X1: Macquarie | Y1: Southern NSW | Z1: Small farm | AA1: Medium farm | AB1: Large farm
C2: CHARTS | Q2: DATA
C4: Focus - Overall | G4: Rank | J4: Re-order | L4: Label | S4: Overall | T4: Central Queensland | U4: Darling Downs | V4: Macintyre - Balonne | W4: Northern NSW | X4: Macquarie | Y4: Southern NSW | Z4: Small (< 1,000 ha) | AA4: Medium (1,000 - 5,000 ha) | AB4: Large (> 5,000 ha)
E5: Base | F5: =INDEX($S5:$AB5,1,1) -> 181 | R5: Base: | S5: 181 | T5: 23 | U5: 38 | V5: 26 | W5: 41 | X5: 22 | Y5: 31 | Z5: 74 | AA5: 83 | AB5: 21
E6: I use depth sensors in channels to measure water levels remotely | F6: =INDEX($S6:$AB6,1,1) -> 0.08839779006 | G6: =RANK(F6,$F$6:$F$11) -> 4 | I6: 1 | J6: =INDEX($E$6:$G$13,MATCH($I6,$G$6:$G$13,0),1) -> I use automation on farm but not for irrigation management | K6: =INDEX($E$6:$G$13,MATCH($I6,$G$6:$G$13,0),2) -> 0.1988950276 | L6: =IF(AND(K6>0,K6<0.005),"<1%",TEXT(K6,"0%")) -> 20% | R6: I use depth sensors in channels to measure water levels remotely | S6: 0.08839779006 | T6: 0.08695652174 | U6: 0.05263157895 | V6: 0.1153846154 | W6: 0.09756097561 | X6: 0.04545454545 | Y6: 0.1290322581 | Z6: 0.09459459459 | AA6: 0.03614457831 | AB6: 0.2380952381
E7: I can release gates remotely (via my phone, laptop, desktop) | F7: 0.02762430939 | G7: =RANK(F7,$F$6:$F$11)+COUNTIF($G$6:G6,RANK(F7,$F$6:$F$11)) -> 6 | I7: 2 | J7: I have sensors (e.g. soil moisture probes) plus software and hardware to remotely irrigate | K7: 0.1712707182 | L7: =IF(AND(K7>0,K7<0.005),"<1%",TEXT(K7,"0%")) -> 17% | R7: I can release gates remotely (via my phone, laptop, desktop) | S7: 0.02762430939 | T7: 0 | U7: 0 | V7: 0.07692307692 | W7: 0.0487804878 | X7: 0 | Y7: 0.03225806452 | Z7: 0.02702702703 | AA7: 0 | AB7: 0.1428571429
E8: I can turn pumps on and off remotely | F8: 0.09392265193 | G8: =RANK(F8,$F$6:$F$11)+COUNTIF($G$6:G7,RANK(F8,$F$6:$F$11)) -> 3 | I8: 3 | J8: I can turn pumps on and off remotely | K8: 0.09392265193 | L8: 9% | R8: I can turn pumps on and off remotely | S8: 0.09392265193 | T8: 0.04347826087 | U8: 0.1052631579 | V8: 0.07692307692 | W8: 0.07317073171 | X8: 0.1363636364 | Y8: 0.1290322581 | Z8: 0.04054054054 | AA8: 0.09638554217 | AB8: 0.2857142857
E9: I can apply water remotely to my field | F9: 0.07182320442 | G9: =RANK(F9,$F$6:$F$11)+COUNTIF($G$6:G8,RANK(F9,$F$6:$F$11)) -> 5 | I9: 4 | J9: I use depth sensors in channels to measure water levels remotely | K9: 0.08839779006 | L9: 9% | R9: I can apply water remotely to my field | S9: 0.07182320442 | T9: 0.04347826087 | U9: 0.02631578947 | V9: 0.1153846154 | W9: 0.0243902439 | X9: 0.1363636364 | Y9: 0.1290322581 | Z9: 0.02702702703 | AA9: 0.0843373494 | AB9: 0.1904761905
E10: I have sensors (e.g. soil moisture probes) plus software and hardware to remotely irrigate | F10: 0.1712707182 | G10: =RANK(F10,$F$6:$F$11)+COUNTIF($G$6:G9,RANK(F10,$F$6:$F$11)) -> 2 | I10: 5 | J10: I can apply water remotely to my field | K10: 0.07182320442 | L10: 7% | R10: I have sensors (e.g. soil moisture probes) plus software and hardware to remotely irrigate | S10: 0.1712707182 | T10: 0.08695652174 | U10: 0.2105263158 | V10: 0.2307692308 | W10: 0.09756097561 | X10: 0.09090909091 | Y10: 0.2903225806 | Z10: 0.1216216216 | AA10: 0.1686746988 | AB10: 0.380952381
E11: I use automation on farm but not for irrigation management | F11: 0.1988950276 | G11: =RANK(F11,$F$6:$F$11)+COUNTIF($G$6:G10,RANK(F11,$F$6:$F$11)) -> 1 | I11: 6 | J11: I can release gates remotely (via my phone, laptop, desktop) | K11: 0.02762430939 | L11: 3% | R11: I use automation on farm but not for irrigation management | S11: 0.1988950276 | T11: 0.1739130435 | U11: 0.2368421053 | V11: 0.2307692308 | W11: 0.2926829268 | X11: 0.04545454545 | Y11: 0.1290322581 | Z11: 0.2027027027 | AA11: 0.1927710843 | AB11: 0.2380952381
E12: I don’t use automation tools but am considering solutions for my farm | F12: 0.3535911602 | G12: 7 | I12: 7 | J12: I don’t use automation tools but am considering solutions for my farm | K12: 0.3535911602 | L12: 35% | R12: I don’t use automation tools but am considering solutions for my farm | S12: 0.3535911602 | T12: 0.1739130435 | U12: 0.3684210526 | V12: 0.2692307692 | W12: 0.3170731707 | X12: 0.5 | Y12: 0.4838709677 | Z12: 0.3783783784 | AA12: 0.3734939759 | AB12: 0.1904761905
E13: I don’t use any automation tools for irrigation management and have no plans to implement any | F13: 0.1933701657 | G13: 8 | I13: 8 | J13: I don’t use any automation tools for irrigation management and have no plans to implement any | K13: 0.1933701657 | L13: 19% | R13: I don’t use any automation tools for irrigation management and have no plans to implement any | S13: 0.1933701657 | T13: 0.4782608696 | U13: 0.1315789474 | V13: 0.2692307692 | W13: 0.1707317073 | X13: 0.2272727273 | Y13: 0 | Z13: 0.2027027027 | AA13: 0.2168674699 | AB13: 0.04761904762
C18: Focus - Segment | J18: Re-order to same order as above | L18: Label
E19: Base | F19: =INDEX($S5:$AB5,1,$A$1) -> 181
E20: I use depth sensors in channels to measure water levels remotely | F20: 0.08839779006 | J20: =INDEX($E$20:$G$27,MATCH($J6,$E$20:$E$27,0),1) -> I use automation on farm but not for irrigation management | K20: =INDEX($E$20:$G$27,MATCH($J6,$E$20:$E$27,0),2) -> 0.1988950276 | L20: =IF(AND(K20>0,K20<0.005),"<1%",TEXT(K20,"0%")) -> 20%
E21: I can release gates remotely (via my phone, laptop, desktop) | F21: 0.02762430939 | J21: I have sensors (e.g. soil moisture probes) plus software and hardware to remotely irrigate | K21: 0.1712707182 | L21: 17%
E22: I can turn pumps on and off remotely | F22: 0.09392265193 | J22: I can turn pumps on and off remotely | K22: 0.09392265193 | L22: 9%
E23: I can apply water remotely to my field | F23: 0.07182320442 | J23: I use depth sensors in channels to measure water levels remotely | K23: 0.08839779006 | L23: 9%
E24: I have sensors (e.g. soil moisture probes) plus software and hardware to remotely irrigate | F24: 0.1712707182 | J24: I can apply water remotely to my field | K24: 0.07182320442 | L24: 7%
E25: I use automation on farm but not for irrigation management | F25: 0.1988950276 | J25: I can release gates remotely (via my phone, laptop, desktop) | K25: 0.02762430939 | L25: 3%
E26: I don’t use automation tools but am considering solutions for my farm | F26: 0.3535911602 | J26: I don’t use automation tools but am considering solutions for my farm | K26: 0.3535911602 | L26: 35%
E27: I don’t use any automation tools for irrigation management and have no plans to implement any | F27: 0.1933701657 | J27: I don’t use any automation tools for irrigation management and have no plans to implement any | K27: 0.1933701657 | L27: 19%

Sheet Minimise Losses
E1: 2017 Grower Survey | R1: Data in Focus:
E5: Irrigation Technologies - Practices to Minimise Losses
C7: Practices in use to minimise evaporation and drainage | L7: ="Results - "&'Data - Minimise Losses'!F1&" growers" -> Results - All cotton growers
C27: ="Base: all non-raingrown cotton growers; n = "&'Data - Minimise Losses'!F5&"." -> Base: all non-raingrown cotton growers; n = 181. | J27: =IF('HIDDEN - Backend'!Q17=1,"Source: 2017 Grower Survey, CRDC","") ->  | L27: =IF('Data - Minimise Losses'!A1=1,"","Base: "&'Data - Minimise Losses'!F1&" non-raingrown growers; n = "&'Data - Minimise Losses'!F19&".") ->  | S27: =IF(AND('HIDDEN - Backend'!Q17=1,'HIDDEN - Backend'!Q3>1),"Source: 2017 Grower Survey, CRDC","") -> 
C29: Question: Do you currently use any of the following practices to minimise losses to evaporation & drainage? ^Multiple responses accepted. Results may not add to 100%.

Sheet Data - Minimise Losses (hidden)
A1: ='HIDDEN - Backend'!Q3 -> 1 | E1: Segment | F1: =INDEX($S1:$AB1,1,$A$1) -> All cotton | S1: All cotton | T1: Central Queensland | U1: Darling Downs | V1: Macintyre - Balonne | W1: Northern NSW | X1: Macquarie | Y1: Southern NSW | Z1: Small farm | AA1: Medium farm | AB1: Large farm
C2: CHARTS | Q2: DATA
C4: Focus - Overall | G4: Rank | J4: Re-order | L4: Label | S4: Overall | T4: Central Queensland | U4: Darling Downs | V4: Macintyre - Balonne | W4: Northern NSW | X4: Macquarie | Y4: Southern NSW | Z4: Small (< 1,000 ha) | AA4: Medium (1,000 - 5,000 ha) | AB4: Large (> 5,000 ha)
E5: Base | F5: =INDEX($S5:$AB5,1,1) -> 181 | R5: Base: | S5: 181 | T5: 23 | U5: 38 | V5: 26 | W5: 41 | X5: 22 | Y5: 31 | Z5: 74 | AA5: 83 | AB5: 21
E6: I apply evaporation mitigating polymers | F6: =INDEX($S6:$AB6,1,1) -> 0.01104972376 | G6: =RANK(F6,$F$6:$F$11) -> 5 | I6: 1 | J6: =INDEX($E$6:$G$13,MATCH($I6,$G$6:$G$13,0),1) -> I have the ability to transfer water | K6: =INDEX($E$6:$G$13,MATCH($I6,$G$6:$G$13,0),2) -> 0.6906077348 | L6: =IF(AND(K6>0,K6<0.005),"<1%",TEXT(K6,"0%")) -> 69% | R6: I apply evaporation mitigating polymers | S6: 0.01104972376 | T6: 0.04347826087 | U6: 0 | V6: 0 | W6: 0.0243902439 | X6: 0 | Y6: 0 | Z6: 0.01351351351 | AA6: 0.01204819277 | AB6: 0
E7: I use covers over storages | F7: 0.005524861878 | G7: =RANK(F7,$F$6:$F$11)+COUNTIF($G$6:G6,RANK(F7,$F$6:$F$11)) -> 6 | I7: 2 | J7: I have undertaken earthworks to raise height/divide storages | K7: 0.453038674 | L7: =IF(AND(K7>0,K7<0.005),"<1%",TEXT(K7,"0%")) -> 45% | R7: I use covers over storages | S7: 0.005524861878 | T7: 0 | U7: 0 | V7: 0 | W7: 0 | X7: 0 | Y7: 0.03225806452 | Z7: 0.01351351351 | AA7: 0 | AB7: 0
E8: I have undertaken earthworks to raise height/divide storages | F8: 0.453038674 | G8: =RANK(F8,$F$6:$F$11)+COUNTIF($G$6:G7,RANK(F8,$F$6:$F$11)) -> 2 | I8: 3 | J8: I use software to track water use | K8: 0.3480662983 | L8: 35% | R8: I have undertaken earthworks to raise height/divide storages | S8: 0.453038674 | T8: 0.347826087 | U8: 0.1578947368 | V8: 0.7692307692 | W8: 0.6585365854 | X8: 0.3636363636 | Y8: 0.4193548387 | Z8: 0.3513513514 | AA8: 0.4939759036 | AB8: 0.7142857143
E9: I have lined storages and/or channels with clays or plastics | F9: 0.1657458564 | G9: =RANK(F9,$F$6:$F$11)+COUNTIF($G$6:G8,RANK(F9,$F$6:$F$11)) -> 4 | I9: 4 | J9: I have lined storages and/or channels with clays or plastics | K9: 0.1657458564 | L9: 17% | R9: I have lined storages and/or channels with clays or plastics | S9: 0.1657458564 | T9: 0.08695652174 | U9: 0.07894736842 | V9: 0.1538461538 | W9: 0.1463414634 | X9: 0.3181818182 | Y9: 0.2580645161 | Z9: 0.06756756757 | AA9: 0.2409638554 | AB9: 0.2380952381
E10: I use software to track water use | F10: 0.3480662983 | G10: =RANK(F10,$F$6:$F$11)+COUNTIF($G$6:G9,RANK(F10,$F$6:$F$11)) -> 3 | I10: 5 | J10: I apply evaporation mitigating polymers | K10: 0.01104972376 | L10: 1% | R10: I use software to track water use | S10: 0.3480662983 | T10: 0.2608695652 | U10: 0.2368421053 | V10: 0.5 | W10: 0.4390243902 | X10: 0.3181818182 | Y10: 0.3225806452 | Z10: 0.2297297297 | AA10: 0.3975903614 | AB10: 0.619047619
E11: I have the ability to transfer water | F11: 0.6906077348 | G11: =RANK(F11,$F$6:$F$11)+COUNTIF($G$6:G10,RANK(F11,$F$6:$F$11)) -> 1 | I11: 6 | J11: I use covers over storages | K11: 0.005524861878 | L11: 1% | R11: I have the ability to transfer water | S11: 0.6906077348 | T11: 0.6086956522 | U11: 0.6842105263 | V11: 0.7692307692 | W11: 0.7804878049 | X11: 0.6363636364 | Y11: 0.6129032258 | Z11: 0.6216216216 | AA11: 0.7108433735 | AB11: 0.9047619048
E12: Other practices (please tell us what you do) | F12: 0.1767955801 | G12: 7 | I12: 7 | J12: Other practices (please tell us what you do) | K12: 0.1767955801 | L12: 18% | R12: Other practices (please tell us what you do) | S12: 0.1767955801 | T12: 0.2608695652 | U12: 0.1842105263 | V12: 0.1538461538 | W12: 0.1707317073 | X12: 0.04545454545 | Y12: 0.2258064516 | Z12: 0.1621621622 | AA12: 0.2048192771 | AB12: 0.1428571429
E13: I don’t do anything | F13: 0.1436464088 | G13: 8 | I13: 8 | J13: I don’t do anything | K13: 0.1436464088 | L13: 14% | R13: I don’t do anything | S13: 0.1436464088 | T13: 0.2173913043 | U13: 0.2105263158 | V13: 0 | W13: 0.07317073171 | X13: 0.1818181818 | Y13: 0.1935483871 | Z13: 0.2162162162 | AA13: 0.09638554217 | AB13: 0
C18: Focus - Segment | J18: Re-order to same order as above | L18: Label
E19: Base | F19: =INDEX($S5:$AB5,1,$A$1) -> 181
E20: I apply evaporation mitigating polymers | F20: 0.01104972376 | J20: =INDEX($E$20:$G$27,MATCH($J6,$E$20:$E$27,0),1) -> I have the ability to transfer water | K20: =INDEX($E$20:$G$27,MATCH($J6,$E$20:$E$27,0),2) -> 0.6906077348 | L20: =IF(AND(K20>0,K20<0.005),"<1%",TEXT(K20,"0%")) -> 69%
E21: I use covers over storages | F21: 0.005524861878 | J21: I have undertaken earthworks to raise height/divide storages | K21: 0.453038674 | L21: 45%
E22: I have undertaken earthworks to raise height/divide storages | F22: 0.453038674 | J22: I use software to track water use | K22: 0.3480662983 | L22: 35%
E23: I have lined storages and/or channels with clays or plastics | F23: 0.1657458564 | J23: I have lined storages and/or channels with clays or plastics | K23: 0.1657458564 | L23: 17%
E24: I use software to track water use | F24: 0.3480662983 | J24: I apply evaporation mitigating polymers | K24: 0.01104972376 | L24: 1%
E25: I have the ability to transfer water | F25: 0.6906077348 | J25: I use covers over storages | K25: 0.005524861878 | L25: 1%
E26: Other practices (please tell us what you do) | F26: 0.1767955801 | J26: Other practices (please tell us what you do) | K26: 0.1767955801 | L26: 18%
E27: I don’t do anything | F27: 0.1436464088 | J27: I don’t do anything | K27: 0.1436464088 | L27: 14%

Sheet Riparian Area of Farm
E1: 2017 Grower Survey | R1: Data in Focus:
E5: Natural Resource Management - Riparian Area of Farm
C7: Average riparian size | L7: ="Results - "&'Data - Riparian Area of Farm'!F1&" growers" -> Results - All cotton growers
J26: =IF('HIDDEN - Backend'!Q17=1,"Source: 2017 Grower Survey, CRDC","") ->  | S26: =IF(AND('HIDDEN - Backend'!Q17=1,'HIDDEN - Backend'!Q3>1),"Source: 2017 Grower Survey, CRDC","") -> 
C27: ="Base: all cotton growers with a riparian area on their farm; n = "&'Data - Riparian Area of Farm'!F5&"." -> Base: all cotton growers with a riparian area on their farm; n = 157. | L27: =IF('Data - Riparian Area of Farm'!A1=1,"","Base: "&'Data - Riparian Area of Farm'!F1&" growers with a riparian area on their farm; n = "&'Data - Riparian Area of Farm'!F13&".") -> 
C29: Question: Approximately how long and wide is the riparian area on your property? Please answer in kilometres e.g. 0.2km, 2.75km.

Sheet Data - Riparian Area of Farm (hidden)
A1: ='HIDDEN - Backend'!Q3 -> 1 | E1: Segment | F1: =INDEX($S1:$AB1,1,$A$1) -> All cotton | S1: All cotton | T1: Central Queensland | U1: Darling Downs | V1: Macintyre - Balonne | W1: Northern NSW | X1: Macquarie | Y1: Southern NSW | Z1: Small farm | AA1: Medium farm | AB1: Large farm
C2: CHARTS | Q2: DATA
C4: Focus - Overall | S4: Overall | T4: Central Queensland | U4: Darling Downs | V4: Macintyre - Balonne | W4: Northern NSW | X4: Macquarie | Y4: Southern NSW | Z4: Small (< 1,000 ha) | AA4: Medium (1,000 - 5,000 ha) | AB4: Large (> 5,000 ha)
E5: Base | F5: =INDEX($S5:$AB5,1,1) -> 157 | R5: Base: | S5: 157 | T5: 20 | U5: 32 | V5: 25 | W5: 42 | X5: 18 | Y5: 20 | Z5: 59 | AA5: 77 | AB5: 19
E6: Riparian length (best estimate) | F6: =INDEX($S6:$AB6,1,1) -> 7.65 | G6: =IF(F5=0,"n/a",TEXT(F6,"0.00")&" km") -> 7.65 km | R6: Riparian length (best estimate) | S6: 7.65 | T6: 4.05 | U6: 3.76 | V6: 11.64 | W6: 8.01 | X6: 7.01 | Y6: 12.31 | Z6: 3.42 | AA6: 8.32 | AB6: 17.97
E7: Average width (best estimate) | F7: 174 | G7: =IF(F5=0,"n/a",TEXT(F7,"0")&" m") -> 174 m | R7: Average width (best estimate) | S7: 174 | T7: 204 | U7: 187 | V7: 157 | W7: 161 | X7: 136 | Y7: 210 | Z7: 154 | AA7: 186 | AB7: 164
C12: Focus - Segment
E13: Base | F13: =INDEX($S5:$AB5,1,$A$1) -> 157
E14: Riparian length (best estimate) | F14: =INDEX($S6:$AB6,1,$A$1) -> 7.65 | G14: =IF(F13=0,"n/a",TEXT(F14,"0.00")&" km") -> 7.65 km
E15: Average width (best estimate) | F15: =INDEX($S7:$AB7,1,$A$1) -> 174 | G15: =IF(F13=0,"n/a",TEXT(F15,"0")&" m") -> 174 m

Sheet Ecosystem Services
E1: 2017 Grower Survey
E5: Natural Resource Management - Ecosystem Services
C7: Importance of ecosystem services provided by riparian areas on their farms
C27: ="Base: all cotton growers; n = "&MIN('Data - Ecosystem Services'!F5,'Data - Ecosystem Services'!F14,'Data - Ecosystem Services'!F23,'Data - Ecosystem Services'!F32,'Data - Ecosystem Services'!F41,'Data - Ecosystem Services'!F50,'Data - Ecosystem Services'!F59)&"." -> Base: all cotton growers; n = 201. | S27: =IF('HIDDEN - Backend'!Q17=1,"Source: 2017 Grower Survey, CRDC","") -> 
C29: Question: How important are the following ecosystem services provided by riparian areas on your farm?

Sheet Data - Ecosystem Services (hidden)
A1: ='HIDDEN - Backend'!Q3 -> 1 | E1: Segment | F1: =INDEX($S1:$AB1,1,$A$1) -> All cotton | S1: All cotton | T1: Central Queensland | U1: Darling Downs | V1: Macintyre - Balonne | W1: Northern NSW | X1: Macquarie | Y1: Southern NSW | Z1: Small farm | AA1: Medium farm | AB1: Large farm
C2: CHARTS | Q2: DATA
C4: Focus - Overall | G4: Label | J4: Negative | K4: Positive | L4: Nett | M4: Rank | S4: Overall | T4: Central Queensland | U4: Darling Downs | V4: Macintyre - Balonne | W4: Northern NSW | X4: Macquarie | Y4: Southern NSW | Z4: Small (< 1,000 ha) | AA4: Medium (1,000 - 5,000 ha) | AB4: Large (> 5,000 ha)
E5: Base | F5: =INDEX($S5:$AB5,1,1) -> 202 | R5: Base: | S5: 202
C6: Natural pest management | E6: Not important at all | F6: =INDEX($S6:$AB6,1,1) -> 0.04455445545 | G6: =IF(AND(F6>0,F6<0.005),"<1%",TEXT(F6,"0%")) -> 4% | I6: =C6 -> Natural pest management | J6: =F6+F7 -> 0.1732673267 | K6: =F8+F9 -> 0.5693069307 | L6: =TEXT(ROUND(K6,2)-ROUND(J6,2),"+##0%;-##0%") -> +40% | M6: 3 | P6: Natural pest management | R6: Not important at all | S6: 0.04455445545
E7: Not that important | F7: 0.1287128713 | G7: =IF(AND(F7>0,F7<0.005),"<1%",TEXT(F7,"0%")) -> 13% | R7: Not that important | S7: 0.1287128713
E8: Somewhat important | F8: 0.3069306931 | G8: 31% | R8: Somewhat important | S8: 0.3069306931
E9: Extremely important | F9: 0.2623762376 | G9: 26% | R9: Extremely important | S9: 0.2623762376
E10: Not sure | F10: 0.2574257426 | G10: 26% | R10: Not sure | S10: 0.2574257426
S13: Overall | T13: Central Queensland | U13: Darling Downs | V13: Macintyre - Balonne | W13: Northern NSW | X13: Macquarie | Y13: Southern NSW | Z13: Small (< 1,000 ha) | AA13: Medium (1,000 - 5,000 ha) | AB13: Large (> 5,000 ha)
E14: Base: | F14: =INDEX($S14:$AB14,1,1) -> 201 | R14: Base: | S14: 201
C15: Provision of pasture | E15: Not important at all | F15: =INDEX($S15:$AB15,1,1) -> 0.1940298507 | G15: =IF(AND(F15>0,F15<0.005),"<1%",TEXT(F15,"0%")) -> 19% | I15: =C15 -> Provision of pasture | J15: =F15+F16 -> 0.3830845771 | K15: =F17+F18 -> 0.3532338308 | L15: =TEXT(ROUND(K15,2)-ROUND(J15,2),"+##0%;-##0%") -> -3% | M15: 6 | P15: Provision of pasture | R15: Not important at all | S15: 0.1940298507
E16: Not that important | F16: 0.1890547264 | G16: =IF(AND(F16>0,F16<0.005),"<1%",TEXT(F16,"0%")) -> 19% | R16: Not that important | S16: 0.1890547264
E17: Somewhat important | F17: 0.223880597 | G17: 22% | R17: Somewhat important | S17: 0.223880597
E18: Extremely important | F18: 0.1293532338 | G18: 13% | R18: Extremely important | S18: 0.1293532338
E19: Not sure | F19: 0.263681592 | G19: 26% | R19: Not sure | S19: 0.263681592
S22: Overall | T22: Central Queensland | U22: Darling Downs | V22: Macintyre - Balonne | W22: Northern NSW | X22: Macquarie | Y22: Southern NSW | Z22: Small (< 1,000 ha) | AA22: Medium (1,000 - 5,000 ha) | AB22: Large (> 5,000 ha)
E23: Base: | F23: =INDEX($S23:$AB23,1,1) -> 202 | R23: Base: | S23: 202
C24: Reduced erosion | E24: Not important at all | F24: =INDEX($S24:$AB24,1,1) -> 0.06930693069 | G24: =IF(AND(F24>0,F24<0.005),"<1%",TEXT(F24,"0%")) -> 7% | I24: =C24 -> Reduced erosion | J24: =F24+F25 -> 0.1584158416 | K24: =F26+F27 -> 0.6089108911 | L24: =TEXT(ROUND(K24,2)-ROUND(J24,2),"+##0%;-##0%") -> +45% | M24: 1 | P24: Reduced erosion | R24: Not important at all | S24: 0.06930693069
E25: Not that important | F25: 0.08910891089 | G25: =IF(AND(F25>0,F25<0.005),"<1%",TEXT(F25,"0%")) -> 9% | R25: Not that important | S25: 0.08910891089
E26: Somewhat important | F26: 0.301980198 | G26: 30% | R26: Somewhat important | S26: 0.301980198
E27: Extremely important | F27: 0.3069306931 | G27: 31% | R27: Extremely important | S27: 0.3069306931
E28: Not sure | F28: 0.2326732673 | G28: 23% | R28: Not sure | S28: 0.2326732673
S31: Overall | T31: Central Queensland | U31: Darling Downs | V31: Macintyre - Balonne | W31: Northern NSW | X31: Macquarie | Y31: Southern NSW | Z31: Small (< 1,000 ha) | AA31: Medium (1,000 - 5,000 ha) | AB31: Large (> 5,000 ha)
E32: Base: | F32: =INDEX($S32:$AB32,1,1) -> 201 | R32: Base: | S32: 201
C33: Carbon sequestration | E33: Not important at all | F33: =INDEX($S33:$AB33,1,1) -> 0.1791044776 | G33: =IF(AND(F33>0,F33<0.005),"<1%",TEXT(F33,"0%")) -> 18% | I33: =C33 -> Carbon sequestration | J33: =F33+F34 -> 0.3830845771 | K33: =F35+F36 -> 0.3233830846 | L33: =TEXT(ROUND(K33,2)-ROUND(J33,2),"+##0%;-##0%") -> -6% | M33: 7 | P33: Carbon sequestration | R33: Not important at all | S33: 0.1791044776
E34: Not that important | F34: 0.2039800995 | G34: =IF(AND(F34>0,F34<0.005),"<1%",TEXT(F34,"0%")) -> 20% | R34: Not that important | S34: 0.2039800995
E35: Somewhat important | F35: 0.2537313433 | G35: 25% | R35: Somewhat important | S35: 0.2537313433
E36: Extremely important | F36: 0.06965174129 | G36: 7% | R36: Extremely important | S36: 0.06965174129
E37: Not sure | F37: 0.2935323383 | G37: 29% | R37: Not sure | S37: 0.2935323383
S40: Overall | T40: Central Queensland | U40: Darling Downs | V40: Macintyre - Balonne | W40: Northern NSW | X40: Macquarie | Y40: Southern NSW | Z40: Small (< 1,000 ha) | AA40: Medium (1,000 - 5,000 ha) | AB40: Large (> 5,000 ha)
E41: Base: | F41: =INDEX($S41:$AB41,1,1) -> 202 | R41: Base: | S41: 202
C42: Wildlife habitat | E42: Not important at all | F42: =INDEX($S42:$AB42,1,1) -> 0.06930693069 | G42: =IF(AND(F42>0,F42<0.005),"<1%",TEXT(F42,"0%")) -> 7% | I42: =C42 -> Wildlife habitat | J42: =F42+F43 -> 0.1683168317 | K42: =F44+F45 -> 0.5940594059 | L42: =TEXT(ROUND(K42,2)-ROUND(J42,2),"+##0%;-##0%") -> +42% | M42: 2 | P42: Wildlife habitat | R42: Not important at all | S42: 0.06930693069
E43: Not that important | F43: 0.09900990099 | G43: =IF(AND(F43>0,F43<0.005),"<1%",TEXT(F43,"0%")) -> 10% | R43: Not that important | S43: 0.09900990099
E44: Somewhat important | F44: 0.3663366337 | G44: 37% | R44: Somewhat important | S44: 0.3663366337
E45: Extremely important | F45: 0.2277227723 | G45: 23% | R45: Extremely important | S45: 0.2277227723
E46: Not sure | F46: 0.2376237624 | G46: 24% | R46: Not sure | S46: 0.2376237624
S49: Overall | T49: Central Queensland | U49: Darling Downs | V49: Macintyre - Balonne | W49: Northern NSW | X49: Macquarie | Y49: Southern NSW | Z49: Small (< 1,000 ha) | AA49: Medium (1,000 - 5,000 ha) | AB49: Large (> 5,000 ha)
E50: Base: | F50: =INDEX($S50:$AB50,1,1) -> 202 | R50: Base: | S50: 202
C51: Pollination support | E51: Not important at all | F51: =INDEX($S51:$AB51,1,1) -> 0.103960396 | G51: =IF(AND(F51>0,F51<0.005),"<1%",TEXT(F51,"0%")) -> 10% | I51: =C51 -> Pollination support | J51: =F51+F52 -> 0.2277227723 | K51: =F53+F54 -> 0.5148514851 | L51: =TEXT(ROUND(K51,2)-ROUND(J51,2),"+##0%;-##0%") -> +28% | M51: 4 | P51: Pollination support | R51: Not important at all | S51: 0.103960396
E52: Not that important | F52: 0.1237623762 | G52: =IF(AND(F52>0,F52<0.005),"<1%",TEXT(F52,"0%")) -> 12% | R52: Not that important | S52: 0.1237623762
E53: Somewhat important | F53: 0.3168316832 | G53: 32% | R53: Somewhat important | S53: 0.3168316832
E54: Extremely important | F54: 0.198019802 | G54: 20% | R54: Extremely important | S54: 0.198019802
E55: Not sure | F55: 0.2574257426 | G55: 26% | R55: Not sure | S55: 0.2574257426
S58: Overall | T58: Central Queensland | U58: Darling Downs | V58: Macintyre - Balonne | W58: Northern NSW | X58: Macquarie | Y58: Southern NSW | Z58: Small (< 1,000 ha) | AA58: Medium (1,000 - 5,000 ha) | AB58: Large (> 5,000 ha)
E59: Base: | F59: =INDEX($S59:$AB59,1,1) -> 201 | R59: Base: | S59: 201
C60: Recreation | E60: Not important at all | F60: =INDEX($S60:$AB60,1,1) -> 0.1144278607 | G60: =IF(AND(F60>0,F60<0.005),"<1%",TEXT(F60,"0%")) -> 11% | I60: =C60 -> Recreation | J60: =F60+F61 -> 0.2686567164 | K60: =F62+F63 -> 0.4875621891 | L60: =TEXT(ROUND(K60,2)-ROUND(J60,2),"+##0%;-##0%") -> +22% | M60: 5 | P60: Recreation | R60: Not important at all | S60: 0.1144278607
E61: Not that important | F61: 0.1542288557 | G61: =IF(AND(F61>0,F61<0.005),"<1%",TEXT(F61,"0%")) -> 15% | R61: Not that important | S61: 0.1542288557
E62: Somewhat important | F62: 0.3432835821 | G62: 34% | R62: Somewhat important | S62: 0.3432835821
E63: Extremely important | F63: 0.144278607 | G63: 14% | R63: Extremely important | S63: 0.144278607
E64: Not sure | F64: 0.2437810945 | G64: 24% | R64: Not sure | S64: 0.2437810945
I69: FOR CHART:
H71: Rank | I71: Label | J71: Negative | K71: Positive | L71: Nett
H72: 1 | I72: =INDEX($I$6:$M$60,MATCH($H72,$M$6:$M$60,0),1) -> Reduced erosion | J72: =INDEX($I$6:$M$60,MATCH($H72,$M$6:$M$60,0),2) -> 0.1584158416 | K72: =INDEX($I$6:$M$60,MATCH($H72,$M$6:$M$60,0),3) -> 0.6089108911 | L72: =INDEX($I$6:$M$60,MATCH($H72,$M$6:$M$60,0),4) -> +45%
H73: 2 | I73: Wildlife habitat | J73: 0.1683168317 | K73: 0.5940594059 | L73: +42%
H74: 3 | I74: Natural pest management | J74: 0.1732673267 | K74: 0.5693069307 | L74: +40%
H75: 4 | I75: Pollination support | J75: 0.2277227723 | K75: 0.5148514851 | L75: +28%
H76: 5 | I76: Recreation | J76: 0.2686567164 | K76: 0.4875621891 | L76: +22%
H77: 6 | I77: Provision of pasture | J77: 0.3830845771 | K77: 0.3532338308 | L77: -3%
H78: 7 | I78: Carbon sequestration | J78: 0.3830845771 | K78: 0.3233830846 | L78: -6%

Sheet Riparian Problems
E1: 2017 Grower Survey
E5: Natural Resource Management - Riparian Problems & Practices
C7: Problems with the riparian areas on their farm | L7: Riparian area management practices they have undertaken in the last 10 years
C27: ="Base: all cotton growers; n = "&MIN('Data - Riparian Problems'!F5,'Data - Riparian Problems'!F13,'Data - Riparian Problems'!F21,'Data - Riparian Problems'!F29,'Data - Riparian Problems'!F37,'Data - Riparian Problems'!F45)&"." -> Base: all cotton growers; n = 201. | J27: =IF('HIDDEN - Backend'!Q17=1,"Source: 2017 Grower Survey, CRDC","") ->  | L27: ="Base: all cotton growers; n = "&'Data - Riparian Problems'!F56&"." -> Base: all cotton growers; n = 202. | S27: =IF('HIDDEN - Backend'!Q17=1,"Source: 2017 Grower Survey, CRDC","") -> 
C29: Question: How much of a problem are the following within riparian areas on your farm? | L29: Question: What management practices have you undertaken on your property within your riparian areas in the last 10 years? ^Multiple responses accepted. Results may not add to 100%.

Sheet Data - Riparian Problems (hidden)
A1: ='HIDDEN - Backend'!Q3 -> 1 | E1: Segment | F1: =INDEX($S1:$AB1,1,$A$1) -> All cotton | S1: All cotton | T1: Central Queensland | U1: Darling Downs | V1: Macintyre - Balonne | W1: Northern NSW | X1: Macquarie | Y1: Southern NSW | Z1: Small farm | AA1: Medium farm | AB1: Large farm
C2: CHARTS | Q2: DATA
C4: Focus - Overall | G4: Label | S4: Overall | T4: Central Queensland | U4: Darling Downs | V4: Macintyre - Balonne | W4: Northern NSW | X4: Macquarie | Y4: Southern NSW | Z4: Small (< 1,000 ha) | AA4: Medium (1,000 - 5,000 ha) | AB4: Large (> 5,000 ha)
E5: Base | F5: =INDEX($S5:$AB5,1,1) -> 201 | R5: Base: | S5: 201
C6: Erosion | E6: A major problem | F6: =INDEX($S6:$AB6,1,1) -> 0.02985074627 | G6: =IF(AND(F6>0,F6<0.005),"<1%",TEXT(F6,"0%")) -> 3% | P6: Erosion | R6: A major problem | S6: 0.02985074627
E7: Somewhat of a problem | F7: 0.3482587065 | G7: =IF(AND(F7>0,F7<0.005),"<1%",TEXT(F7,"0%")) -> 35% | R7: Somewhat of a problem | S7: 0.3482587065
E8: Not a problem at all | F8: 0.4029850746 | G8: 40% | R8: Not a problem at all | S8: 0.4029850746
E9: Can’t say | F9: 0.2189054726 | G9: 22% | R9: Can’t say | S9: 0.2189054726
S12: Overall | T12: Central Queensland | U12: Darling Downs | V12: Macintyre - Balonne | W12: Northern NSW | X12: Macquarie | Y12: Southern NSW | Z12: Small (< 1,000 ha) | AA12: Medium (1,000 - 5,000 ha) | AB12: Large (> 5,000 ha)
E13: Base: | F13: =INDEX($S13:$AB13,1,1) -> 201 | R13: Base: | S13: 201
C14: Weeds | E14: A major problem | F14: =INDEX($S14:$AB14,1,1) -> 0.1890547264 | G14: =IF(AND(F14>0,F14<0.005),"<1%",TEXT(F14,"0%")) -> 19% | P14: Weeds | R14: A major problem | S14: 0.1890547264
E15: Somewhat of a problem | F15: 0.4179104478 | G15: =IF(AND(F15>0,F15<0.005),"<1%",TEXT(F15,"0%")) -> 42% | R15: Somewhat of a problem | S15: 0.4179104478
E16: Not a problem at all | F16: 0.1691542289 | G16: 17% | R16: Not a problem at all | S16: 0.1691542289
E17: Can’t say | F17: 0.223880597 | G17: 22% | R17: Can’t say | S17: 0.223880597
S20: Overall | T20: Central Queensland | U20: Darling Downs | V20: Macintyre - Balonne | W20: Northern NSW | X20: Macquarie | Y20: Southern NSW | Z20: Small (< 1,000 ha) | AA20: Medium (1,000 - 5,000 ha) | AB20: Large (> 5,000 ha)
E21: Base: | F21: =INDEX($S21:$AB21,1,1) -> 201 | R21: Base: | S21: 201
C22: Pest animals | E22: A major problem | F22: =INDEX($S22:$AB22,1,1) -> 0.2786069652 | G22: =IF(AND(F22>0,F22<0.005),"<1%",TEXT(F22,"0%")) -> 28% | P22: Pest animals | R22: A major problem | S22: 0.2786069652
E23: Somewhat of a problem | F23: 0.368159204 | G23: =IF(AND(F23>0,F23<0.005),"<1%",TEXT(F23,"0%")) -> 37% | R23: Somewhat of a problem | S23: 0.368159204
E24: Not a problem at all | F24: 0.1343283582 | G24: 13% | R24: Not a problem at all | S24: 0.1343283582
E25: Can’t say | F25: 0.2189054726 | G25: 22% | R25: Can’t say | S25: 0.2189054726
S28: Overall | T28: Central Queensland | U28: Darling Downs | V28: Macintyre - Balonne | W28: Northern NSW | X28: Macquarie | Y28: Southern NSW | Z28: Small (< 1,000 ha) | AA28: Medium (1,000 - 5,000 ha) | AB28: Large (> 5,000 ha)
E29: Base: | F29: =INDEX($S29:$AB29,1,1) -> 201 | R29: Base: | S29: 201
C30: Regeneration/woody thickening | E30: A major problem | F30: =INDEX($S30:$AB30,1,1) -> 0.1542288557 | G30: =IF(AND(F30>0,F30<0.005),"<1%",TEXT(F30,"0%")) -> 15% | P30: Regeneration/woody thickening | R30: A major problem | S30: 0.1542288557
E31: Somewhat of a problem | F31: 0.2786069652 | G31: =IF(AND(F31>0,F31<0.005),"<1%",TEXT(F31,"0%")) -> 28% | R31: Somewhat of a problem | S31: 0.2786069652
E32: Not a problem at all | F32: 0.3432835821 | G32: 34% | R32: Not a problem at all | S32: 0.3432835821
E33: Can’t say | F33: 0.223880597 | G33: 22% | R33: Can’t say | S33: 0.223880597
S36: Overall | T36: Central Queensland | U36: Darling Downs | V36: Macintyre - Balonne | W36: Northern NSW | X36: Macquarie | Y36: Southern NSW | Z36: Small (< 1,000 ha) | AA36: Medium (1,000 - 5,000 ha) | AB36: Large (> 5,000 ha)
E37: Base: | F37: =INDEX($S37:$AB37,1,1) -> 201 | R37: Base: | S37: 201
C38: People coming onto your farm without permission | E38: A major problem | F38: =INDEX($S38:$AB38,1,1) -> 0.09452736318 | G38: =IF(AND(F38>0,F38<0.005),"<1%",TEXT(F38,"0%")) -> 9% | P38: People coming onto your farm without permission | R38: A major problem | S38: 0.09452736318
E39: Somewhat of a problem | F39: 0.328358209 | G39: =IF(AND(F39>0,F39<0.005),"<1%",TEXT(F39,"0%")) -> 33% | R39: Somewhat of a problem | S39: 0.328358209
E40: Not a problem at all | F40: 0.3532338308 | G40: 35% | R40: Not a problem at all | S40: 0.3532338308
E41: Can’t say | F41: 0.223880597 | G41: 22% | R41: Can’t say | S41: 0.223880597
S44: Overall | T44: Central Queensland | U44: Darling Downs | V44: Macintyre - Balonne | W44: Northern NSW | X44: Macquarie | Y44: Southern NSW | Z44: Small (< 1,000 ha) | AA44: Medium (1,000 - 5,000 ha) | AB44: Large (> 5,000 ha)
E45: Base: | F45: =INDEX($S45:$AB45,1,1) -> 202 | R45: Base: | S45: 202
C46: Loss of production area | E46: A major problem | F46: =INDEX($S46:$AB46,1,1) -> 0.05445544554 | G46: =IF(AND(F46>0,F46<0.005),"<1%",TEXT(F46,"0%")) -> 5% | P46: Loss of production area | R46: A major problem | S46: 0.05445544554
E47: Somewhat of a problem | F47: 0.1732673267 | G47: =IF(AND(F47>0,F47<0.005),"<1%",TEXT(F47,"0%")) -> 17% | R47: Somewhat of a problem | S47: 0.1732673267
E48: Not a problem at all | F48: 0.5396039604 | G48: 54% | R48: Not a problem at all | S48: 0.5396039604
E49: Can’t say | F49: =INDEX($S49:$X49,1,1) -> 0.2326732673 | G49: 23% | R49: Can’t say | S49: 0.2326732673
G55: Rank | J55: Re-order | L55: Label | S55: Overall
E56: Base: | F56: =INDEX($S56:$AB56,1,1) -> 202 | R56: Base | S56: 202
C57: What management practices have you undertaken on your property within your riparian areas in the last 10 years | E57: Weed control | F57: =INDEX($S57:$AB57,1,1) -> 0.470297 | G57: =RANK(F57,$F$57:$F$64) -> 2 | I57: 1 | J57: =INDEX($E$57:$G$65,MATCH($I57,$G$57:$G$65,0),1) -> Pest animal control | K57: =INDEX($E$57:$G$65,MATCH($I57,$G$57:$G$65,0),2) -> 0.544554 | L57: =IF(AND(K57>0,K57<0.005),"<1%",TEXT(K57,"0%")) -> 54% | P57: What management practices have you undertaken on your property within your riparian areas in the last 10 years | R57: Weed control | S57: 0.470297
E58: Pest animal control | F58: 0.544554 | G58: =RANK(F58,$F$57:$F$64)+COUNTIF($G$57:G57,RANK(F58,$F$57:$F$64)) -> 1 | I58: 2 | J58: =INDEX($E$57:$G$65,MATCH($I58,$G$57:$G$65,0),1) -> Weed control | K58: =INDEX($E$57:$G$65,MATCH($I58,$G$57:$G$65,0),2) -> 0.470297 | L58: =IF(AND(K58>0,K58<0.005),"<1%",TEXT(K58,"0%")) -> 47% | R58: Pest animal control | S58: 0.544554
E59: Erosion control | F59: 0.316832 | G59: =RANK(F59,$F$57:$F$64)+COUNTIF($G$57:G58,RANK(F59,$F$57:$F$64)) -> 5 | I59: 3 | J59: Restricted grazing access (e.g. fencing, time control grazing) | K59: 0.410891 | L59: 41% | R59: Erosion control | S59: 0.316832
E60: Vegetation clearing/thinning | F60: 0.183168 | G60: =RANK(F60,$F$57:$F$64)+COUNTIF($G$57:G59,RANK(F60,$F$57:$F$64)) -> 8 | I60: 4 | J60: Identified these areas in your Chemical Handling Application Plan | K60: 0.381188 | L60: 38% | R60: Vegetation clearing/thinning | S60: 0.183168
E61: Woody debris removal | F61: 0.193069 | G61: =RANK(F61,$F$57:$F$64)+COUNTIF($G$57:G60,RANK(F61,$F$57:$F$64)) -> 7 | I61: 5 | J61: Erosion control | K61: 0.316832 | L61: 32% | R61: Woody debris removal | S61: 0.193069
E62: Vegetation regeneration /revegetation | F62: 0.207921 | G62: =RANK(F62,$F$57:$F$64)+COUNTIF($G$57:G61,RANK(F62,$F$57:$F$64)) -> 6 | I62: 6 | J62: Vegetation regeneration /revegetation | K62: 0.207921 | L62: 21% | R62: Vegetation regeneration /revegetation | S62: 0.207921
E63: Restricted grazing access (e.g. fencing, time control grazing) | F63: 0.410891 | G63: =RANK(F63,$F$57:$F$64)+COUNTIF($G$57:G62,RANK(F63,$F$57:$F$64)) -> 3 | I63: 7 | J63: Woody debris removal | K63: 0.193069 | L63: 19% | R63: Restricted grazing access (e.g. fencing, time control grazing) | S63: 0.410891
E64: Identified these areas in your Chemical Handling Application Plan | F64: 0.381188 | G64: =RANK(F64,$F$57:$F$64)+COUNTIF($G$57:G63,RANK(F64,$F$57:$F$64)) -> 4 | I64: 8 | J64: Vegetation clearing/thinning | K64: 0.183168 | L64: 18% | R64: Identified these areas in your Chemical Handling Application Plan | S64: 0.381188
E65: None in the last 10 years | F65: 0.29703 | G65: 9 | I65: 9 | J65: None in the last 10 years | K65: 0.29703 | L65: 30% | R65: None in the last 10 years | S65: 0.29703

Sheet Significant Changes
E1: 2017 Grower Survey
E5: Natural Resource Management - Significant Changes
C7: Significant changes with animals and vegetations within riparian areas over the last 10 years
C27: ="Base: all cotton growers; n = "&MAX('Data - Significant Changes'!F5,'Data - Significant Changes'!F13,'Data - Significant Changes'!F21,'Data - Significant Changes'!F29,'Data - Significant Changes'!F37,'Data - Significant Changes'!F45)&"." -> Base: all cotton growers; n = 199. | S27: =IF('HIDDEN - Backend'!Q17=1,"Source: 2017 Grower Survey, CRDC","") -> 
C29: Question: Have you noticed any significant changes in the vegetation or animals within riparian areas on your property over the last 10 years?

Sheet Data - Significant Changes (hidden)
A1: ='HIDDEN - Backend'!Q3 -> 1 | E1: Segment | F1: =INDEX($S1:$AB1,1,$A$1) -> All cotton | S1: All cotton | T1: Central Queensland | U1: Darling Downs | V1: Macintyre - Balonne | W1: Northern NSW | X1: Macquarie | Y1: Southern NSW | Z1: Small farm | AA1: Medium farm | AB1: Large farm
C2: CHARTS | Q2: DATA
C4: Focus - Overall | G4: Label | J4: Decreased | K4: Increased | L4: Nett | M4: Rank | S4: Overall | T4: Central Queensland | U4: Darling Downs | V4: Macintyre - Balonne | W4: Northern NSW | X4: Macquarie | Y4: Southern NSW | Z4: Small (< 1,000 ha) | AA4: Medium (1,000 - 5,000 ha) | AB4: Large (> 5,000 ha)
E5: Base | F5: =INDEX($S5:$AB5,1,1) -> 197 | R5: Base | S5: 197
C6: Erosion | E6: Increased | F6: =INDEX($S6:$AB6,1,1) -> 0.06091370558 | G6: =IF(AND(F6>0,F6<0.005),"<1%",TEXT(F6,"0%")) -> 6% | I6: Erosion | J6: =F8 -> 0.1065989848 | K6: =F6 -> 0.06091370558 | L6: =TEXT(ROUND(K6,2)-ROUND(J6,2),"+##0%;-##0%") -> -5% | M6: 6 | P6: Erosion | R6: Increased | S6: 0.06091370558
E7: No change | F7: 0.5685279188 | G7: =IF(AND(F7>0,F7<0.005),"<1%",TEXT(F7,"0%")) -> 57% | R7: No change | S7: 0.5685279188
E8: Decreased | F8: 0.1065989848 | G8: 11% | R8: Decreased | S8: 0.1065989848
E9: Not sure | F9: 0.2639593909 | G9: 26% | R9: Not sure | S9: 0.2639593909
S12: Overall | T12: Central Queensland | U12: Darling Downs | V12: Macintyre - Balonne | W12: Northern NSW | X12: Macquarie | Y12: Southern NSW | Z12: Small (< 1,000 ha) | AA12: Medium (1,000 - 5,000 ha) | AB12: Large (> 5,000 ha)
E13: Base | F13: =INDEX($S13:$AB13,1,1) -> 199 | R13: Base | S13: 199
C14: Regeneration of shrubs and trees | E14: Increased | F14: =INDEX($S14:$AB14,1,1) -> 0.4472361809 | G14: =IF(AND(F14>0,F14<0.005),"<1%",TEXT(F14,"0%")) -> 45% | I14: Regeneration of shrubs and trees | J14: =F16 -> 0.005025125628 | K14: =F14 -> 0.4472361809 | L14: =TEXT(ROUND(K14,2)-ROUND(J14,2),"+##0%;-##0%") -> +44% | M14: 1 | P14: Regeneration of shrubs and trees | R14: Increased | S14: 0.4472361809
E15: No change | F15: 0.2914572864 | G15: =IF(AND(F15>0,F15<0.005),"<1%",TEXT(F15,"0%")) -> 29% | R15: No change | S15: 0.2914572864
E16: Decreased | F16: 0.005025125628 | G16: 1% | R16: Decreased | S16: 0.005025125628
E17: Not sure | F17: 0.256281407 | G17: 26% | R17: Not sure | S17: 0.256281407
S20: Overall | T20: Central Queensland | U20: Darling Downs | V20: Macintyre - Balonne | W20: Northern NSW | X20: Macquarie | Y20: Southern NSW | Z20: Small (< 1,000 ha) | AA20: Medium (1,000 - 5,000 ha) | AB20: Large (> 5,000 ha)
E21: Base | F21: =INDEX($S21:$AB21,1,1) -> 199 | R21: Base | S21: 199
C22: Abundance of weeds | E22: Increased | F22: =INDEX($S22:$AB22,1,1) -> 0.2713567839 | G22: =IF(AND(F22>0,F22<0.005),"<1%",TEXT(F22,"0%")) -> 27% | I22: Abundance of weeds | J22: =F24 -> 0.04020100503 | K22: =F22 -> 0.2713567839 | L22: =TEXT(ROUND(K22,2)-ROUND(J22,2),"+##0%;-##0%") -> +23% | M22: 4 | P22: Abundance of weeds | R22: Increased | S22: 0.2713567839
E23: No change | F23: 0.432160804 | G23: =IF(AND(F23>0,F23<0.005),"<1%",TEXT(F23,"0%")) -> 43% | R23: No change | S23: 0.432160804
E24: Decreased | F24: 0.04020100503 | G24: 4% | R24: Decreased | S24: 0.04020100503
E25: Not sure | F25: 0.256281407 | G25: 26% | R25: Not sure | S25: 0.256281407
S28: Overall | T28: Central Queensland | U28: Darling Downs | V28: Macintyre - Balonne | W28: Northern NSW | X28: Macquarie | Y28: Southern NSW | Z28: Small (< 1,000 ha) | AA28: Medium (1,000 - 5,000 ha) | AB28: Large (> 5,000 ha)
E29: Base | F29: =INDEX($S29:$AB29,1,1) -> 198 | R29: Base | S29: 198
C30: Diversity of native animals | E30: Increased | F30: =INDEX($S30:$AB30,1,1) -> 0.2121212121 | G30: =IF(AND(F30>0,F30<0.005),"<1%",TEXT(F30,"0%")) -> 21% | I30: Diversity of native animals | J30: =F32 -> 0.0101010101 | K30: =F30 -> 0.2121212121 | L30: =TEXT(ROUND(K30,2)-ROUND(J30,2),"+##0%;-##0%") -> +20% | M30: 5 | P30: Diversity of native animals | R30: Increased | S30: 0.2121212121
E31: No change | F31: 0.5 | G31: =IF(AND(F31>0,F31<0.005),"<1%",TEXT(F31,"0%")) -> 50% | R31: No change | S31: 0.5
E32: Decreased | F32: 0.0101010101 | G32: 1% | R32: Decreased | S32: 0.0101010101
E33: Not sure | F33: 0.2777777778 | G33: 28% | R33: Not sure | S33: 0.2777777778
S36: Overall | T36: Central Queensland | U36: Darling Downs | V36: Macintyre - Balonne | W36: Northern NSW | X36: Macquarie | Y36: Southern NSW | Z36: Small (< 1,000 ha) | AA36: Medium (1,000 - 5,000 ha) | AB36: Large (> 5,000 ha)
E37: Base | F37: =INDEX($S37:$AB37,1,1) -> 199 | R37: Base | S37: 199
C38: Diversity of pest animals | E38: Increased | F38: =INDEX($S38:$AB38,1,1) -> 0.2964824121 | G38: =IF(AND(F38>0,F38<0.005),"<1%",TEXT(F38,"0%")) -> 30% | I38: Diversity of pest animals | J38: =F40 -> 0.0351758794 | K38: =F38 -> 0.2964824121 | L38: =TEXT(ROUND(K38,2)-ROUND(J38,2),"+##0%;-##0%") -> +26% | M38: 2 | P38: Diversity of pest animals | R38: Increased | S38: 0.2964824121
E39: No change | F39: 0.4221105528 | G39: =IF(AND(F39>0,F39<0.005),"<1%",TEXT(F39,"0%")) -> 42% | R39: No change | S39: 0.4221105528
E40: Decreased | F40: 0.0351758794 | G40: 4% | R40: Decreased | S40: 0.0351758794
E41: Not sure | F41: 0.2462311558 | G41: 25% | R41: Not sure | S41: 0.2462311558
S44: Overall | T44: Central Queensland | U44: Darling Downs | V44: Macintyre - Balonne | W44: Northern NSW | X44: Macquarie | Y44: Southern NSW | Z44: Small (< 1,000 ha) | AA44: Medium (1,000 - 5,000 ha) | AB44: Large (> 5,000 ha)
E45: Base | F45: =INDEX($S45:$AB45,1,1) -> 198 | R45: Base | S45: 198
C46: Ground cover & litter | E46: Increased | F46: =INDEX($S46:$AB46,1,1) -> 0.2474747475 | G46: =IF(AND(F46>0,F46<0.005),"<1%",TEXT(F46,"0%")) -> 25% | I46: Ground cover & litter | J46: =F48 -> 0.005050505051 | K46: =F46 -> 0.2474747475 | L46: =TEXT(ROUND(K46,2)-ROUND(J46,2),"+##0%;-##0%") -> +24% | M46: 3 | P46: Ground cover & litter | R46: Increased | S46: 0.2474747475
E47: No change | F47: 0.4898989899 | G47: =IF(AND(F47>0,F47<0.005),"<1%",TEXT(F47,"0%")) -> 49% | R47: No change | S47: 0.4898989899
E48: Decreased | F48: 0.005050505051 | G48: 1% | R48: Decreased | S48: 0.005050505051
E49: Not sure | F49: 0.2575757576 | G49: 26% | R49: Not sure | S49: 0.2575757576
I52: FOR CHART:
H54: Rank | I54: Label | J54: Decreased | K54: Increased | L54: Nett
H55: 1 | I55: =INDEX($I$6:$M$51,MATCH($H55,$M$6:$M$51,0),1) -> Regeneration of shrubs and trees | J55: =INDEX($I$6:$M$51,MATCH($H55,$M$6:$M$51,0),2) -> 0.005025125628 | K55: =INDEX($I$6:$M$51,MATCH($H55,$M$6:$M$51,0),3) -> 0.4472361809 | L55: =INDEX($I$6:$M$51,MATCH($H55,$M$6:$M$51,0),4) -> +44%
H56: 2 | I56: Diversity of pest animals | J56: 0.0351758794 | K56: 0.2964824121 | L56: +26%
H57: 3 | I57: Ground cover & litter | J57: 0.005050505051 | K57: 0.2474747475 | L57: +24%
H58: 4 | I58: Abundance of weeds | J58: 0.04020100503 | K58: 0.2713567839 | L58: +23%
H59: 5 | I59: Diversity of native animals | J59: 0.0101010101 | K59: 0.2121212121 | L59: +20%
H60: 6 | I60: Erosion | J60: 0.1065989848 | K60: 0.06091370558 | L60: -5%

Sheet Accredited Education
E1: 2017 Grower Survey | R1: Data in Focus:
E5: On-Farm Training and Labour Needs - Accredited Education & Impact
C7: Proportion of growers (or staff) who have attended accredited training over the last 12 months | L7: Riparian area management practices they have undertaken in the last 10 years
C12: Of those who have attended, impact on the efficiency and effectiveness of their farm | L12: Of those who have attended, impact on the efficiency and effectiveness of their farm
J26: =IF('HIDDEN - Backend'!Q17=1,"Source: 2017 Grower Survey, CRDC","") ->  | S26: =IF(AND('HIDDEN - Backend'!Q17=1,'HIDDEN - Backend'!Q3>1),"Source: 2017 Grower Survey, CRDC","") -> 
C27: ="Base: all cotton growers; n = "&'Data - Accredited Education'!F5&". Of those who have attended (or staff attended), n = "&'Data - Accredited Education'!F8&"." -> Base: all cotton growers; n = 203. Of those who have attended (or staff attended), n = 124. | L27: =IF('Data - Accredited Education'!A1=1,"","Base: "&'Data - Accredited Education'!F1&" growers; n = "&'Data - Accredited Education'!F19&". Of those who have attended (or staff attended), n = "&'Data - Accredited Education'!F22&".") -> 
C29: Question: Has anyone in your cotton business (including you) attended accredited education or training courses over the last 12 months? Question: Overall what impact has recent training had on the efficiency and effectiveness of your farm business?

Sheet Data - Accredited Education (hidden)
A1: ='HIDDEN - Backend'!Q3 -> 1 | E1: Segment | F1: =INDEX($S1:$AB1,1,$A$1) -> All cotton | S1: All cotton | T1: Central Queensland | U1: Darling Downs | V1: Macintyre - Balonne | W1: Northern NSW | X1: Macquarie | Y1: Southern NSW | Z1: Small farm | AA1: Medium farm | AB1: Large farm
C2: CHARTS | Q2: DATA
C4: Focus - Overall | G4: Label | S4: Overall | T4: Central Queensland | U4: Darling Downs | V4: Macintyre - Balonne | W4: Northern NSW | X4: Macquarie | Y4: Southern NSW | Z4: Small (< 1,000 ha) | AA4: Medium (1,000 - 5,000 ha) | AB4: Large (> 5,000 ha)
E5: Base | F5: =INDEX($S5:$AB5,1,1) -> 203 | I5: FOR CHART | L5: Label | R5: Base: | S5: 203 | T5: 25 | U5: 47 | V5: 28 | W5: 49 | X5: 23 | Y5: 31 | Z5: 79 | AA5: 96 | AB5: 24
C6: Erosion | E6: Have attended training or education programs | F6: =INDEX($S6:$AB6,1,1) -> 0.6108374384 | G6: =IF(AND(F6>0,F6<0.005),"<1%",TEXT(F6,"0%")) -> 61% | I6: =E6 -> Have attended training or education programs | J6: =F6 -> 0.6108374384 | L6: =TEXT(F9+F10,"##0%")&" reported an impact as a result of the training" -> 61% reported an impact as a result of the training | P6: Erosion | R6: Yes | S6: 0.6108374384 | T6: 0.32 | U6: 0.5957446809 | V6: 0.8214285714 | W6: 0.5918367347 | X6: 0.5217391304 | Y6: 0.7741935484 | Z6: 0.5189873418 | AA6: 0.65625 | AB6: 0.75
L7: =TEXT(ROUND(F11,2)+ROUND(F12,2),"##0%")&" reported minimal or no impact" -> 36% reported minimal or no impact
E8: Base: | F8: =INDEX($S8:$AB8,1,1) -> 124 | I8: =E9 -> Significant impact | J8: 0.1129032258 | R8: Base | S8: 124 | T8: 8 | U8: 28 | V8: 23 | W8: 29 | X8: 12 | Y8: 24 | Z8: 41 | AA8: 63 | AB8: 18
E9: Significant impact | F9: 0.1129032258 | G9: =IF(AND(F9>0,F9<0.005),"<1%",TEXT(F9,"0%")) -> 11% | I9: Some impact | J9: 0.5 | R9: Significant impact | S9: 0.1129032258 | T9: 0 | U9: 0.1071428571 | V9: 0.08695652174 | W9: 0.1724137931 | X9: 0.1666666667 | Y9: 0.08333333333 | Z9: 0.07317073171 | AA9: 0.126984127 | AB9: 0.1666666667
E10: Some impact | F10: 0.5 | G10: =IF(AND(F10>0,F10<0.005),"<1%",TEXT(F10,"0%")) -> 50% | I10: Minimal impact | J10: 0.2177419355 | R10: Some impact | S10: 0.5 | T10: 0.375 | U10: 0.4642857143 | V10: 0.5217391304 | W10: 0.4827586207 | X10: 0.5 | Y10: 0.5833333333 | Z10: 0.487804878 | AA10: 0.4603174603 | AB10: 0.6666666667
E11: Minimal impact | F11: 0.2177419355 | G11: =IF(AND(F11>0,F11<0.005),"<1%",TEXT(F11,"0%")) -> 22% | I11: No impact | J11: 0.1370967742 | R11: Minimal impact | S11: 0.2177419355 | T11: 0.25 | U11: 0.25 | V11: 0.2173913043 | W11: 0.1724137931 | X11: 0.25 | Y11: 0.2083333333 | Z11: 0.1463414634 | AA11: 0.3015873016 | AB11: 0.05555555556
E12: No impact | F12: 0.1370967742 | G12: =IF(AND(F12>0,F12<0.005),"<1%",TEXT(F12,"0%")) -> 14% | I12: Not sure | J12: 0.03225806452 | R12: No impact | S12: 0.1370967742 | T12: 0.375 | U12: 0.1428571429 | V12: 0.1739130435 | W12: 0.06896551724 | X12: 0.08333333333 | Y12: 0.125 | Z12: 0.243902439 | AA12: 0.09523809524 | AB12: 0.05555555556
E13: Not sure | F13: 0.03225806452 | G13: =IF(AND(F13>0,F13<0.005),"<1%",TEXT(F13,"0%")) -> 3% | R13: Not sure | S13: 0.03225806452 | T13: 0 | U13: 0.03571428571 | V13: 0 | W13: 0.1034482759 | X13: 0 | Y13: 0 | Z13: 0.0487804878 | AA13: 0.01587301587 | AB13: 0.05555555556
C18: Focus - Segment
E19: Base | F19: =INDEX($S5:$AB5,1,$A$1) -> 203 | I19: FOR CHART | L19: Label
E20: Have attended training or education programs | F20: =INDEX($S6:$AB6,1,$A$1) -> 0.6108374384 | G20: =IF(AND(F20>0,F20<0.005),"<1%",TEXT(F20,"0%")) -> 61% | I20: =E20 -> Have attended training or education programs | J20: =F20 -> 0.6108374384 | L20: =TEXT(F23+F24,"##0%")&" reported an impact as a result of the training" -> 61% reported an impact as a result of the training
L21: =TEXT(F25+F26,"##0%")&" reported minimal or no impact" -> 35% reported minimal or no impact
E22: Base: | F22: =INDEX($S8:$AB8,1,$A$1) -> 124 | I22: =E23 -> Significant impact | J22: =F23 -> 0.1129032258
E23: Significant impact | F23: 0.1129032258 | G23: =IF(AND(F23>0,F23<0.005),"<1%",TEXT(F23,"0%")) -> 11% | I23: =E24 -> Some impact | J23: =F24 -> 0.5
E24: Some impact | F24: 0.5 | G24: =IF(AND(F24>0,F24<0.005),"<1%",TEXT(F24,"0%")) -> 50% | I24: Minimal impact | J24: 0.2177419355
E25: Minimal impact | F25: 0.2177419355 | G25: =IF(AND(F25>0,F25<0.005),"<1%",TEXT(F25,"0%")) -> 22% | I25: No impact | J25: 0.1370967742
E26: No impact | F26: 0.1370967742 | G26: =IF(AND(F26>0,F26<0.005),"<1%",TEXT(F26,"0%")) -> 14% | I26: Not sure | J26: 0.03225806452
E27: Not sure | F27: 0.03225806452 | G27: =IF(AND(F27>0,F27<0.005),"<1%",TEXT(F27,"0%")) -> 3%

Sheet Off-Farm Training
E1: 2017 Grower Survey | R1: Data in Focus:
E5: On-Farm Training and Labour Needs - Suitable Off-Farm Training
C7: Proportion of growers able to find suitable off-farm training for themselves and staff in. . . | L7: ="Results - "&'Data - Off-Farm Training'!F1&" growers" -> Results - All cotton growers
C27: ="Base: all cotton growers; n = "&'Data - Off-Farm Training'!F5&"." -> Base: all cotton growers; n = 203. | J27: =IF('HIDDEN - Backend'!Q17=1,"Source: 2017 Grower Survey, CRDC","") ->  | L27: =IF('Data - Off-Farm Training'!A1=1,"","Base: "&'Data - Off-Farm Training'!F1&" growers; n = "&'Data - Off-Farm Training'!F17&".") ->  | S27: =IF(AND('HIDDEN - Backend'!Q17=1,'HIDDEN - Backend'!Q3>1),"Source: 2017 Grower Survey, CRDC","") -> 
C29: Question: Are you able to find suitable off-farm training for you and your staff in. . . . ? ^Multiple responses accepted. Results may not add to 100%.

Sheet Data - Off-Farm Training (hidden)
A1: ='HIDDEN - Backend'!Q3 -> 1 | E1: Segment | F1: =INDEX($S1:$AB1,1,$A$1) -> All cotton | S1: All cotton | T1: Central Queensland | U1: Darling Downs | V1: Macintyre - Balonne | W1: Northern NSW | X1: Macquarie | Y1: Southern NSW | Z1: Small farm | AA1: Medium farm | AB1: Large farm
C2: CHARTS | Q2: DATA
C4: Focus - Overall | G4: Rank | J4: Re-order | L4: Label | S4: Overall | T4: Central Queensland | U4: Darling Downs | V4: Macintyre - Balonne | W4: Northern NSW | X4: Macquarie | Y4: Southern NSW | Z4: Small (< 1,000 ha) | AA4: Medium (1,000 - 5,000 ha) | AB4: Large (> 5,000 ha)
E5: Base | F5: =INDEX($S5:$AB5,1,1) -> 203 | R5: Base | S5: 203 | T5: 25 | U5: 47 | V5: 28 | W5: 49 | X5: 23 | Y5: 31 | Z5: 79 | AA5: 96 | AB5: 24
E6: Farm business management | F6: =INDEX($S6:$AB6,1,1) -> 0.631840796 | G6: =RANK(F6,$F$6:$F$11) -> 4 | I6: 1 | J6: =INDEX($E$6:$G$11,MATCH($I6,$G$6:$G$11,0),1) -> Chemical use | K6: =INDEX($E$6:$G$11,MATCH($I6,$G$6:$G$11,0),2) -> 0.9261083744 | L6: =IF(AND(K6>0,K6<0.005),"<1%",TEXT(K6,"0%")) -> 93% | R6: Farm business management | S6: 0.631840796 | T6: 0.52 | U6: 0.5777777778 | V6: 0.5714285714 | W6: 0.7346938776 | X6: 0.5217391304 | Y6: 0.7741935484 | Z6: 0.5949367089 | AA6: 0.6210526316 | AB6: 0.7916666667
E7: Leadership | F7: 0.535 | G7: =RANK(F7,$F$6:$F$11)+COUNTIF($G6:G$6,RANK(F7,$F$6:$F$11)) -> 5 | I7: 2 | J7: =INDEX($E$6:$G$11,MATCH($I7,$G$6:$G$11,0),1) -> Farm work health and safety | K7: =INDEX($E$6:$G$11,MATCH($I7,$G$6:$G$11,0),2) -> 0.7574257426 | L7: =IF(AND(K7>0,K7<0.005),"<1%",TEXT(K7,"0%")) -> 76% | R7: Leadership | S7: 0.535 | T7: 0.56 | U7: 0.4666666667 | V7: 0.5 | W7: 0.5102040816 | X7: 0.5652173913 | Y7: 0.6666666667 | Z7: 0.5189873418 | AA7: 0.5263157895 | AB7: 0.625
E8: Farm work health and safety | F8: 0.7574257426 | G8: =RANK(F8,$F$6:$F$11)+COUNTIF($G$6:G7,RANK(F8,$F$6:$F$11)) -> 2 | I8: 3 | J8: Water, soils and nutrition | K8: 0.7114427861 | L8: 71% | R8: Farm work health and safety | S8: 0.7574257426 | T8: 0.8 | U8: 0.6808510638 | V8: 0.8571428571 | W8: 0.7346938776 | X8: 0.6086956522 | Y8: 0.9 | Z8: 0.7341772152 | AA8: 0.7604166667 | AB8: 0.8333333333
E9: Farm skills development | F9: 0.5273631841 | G9: =RANK(F9,$F$6:$F$11)+COUNTIF($G$6:G8,RANK(F9,$F$6:$F$11)) -> 6 | I9: 4 | J9: Farm business management | K9: 0.631840796 | L9: 63% | R9: Farm skills development | S9: 0.5273631841 | T9: 0.6 | U9: 0.4782608696 | V9: 0.4642857143 | W9: 0.5714285714 | X9: 0.4782608696 | Y9: 0.5666666667 | Z9: 0.5316455696 | AA9: 0.4479166667 | AB9: 0.8333333333
E10: Water, soils and nutrition | F10: 0.7114427861 | G10: =RANK(F10,$F$6:$F$11)+COUNTIF($G$6:G9,RANK(F10,$F$6:$F$11)) -> 3 | I10: 5 | J10: Leadership | K10: 0.535 | L10: 54% | R10: Water, soils and nutrition | S10: 0.7114427861 | T10: 0.8 | U10: 0.6444444444 | V10: 0.6428571429 | W10: 0.7346938776 | X10: 0.6086956522 | Y10: 0.8387096774 | Z10: 0.7215189873 | AA10: 0.6947368421 | AB10: 0.7083333333
E11: Chemical use | F11: 0.9261083744 | G11: =RANK(F11,$F$6:$F$11)+COUNTIF($G$6:G10,RANK(F11,$F$6:$F$11)) -> 1 | I11: 6 | J11: Farm skills development | K11: 0.5273631841 | L11: 53% | R11: Chemical use | S11: 0.9261083744 | T11: 0.92 | U11: 0.8936170213 | V11: 0.9285714286 | W11: 1 | X11: 0.8260869565 | Y11: 0.935483871 | Z11: 0.8734177215 | AA11: 0.9479166667 | AB11: 1
C16: Focus - Segment | J16: Re-order to same order as above | L16: Label
E17: Base | F17: =INDEX($S5:$AB5,1,$A$1) -> 203
E18: Farm business management | F18: 0.631840796 | G18: =IF(AND(F18>0,F18<0.005),"<1%",TEXT(F18,"0%")) -> 63% | J18: =INDEX($E$18:$G$23,MATCH($J6,$E$18:$E$23,0),1) -> Chemical use | K18: =INDEX($E$18:$G$23,MATCH($J6,$E$18:$E$23,0),2) -> 0.9261083744 | L18: =IF(AND(K18>0,K18<0.005),"<1%",TEXT(K18,"0%")) -> 93%
E19: Leadership | F19: 0.535 | G19: =IF(AND(F19>0,F19<0.005),"<1%",TEXT(F19,"0%")) -> 54% | J19: Farm work health and safety | K19: 0.7574257426 | L19: =IF(AND(K19>0,K19<0.005),"<1%",TEXT(K19,"0%")) -> 76%
E20: Farm work health and safety | F20: 0.7574257426 | G20: 76% | J20: Water, soils and nutrition | K20: 0.7114427861 | L20: =IF(AND(K20>0,K20<0.005),"<1%",TEXT(K20,"0%")) -> 71%
E21: Farm skills development | F21: 0.5273631841 | G21: 53% | J21: Farm business management | K21: 0.631840796 | L21: 63%
E22: Water, soils and nutrition | F22: 0.7114427861 | G22: 71% | J22: Leadership | K22: 0.535 | L22: 54%
E23: Chemical use | F23: 0.9261083744 | G23: 93% | J23: Farm skills development | K23: 0.5273631841 | L23: 53%

Sheet Labour Hire Companies
E1: 2017 Grower Survey
E5: On-Farm Training and Labour Needs - Use of Labour Hire Companies
H7: Proportion of growers who used labour hire companies to source staff for the 2016-17 season
C27: ="Base: all cotton growers; n = "&'Data - Labour Hire Companies'!F5&"." -> Base: all cotton growers; n = 203. | S27: =IF('HIDDEN - Backend'!Q17=1,"Source: 2017 Grower Survey, CRDC","") -> 
C29: Question: Across the 2016-17 cotton growing season, did you use labour hire companies to source workers at any point?

Sheet Data - Labour Hire Companies (hidden)
A1: ='HIDDEN - Backend'!Q3 -> 1 | E1: Segment | F1: =INDEX($S1:$AB1,1,$A$1) -> All cotton | S1: All cotton | T1: Central Queensland | U1: Darling Downs | V1: Macintyre - Balonne | W1: Northern NSW | X1: Macquarie | Y1: Southern NSW | Z1: Small farm | AA1: Medium farm | AB1: Large farm
C2: CHARTS | Q2: DATA
C4: Focus - Overall | I4: Small (< 1,000 ha) | J4: Medium (1,000 - 5,000 ha) | K4: Large (> 5,000 ha) | S4: Overall | T4: Central Queensland | U4: Darling Downs | V4: Macintyre - Balonne | W4: Northern NSW | X4: Macquarie | Y4: Southern NSW | Z4: Small (< 1,000 ha) | AA4: Medium (1,000 - 5,000 ha) | AB4: Large (> 5,000 ha)
E5: Base | F5: =INDEX($S5:$AB5,1,1) -> 203 | I5: =Z5 -> 79 | J5: =AA5 -> 96 | K5: =AB5 -> 24 | R5: Base | S5: 203 | T5: 25 | U5: 47 | V5: 28 | W5: 49 | X5: 23 | Y5: 31 | Z5: 79 | AA5: 96 | AB5: 24
E6: Used labour hire companies | F6: =INDEX($S6:$AB6,1,1) -> 0.1625615764 | G6: =IF(AND(F6>0,F6<0.005),"<1%",TEXT(F6,"0%")) -> 16% | H6: =90-(180*G6) -> 61.2 | I6: =Z6 -> 0.07594936709 | J6: 0.2083333333 | K6: 0.2916666667 | R6: Used labour hire companies | S6: 0.1625615764 | T6: 0.04 | U6: 0.04255319149 | V6: 0.25 | W6: 0.1632653061 | X6: 0.08695652174 | Y6: 0.4193548387 | Z6: 0.07594936709 | AA6: 0.2083333333 | AB6: 0.2916666667
E7: Did not use | F7: =1-F6 -> 0.8374384236 | G7: =IF(AND(F7>0,F7<0.005),"<1%",TEXT(F7,"0%")) -> 84%
R8: Base | S8: 33 | T8: 1 | U8: 2 | V8: 7 | W8: 8 | X8: 2 | Y8: 13 | Z8: 6 | AA8: 20 | AB8: 7
R9: Check to see if labour hires are paid correctly | S9: 0.7575757576 | T9: 1 | U9: 0.5 | V9: 0.7142857143 | W9: 0.875 | X9: 1 | Y9: 0.6923076923 | Z9: 0.6666666667 | AA9: 0.8 | AB9: 0.7142857143
E11: Base | F11: =INDEX($S8:$AB8,1,1) -> 33
E12: Check to see if labour hires are paid correctly | F12: =INDEX($S9:$AB9,1,1) -> 0.7575757576 | G12: =IF(AND(F12>0,F12<0.005),"<1%",TEXT(F12,"0%")) -> 76% | H12: =90-(180*G12) -> -46.8
E13: Do not check | F13: =1-F12 -> 0.2424242424 | G13: =IF(AND(F13>0,F13<0.005),"<1%",TEXT(F13,"0%")) -> 24%

Sheet Community Contribution
E1: 2017 Grower Survey
E5: Community Contribution
C7: Where their business expenses went during the 2016-17 growing season | L7: Community activities they are involved in
C27: ="Base: all cotton growers; n = "&'Data - Community Contribution'!F5&"." -> Base: all cotton growers; n = 203. | J27: =IF('HIDDEN - Backend'!Q17=1,"Source: 2017 Grower Survey, CRDC","") ->  | L27: ="Base: all cotton growers; n = "&'Data - Community Contribution'!F12&"." -> Base: all cotton growers; n = 203. | S27: =IF('HIDDEN - Backend'!Q17=1,"Source: 2017 Grower Survey, CRDC","") -> 
C29: Question: Thinking of your total business expenses for the 2016-17 growing season, can you estimate what proportion would be spent. . .? | L29: Question: Which if any of the following local community activities are you involved in? ^Multiple repsonses accepted. Results may not add to 100%.

Sheet Data - Community Contribution (hidden)
A1: ='HIDDEN - Backend'!Q3 -> 1 | E1: Segment | F1: =INDEX($S1:$AB1,1,$A$1) -> All cotton | S1: All cotton | T1: Central Queensland | U1: Darling Downs | V1: Macintyre - Balonne | W1: Northern NSW | X1: Macquarie | Y1: Southern NSW | Z1: Small farm | AA1: Medium farm | AB1: Large farm
C2: CHARTS | Q2: DATA
C4: Focus - Overall | S4: Overall | T4: Central Queensland | U4: Darling Downs | V4: Macintyre - Balonne | W4: Northern NSW | X4: Macquarie | Y4: Southern NSW | Z4: Small (< 1,000 ha) | AA4: Medium (1,000 - 5,000 ha) | AB4: Large (> 5,000 ha)
E5: Base | F5: =INDEX($S5:$AB5,1,1) -> 203 | R5: Base | S5: 203 | T5: 25 | U5: 47 | V5: 28 | W5: 49 | X5: 23 | Y5: 31 | Z5: 79 | AA5: 96 | AB5: 24
E6: In the local area | F6: =INDEX($S6:$AB6,1,1) -> 0.79374384 | G6: =IF(AND(F6>0,F6<0.005),"<1%",TEXT(F6,"0%")) -> 79% | H6: =90-(180*G6) -> -52.2 | I6: =360+H6 -> 307.8 | R6: In the local area | S6: 0.79374384 | T6: 0.8256 | U6: 0.78042553 | V6: 0.78892857 | W6: 0.81387755 | X6: 0.81913043 | Y6: 0.74193548 | Z6: 0.82316456 | AA6: 0.77885417 | AB6: 0.73041667
E7: Outside the local area but in the state | F7: 0.13975248 | G7: =IF(AND(F7>0,F7<0.005),"<1%",TEXT(F7,"0%")) -> 14% | R7: Outside the local area but in the state | S7: 0.13975248 | T7: 0.1168 | U7: 0.16297872 | V7: 0.14821429 | W7: 0.11270833 | X7: 0.13086957 | Y7: 0.16387097 | Z7: 0.12063291 | AA7: 0.14479167 | AB7: 0.19375
E8: Outside of the state but in Australia | F8: 0.05079208 | G8: =IF(AND(F8>0,F8<0.005),"<1%",TEXT(F8,"0%")) -> 5% | R8: Outside of the state but in Australia | S8: 0.05079208 | T8: 0.0224 | U8: 0.03446809 | V8: 0.05535714 | W8: 0.06833333 | X8: 0.04478261 | Y8: 0.0716129 | Z8: 0.02835443 | AA8: 0.0678125 | AB8: 0.06083333
E9: Outside Australia | F9: 0.01673267 | G9: =IF(AND(F9>0,F9<0.005),"<1%",TEXT(F9,"0%")) -> 2% | R9: Outside Australia | S9: 0.01673267 | T9: 0.0352 | U9: 0.02212766 | V9: 0.0075 | W9: 0.00895833 | X9: 0.00521739 | Y9: 0.02258065 | Z9: 0.0278481 | AA9: 0.00854167 | AB9: 0.015
G11: Rank | J11: Re-order | L11: Label
E12: Base | F12: =INDEX($S12:$AB12,1,1) -> 203 | R12: Base | S12: 203 | T12: 25 | U12: 47 | V12: 28 | W12: 49 | X12: 23 | Y12: 31 | Z12: 79 | AA12: 96 | AB12: 24
E13: I’m actively involved in local community groups | F13: =INDEX($S13:$AB13,1,1) -> 0.669951 | G13: =RANK(F13,$F$13:$F$18) -> 4 | I13: 1 | J13: =INDEX($E$13:$G$20,MATCH($I13,$G$13:$G$20,0),1) -> I regularly buy locally for our business needs | K13: =INDEX($E$13:$G$20,MATCH($I13,$G$13:$G$20,0),2) -> 0.940887 | L13: =IF(AND(K13>0,K13<0.005),"<1%",TEXT(K13,"0%")) -> 94% | R13: I’m actively involved in local community groups | S13: 0.669951 | T13: 0.56 | U13: 0.574468 | V13: 0.821429 | W13: 0.714286 | X13: 0.826087 | Y13: 0.580645 | Z13: 0.607595 | AA13: 0.6875 | AB13: 0.875
E14: I’m actively involved in local sports | F14: 0.551724 | G14: =RANK(F14,$F$13:$F$18)+COUNTIF($G$13:G13,RANK(F14,$F$13:$F$18)) -> 5 | I14: 2 | J14: =INDEX($E$13:$G$20,MATCH($I14,$G$13:$G$20,0),1) -> I regularly attend local events | K14: =INDEX($E$13:$G$20,MATCH($I14,$G$13:$G$20,0),2) -> 0.738916 | L14: =IF(AND(K14>0,K14<0.005),"<1%",TEXT(K14,"0%")) -> 74% | R14: I’m actively involved in local sports | S14: 0.551724 | T14: 0.52 | U14: 0.510638 | V14: 0.607143 | W14: 0.530612 | X14: 0.695652 | Y14: 0.516129 | Z14: 0.43038 | AA14: 0.604167 | AB14: 0.708333
E15: I regularly attend local events | F15: 0.738916 | G15: =RANK(F15,$F$13:$F$18)+COUNTIF($G$13:G14,RANK(F15,$F$13:$F$18)) -> 2 | I15: 3 | J15: I regularly make donations or sponsor local charities or activities | K15: 0.70936 | L15: 71% | R15: I regularly attend local events | S15: 0.738916 | T15: 0.64 | U15: 0.638298 | V15: 0.857143 | W15: 0.77551 | X15: 0.913043 | Y15: 0.677419 | Z15: 0.696203 | AA15: 0.760417 | AB15: 0.875
E16: I’m actively involved with the local schools (primary/secondary) | F16: 0.374384 | G16: =RANK(F16,$F$13:$F$18)+COUNTIF($G$13:G15,RANK(F16,$F$13:$F$18)) -> 6 | I16: 4 | J16: I’m actively involved in local community groups | K16: 0.669951 | L16: 67% | R16: I’m actively involved with the local schools (primary/secondary) | S16: 0.374384 | T16: 0.52 | U16: 0.297872 | V16: 0.428571 | W16: 0.326531 | X16: 0.434783 | Y16: 0.354839 | Z16: 0.265823 | AA16: 0.4375 | AB16: 0.541667
E17: I regularly make donations or sponsor local charities or activities | F17: 0.70936 | G17: =RANK(F17,$F$13:$F$18)+COUNTIF($G$13:G16,RANK(F17,$F$13:$F$18)) -> 3 | I17: 5 | J17: I’m actively involved in local sports | K17: 0.551724 | L17: 55% | R17: I regularly make donations or sponsor local charities or activities | S17: 0.70936 | T17: 0.6 | U17: 0.638298 | V17: 0.857143 | W17: 0.755102 | X17: 0.782609 | Y17: 0.645161 | Z17: 0.658228 | AA17: 0.739583 | AB17: 0.833333
E18: I regularly buy locally for our business needs | F18: 0.940887 | G18: =RANK(F18,$F$13:$F$18)+COUNTIF($G$13:G17,RANK(F18,$F$13:$F$18)) -> 1 | I18: 6 | J18: I’m actively involved with the local schools (primary/secondary) | K18: 0.374384 | L18: 37% | R18: I regularly buy locally for our business needs | S18: 0.940887 | T18: 1 | U18: 0.87234 | V18: 0.964286 | W18: 0.959184 | X18: 0.956522 | Y18: 0.935484 | Z18: 0.924051 | AA18: 0.947917 | AB18: 1
E19: I’m involved in the community in other ways (please describe your involvement) | F19: 0.221675 | G19: 7 | I19: 7 | J19: I’m involved in the community in other ways (please describe your involvement) | K19: 0.221675 | L19: 22% | R19: I’m involved in the community in other ways (please describe your involvement) | S19: 0.221675 | T19: 0.08 | U19: 0.255319 | V19: 0.142857 | W19: 0.265306 | X19: 0.304348 | Y19: 0.225806 | Z19: 0.21519 | AA19: 0.21875 | AB19: 0.25
E20: I’m not actively involved with the community | F20: 0.004926 | G20: 8 | I20: 8 | J20: I’m not actively involved with the community | K20: 0.004926 | L20: <1% | R20: I’m not actively involved with the community | S20: 0.004926 | T20: 0 | U20: 0 | V20: 0.035714 | W20: 0 | X20: 0 | Y20: 0 | Z20: 0 | AA20: 0.010417 | AB20: 0

Sheet Membership of Local CGA
E1: 2017 Grower Survey | R1: Data in Focus:
E5: Cotton Grower Association - Membership of Local CGA
C7: Membership of a local Cotton Growers Association | L7: ="Results - "&'Data - Membership of Local CGA'!F1&" growers" -> Results - All cotton growers
C27: ="Base: all cotton growers; n = "&'Data - Membership of Local CGA'!F5&"." -> Base: all cotton growers; n = 203. | J27: =IF('HIDDEN - Backend'!Q17=1,"Source: 2017 Grower Survey, CRDC","") ->  | L27: =IF('Data - Membership of Local CGA'!A1=1,"","Base: "&'Data - Membership of Local CGA'!F1&" growers; n = "&'Data - Membership of Local CGA'!F14&".") ->  | S27: =IF(AND('HIDDEN - Backend'!Q17=1,'HIDDEN - Backend'!Q3>1),"Source: 2017 Grower Survey, CRDC","") -> 
C29: Question: Are you a member of your local Cotton Grower Association (CGA)?

Sheet Data - Membership of Local CGA (hidden)
A1: ='HIDDEN - Backend'!Q3 -> 1 | E1: Segment | F1: =INDEX($S1:$AB1,1,$A$1) -> All cotton | S1: All cotton | T1: Central Queensland | U1: Darling Downs | V1: Macintyre - Balonne | W1: Northern NSW | X1: Macquarie | Y1: Southern NSW | Z1: Small farm | AA1: Medium farm | AB1: Large farm
C2: CHARTS | Q2: DATA
C4: Focus - Overall | S4: Overall | T4: Central Queensland | U4: Darling Downs | V4: Macintyre - Balonne | W4: Northern NSW | X4: Macquarie | Y4: Southern NSW | Z4: Small (< 1,000 ha) | AA4: Medium (1,000 - 5,000 ha) | AB4: Large (> 5,000 ha)
E5: Base | F5: =INDEX($S5:$AB5,1,1) -> 203 | I5: Rotation: | J5: Note: Rotation based on No category | R5: Base | S5: 203 | T5: 25 | U5: 47 | V5: 28 | W5: 49 | X5: 23 | Y5: 31 | Z5: 79 | AA5: 96 | AB5: 24
E6: No | F6: =INDEX($S6:$AB6,1,1) -> 0.1625615764 | G6: =IF(AND(F6>0,F6<0.005),"<1%",TEXT(F6,"0%")) -> 16% | I6: =IF(270-(180*F6)<0,360-ABS(270-(180*F6)),270-(180*F6)) -> 240.7389163 | R6: No | S6: 0.1625615764 | T6: 0.28 | U6: 0.1489361702 | V6: 0.1428571429 | W6: 0.08163265306 | X6: 0.1304347826 | Y6: 0.2580645161 | Z6: 0.2025316456 | AA6: 0.125 | AB6: 0.125
E7: Not sure / don’t know | F7: =INDEX($S7:$AB7,1,1) -> 0.03448275862 | G7: =IF(AND(F7>0,F7<0.005),"<1%",TEXT(F7,"0%")) -> 3% | R7: Not sure / don’t know | S7: 0.03448275862 | T7: 0.04 | U7: 0.06382978723 | V7: 0 | W7: 0.02040816327 | X7: 0 | Y7: 0.06451612903 | Z7: 0.06329113924 | AA7: 0.01041666667 | AB7: 0.04166666667
E8: Yes | F8: 0.802955665 | G8: =IF(AND(F8>0,F8<0.005),"<1%",TEXT(F8,"0%")) -> 80% | R8: Yes | S8: 0.802955665 | T8: 0.68 | U8: 0.7872340426 | V8: 0.8571428571 | W8: 0.8979591837 | X8: 0.8695652174 | Y8: 0.6774193548 | Z8: 0.7341772152 | AA8: 0.8645833333 | AB8: 0.8333333333
C13: Focus - Segment
E14: Base | F14: =INDEX($S5:$AB5,1,$A$1) -> 203 | I14: Rotation:
E15: No | F15: =INDEX($S6:$AB6,1,$A$1) -> 0.1625615764 | G15: =IF(AND(F15>0,F15<0.005),"<1%",TEXT(F15,"0%")) -> 16% | I15: =IF(270-(180*F15)<0,360-ABS(270-(180*F15)),270-(180*F15)) -> 240.7389163
E16: Not sure / don’t know | F16: 0.03448275862 | G16: =IF(AND(F16>0,F16<0.005),"<1%",TEXT(F16,"0%")) -> 3%
E17: Yes | F17: 0.802955665 | G17: 80%

Sheet Information Sharing
E1: 2017 Grower Survey
E5: Information Sharing
C7: Information they would be willing to share with others in the industry | L7: Growers they would share information with about farming practices
C27: ="Base: all cotton growers; n = "&'Data - Information Sharing'!F5&"." -> Base: all cotton growers; n = 202. | J27: =IF('HIDDEN - Backend'!Q17=1,"Source: 2017 Grower Survey, CRDC","") ->  | L27: ="Base: all cotton growers; n = "&'Data - Information Sharing'!F20&"." -> Base: all cotton growers; n = 199. | S27: =IF('HIDDEN - Backend'!Q17=1,"Source: 2017 Grower Survey, CRDC","") -> 
C29: Question: Which of the following information would you share with others in the industry? ^Multiple responses accepted. Results may not add to 100%. | L29: Question: Would you be prepared to share information about your farming practices and cotton business with the following groups of growers?

Sheet Data - Information Sharing (hidden)
A1: ='HIDDEN - Backend'!Q3 -> 1 | E1: Segment | F1: =INDEX($S1:$AB1,1,$A$1) -> All cotton | S1: All cotton | T1: Central Queensland | U1: Darling Downs | V1: Macintyre - Balonne | W1: Northern NSW | X1: Macquarie | Y1: Southern NSW | Z1: Small farm | AA1: Medium farm | AB1: Large farm
C2: CHARTS | Q2: DATA
C4: Focus - Overall | G4: Rank | J4: Re-order | L4: Label | S4: Overall | T4: Central Queensland | U4: Darling Downs | V4: Macintyre - Balonne | W4: Northern NSW | X4: Macquarie | Y4: Southern NSW | Z4: Small (< 1,000 ha) | AA4: Medium (1,000 - 5,000 ha) | AB4: Large (> 5,000 ha)
E5: Base | F5: =INDEX($S5:$AB5,1,1) -> 202 | R5: Base | S5: 202 | T5: 25 | U5: 47 | V5: 28 | W5: 48 | X5: 23 | Y5: 31 | Z5: 79 | AA5: 96 | AB5: 24
E6: Details of farming inputs | F6: =INDEX($S6:$AB6,1,1) -> 0.930693 | G6: =RANK(F6,$F$6:$F$12) -> 1 | I6: 1 | J6: =INDEX($E$6:$G$14,MATCH($I6,$G$6:$G$14,0),1) -> Details of farming inputs | K6: =INDEX($E$6:$G$14,MATCH($I6,$G$6:$G$14,0),2) -> 0.930693 | L6: =IF(AND(K6>0,K6<0.005),"<1%",TEXT(K6,"0%")) -> 93% | R6: Details of farming inputs | S6: 0.930693 | T6: 0.96 | U6: 0.914894 | V6: 0.892857 | W6: 0.979167 | X6: 0.913043 | Y6: 0.903226 | Z6: 0.936709 | AA6: 0.927083 | AB6: 0.916667
E7: Details about your irrigation system | F7: 0.866337 | G7: =RANK(F7,$F$6:$F$12)+COUNTIF($G$6:G6,RANK(F7,$F$6:$F$12)) -> 4 | I7: 2 | J7: =INDEX($E$6:$G$14,MATCH($I7,$G$6:$G$14,0),1) -> Details about your weed and pest management practices | K7: =INDEX($E$6:$G$14,MATCH($I7,$G$6:$G$14,0),2) -> 0.910891 | L7: =IF(AND(K7>0,K7<0.005),"<1%",TEXT(K7,"0%")) -> 91% | R7: Details about your irrigation system | S7: 0.866337 | T7: 0.92 | U7: 0.787234 | V7: 0.821429 | W7: 0.875 | X7: 0.913043 | Y7: 0.935484 | Z7: 0.886076 | AA7: 0.885417 | AB7: 0.791667
E8: Details about your weed and pest management practices | F8: 0.910891 | G8: =RANK(F8,$F$6:$F$12)+COUNTIF($G$6:G7,RANK(F8,$F$6:$F$12)) -> 2 | I8: 3 | J8: Details about yields across the farm | K8: 0.891089 | L8: 89% | R8: Details about your weed and pest management practices | S8: 0.910891 | T8: 0.96 | U8: 0.914894 | V8: 0.857143 | W8: 0.916667 | X8: 0.956522 | Y8: 0.870968 | Z8: 0.911392 | AA8: 0.9375 | AB8: 0.833333
E9: Details about yields across the farm | F9: 0.891089 | G9: =RANK(F9,$F$6:$F$12)+COUNTIF($G$6:G8,RANK(F9,$F$6:$F$12)) -> 3 | I9: 4 | J9: Details about your irrigation system | K9: 0.866337 | L9: 87% | R9: Details about yields across the farm | S9: 0.891089 | T9: 0.92 | U9: 0.893617 | V9: 0.857143 | W9: 0.958333 | X9: 0.73913 | Y9: 0.903226 | Z9: 0.911392 | AA9: 0.875 | AB9: 0.916667
E10: Details about your farm profitability | F10: 0.445545 | G10: =RANK(F10,$F$6:$F$12)+COUNTIF($G$6:G9,RANK(F10,$F$6:$F$12)) -> 7 | I10: 5 | J10: Details about how you manage staff | K10: 0.737624 | L10: 74% | R10: Details about your farm profitability | S10: 0.445545 | T10: 0.4 | U10: 0.468085 | V10: 0.5 | W10: 0.479167 | X10: 0.391304 | Y10: 0.387097 | Z10: 0.455696 | AA10: 0.416667 | AB10: 0.541667
E11: Details about how you manage staff | F11: 0.737624 | G11: =RANK(F11,$F$6:$F$12)+COUNTIF($G$6:G10,RANK(F11,$F$6:$F$12)) -> 5 | I11: 6 | J11: Details about your future plans for the farm | K11: 0.628713 | L11: 63% | R11: Details about how you manage staff | S11: 0.737624 | T11: 0.68 | U11: 0.680851 | V11: 0.75 | W11: 0.791667 | X11: 0.695652 | Y11: 0.806452 | Z11: 0.696203 | AA11: 0.739583 | AB11: 0.916667
E12: Details about your future plans for the farm | F12: 0.628713 | G12: =RANK(F12,$F$6:$F$12)+COUNTIF($G$6:G11,RANK(F12,$F$6:$F$12)) -> 6 | I12: 7 | J12: Details about your farm profitability | K12: 0.445545 | L12: 45% | R12: Details about your future plans for the farm | S12: 0.628713 | T12: 0.64 | U12: 0.510638 | V12: 0.607143 | W12: 0.708333 | X12: 0.565217 | Y12: 0.741935 | Z12: 0.620253 | AA12: 0.625 | AB12: 0.75
E13: I’d be prepared to share other information (please outline what type of information this might include) | F13: 0.069307 | G13: 8 | I13: 8 | J13: I’d be prepared to share other information (please outline what type of information this might include) | K13: 0.069307 | L13: 7% | R13: I’d be prepared to share other information (please outline what type of information this might include) | S13: 0.069307 | T13: 0.04 | U13: 0.06383 | V13: 0.071429 | W13: 0.041667 | X13: 0.086957 | Y13: 0.129032 | Z13: 0.075949 | AA13: 0.072917 | AB13: 0.041667
E14: I wouldn’t be prepared to share any of this information | F14: 0.029703 | G14: 9 | I14: 9 | J14: I wouldn’t be prepared to share any of this information | K14: 0.029703 | L14: 3% | R14: I wouldn’t be prepared to share any of this information | S14: 0.029703 | T14: 0.04 | U14: 0.021277 | V14: 0.107143 | W14: 0 | X14: 0 | Y14: 0.032258 | Z14: 0.025316 | AA14: 0.020833 | AB14: 0.083333
I19: FOR CHART | S19: Overall | T19: Central Queensland | U19: Darling Downs | V19: Macintyre - Balonne | W19: Northern NSW | X19: Macquarie | Y19: Southern NSW | Z19: Small (< 1,000 ha) | AA19: Medium (1,000 - 5,000 ha) | AB19: Large (> 5,000 ha)
E20: Base | F20: =INDEX($S20:$AB20,1,1) -> 199 | I20: Yes | J20: No / Undecided | R20: Base | S20: 199 | T20: 25 | U20: 46 | V20: 27 | W20: 48 | X20: 23 | Y20: 30 | Z20: 77 | AA20: 96 | AB20: 24
E21: Others in your valley | F21: =INDEX($S21:$AB21,1,1) -> 0.9004975124 | G21: =IF(AND(F21>0,F21<0.005),"<1%",TEXT(F21,"0%")) -> 90% | I21: =F21 -> 0.9004975124 | J21: =1-I21 -> 0.09950248756 | R21: Others in your valley | S21: 0.9004975124 | T21: 0.96 | U21: 0.9361702128 | V21: 0.8148148148 | W21: 0.875 | X21: 0.8695652174 | Y21: 0.935483871 | Z21: 0.9358974359 | AA21: 0.9166666667 | AB21: 0.7083333333
E22: Across Australian cotton industry | F22: 0.7487437186 | G22: =IF(AND(F22>0,F22<0.005),"<1%",TEXT(F22,"0%")) -> 75% | I22: =F22 -> 0.7487437186 | J22: =1-I22 -> 0.2512562814 | R22: Across Australian cotton industry | S22: 0.7487437186 | T22: 0.88 | U22: 0.7173913043 | V22: 0.7037037037 | W22: 0.7916666667 | X22: 0.6956521739 | Y22: 0.7 | Z22: 0.7792207792 | AA22: 0.7291666667 | AB22: 0.7083333333
E23: Developing countries | F23: 0.5778894472 | G23: 58% | I23: =F23 -> 0.5778894472 | J23: =1-I23 -> 0.4221105528 | R23: Developing countries | S23: 0.5778894472 | T23: 0.68 | U23: 0.6304347826 | V23: 0.5185185185 | W23: 0.625 | X23: 0.347826087 | Y23: 0.5666666667 | Z23: 0.7142857143 | AA23: 0.5104166667 | AB23: 0.4166666667
E24: Across global cotton industry | F24: 0.58 | G24: 58% | I24: =F24 -> 0.58 | J24: =1-I24 -> 0.42 | R24: Across global cotton industry | S24: 0.58 | T24: 0.68 | U24: 0.6086956522 | V24: 0.6428571429 | W24: 0.5833333333 | X24: 0.3913043478 | Y24: 0.5333333333 | Z24: 0.6923076923 | AA24: 0.5104166667 | AB24: 0.5

Sheet Aboriginal Heritage
E1: 2017 Grower Survey
E5: Aboriginal Heritage Site
C7: Those with an Aboriginal heritage site on their farm | L7: What they are doing to protect the site
C27: ="Base: all cotton growers; n = "&'Data - Aboriginal Heritage'!F5&"." -> Base: all cotton growers; n = 203. | J27: =IF('HIDDEN - Backend'!Q17=1,"Source: 2017 Grower Survey, CRDC","") ->  | L27: ="Base: all cotton growers with an Aboriginal Heritage site; n = "&'Data - Aboriginal Heritage'!F11&"." -> Base: all cotton growers with an Aboriginal Heritage site; n = 10. | S27: =IF('HIDDEN - Backend'!Q17=1,"Source: 2017 Grower Survey, CRDC","") -> 
C29: Question: Do you have an aboriginal heritage site on your farm? | L29: Question: Which of the following describes what you have in place to protect the site? ^Multiple responses accepted. Results may not add to 100%.

Sheet Data - Aboriginal Heritage (hidden)
A1: ='HIDDEN - Backend'!Q3 -> 1 | E1: Segment | F1: =INDEX($S1:$AB1,1,$A$1) -> All cotton | S1: All cotton | T1: Central Queensland | U1: Darling Downs | V1: Macintyre - Balonne | W1: Northern NSW | X1: Macquarie | Y1: Southern NSW | Z1: Small farm | AA1: Medium farm | AB1: Large farm
C2: CHARTS | Q2: DATA
C4: Focus - Overall | S4: Overall | T4: Central Queensland | U4: Darling Downs | V4: Macintyre - Balonne | W4: Northern NSW | X4: Macquarie | Y4: Southern NSW | Z4: Small (< 1,000 ha) | AA4: Medium (1,000 - 5,000 ha) | AB4: Large (> 5,000 ha)
E5: Base | F5: =INDEX($S5:$AB5,1,1) -> 203 | R5: Base | S5: 203 | T5: 25 | U5: 47 | V5: 28 | W5: 49 | X5: 23 | Y5: 31 | Z5: 79 | AA5: 96 | AB5: 24
E6: Yes | F6: =INDEX($S6:$AB6,1,1) -> 0.04926108374 | G6: =IF(AND(F6>0,F6<0.005),"<1%",TEXT(F6,"0%")) -> 5% | H6: =90-(180*G6) -> 81 | R6: Yes | S6: 0.04926108374 | T6: 0.04 | U6: 0 | V6: 0.07142857143 | W6: 0.04081632653 | X6: 0.04347826087 | Y6: 0.1290322581 | Z6: 0.01265822785 | AA6: 0.05208333333 | AB6: 0.1666666667
E7: No | F7: 0.9014778325 | G7: =IF(AND(F7>0,F7<0.005),"<1%",TEXT(F7,"0%")) -> 90% | R7: No | S7: 0.9014778325 | T7: 0.96 | U7: 0.914893617 | V7: 0.8928571429 | W7: 0.8979591837 | X7: 0.8695652174 | Y7: 0.8709677419 | Z7: 0.9493670886 | AA7: 0.8958333333 | AB7: 0.7916666667
E8: Not sure | F8: 0.04926108374 | G8: =IF(AND(F8>0,F8<0.005),"<1%",TEXT(F8,"0%")) -> 5% | R8: Not sure/don’t know | S8: 0.04926108374 | T8: 0 | U8: 0.08510638298 | V8: 0.03571428571 | W8: 0.0612244898 | X8: 0.08695652174 | Y8: 0 | Z8: 0.03797468354 | AA8: 0.05208333333 | AB8: 0.04166666667
G10: Rank | J10: Re-order | L10: Label
E11: Base | F11: =INDEX($S11:$AB11,1,1) -> 10 | R11: Base | S11: 10 | T11: 1 | U11: 0 | V11: 2 | W11: 2 | X11: 1 | Y11: 4 | Z11: 1 | AA11: 5 | AB11: 4
E12: We have measures in place to protect the site | F12: =INDEX($S12:$AB12,1,1)*$F$11 -> 6 | G12: =RANK(F12,$F$12:$F$14) -> 1 | I12: 1 | J12: =INDEX($E$12:$G$16,MATCH($I12,$G$12:$G$16,0),1) -> We have measures in place to protect the site | K12: =INDEX($E$12:$G$16,MATCH($I12,$G$12:$G$16,0),2) -> 6 | L12: =IF(AND(K12>0,K12<0.5),"<1%",TEXT(K12/$F$11,"0%")) -> 60% | R12: We have measures in place to protect the site | S12: 0.6 | T12: 0 | U12: . | V12: 1 | W12: 0.5 | X12: 1 | Y12: 0.5 | Z12: 0 | AA12: 0.4 | AB12: 1
E13: We are working with the local aboriginal community to protect the site | F13: =INDEX($S13:$AB13,1,1)*$F$11 -> 6 | G13: =RANK(F13,$F$12:$F$14)+COUNTIF($G$12:G12,RANK(F13,$F$12:$F$14)) -> 2 | I13: 2 | J13: =INDEX($E$12:$G$16,MATCH($I13,$G$12:$G$16,0),1) -> We are working with the local aboriginal community to protect the site | K13: =INDEX($E$12:$G$16,MATCH($I13,$G$12:$G$16,0),2) -> 6 | L13: =IF(AND(K13>0,K13<0.5),"<1%",TEXT(K13/$F$11,"0%")) -> 60% | R13: We are working with the local aboriginal community to protect the site | S13: 0.6 | T13: 0 | U13: . | V13: 0.5 | W13: 0.5 | X13: 1 | Y13: 0.75 | Z13: 0 | AA13: 0.8 | AB13: 0.5
E14: We are planning to put measures in place to protect the site | F14: =INDEX($S14:$AB14,1,1)*$F$11 -> 2 | G14: =RANK(F14,$F$12:$F$14)+COUNTIF($G$12:G13,RANK(F14,$F$12:$F$14)) -> 3 | I14: 3 | J14: =INDEX($E$12:$G$16,MATCH($I14,$G$12:$G$16,0),1) -> We are planning to put measures in place to protect the site | K14: =INDEX($E$12:$G$16,MATCH($I14,$G$12:$G$16,0),2) -> 2 | L14: 20% | R14: We are planning to put measures in place to protect the site | S14: 0.2 | T14: 1 | U14: . | V14: 0.5 | W14: 0 | X14: 0 | Y14: 0 | Z14: 0 | AA14: 0.2 | AB14: 0.25
E15: Other | F15: =INDEX($S15:$AB15,1,1)*$F$11 -> 1 | G15: 4 | I15: 4 | J15: =INDEX($E$12:$G$16,MATCH($I15,$G$12:$G$16,0),1) -> Other | K15: =INDEX($E$12:$G$16,MATCH($I15,$G$12:$G$16,0),2) -> 1 | L15: 10% | R15: Other | S15: 0.1 | T15: 0 | U15: . | V15: 0 | W15: 0 | X15: 0 | Y15: 0.25 | Z15: 1 | AA15: 0 | AB15: 0
E16: We have no plans to protect the site | F16: =INDEX($S16:$AB16,1,1)*$F$11 -> 0 | G16: 5 | I16: 5 | J16: =INDEX($E$12:$G$16,MATCH($I16,$G$12:$G$16,0),1) -> We have no plans to protect the site | K16: =INDEX($E$12:$G$16,MATCH($I16,$G$12:$G$16,0),2) -> 0 | L16: 0% | R16: We have no plans to protect the site | S16: 0 | T16: 0 | U16: . | V16: 0 | W16: 0 | X16: 0 | Y16: 0 | Z16: 0 | AA16: 0 | AB16: 0
F18: NOTE: COUNTS
